Body Name,Date Paid,Transaction Number,Amount,Supplier Name,Supplier Type,Expense Area,Cost Centre Description,Expense Type
Cambridgeshire County Council,24-Sep-20,51300001789,"-191,143.77",VOICE ABILITY,CHARITY,Control Accounts,Control Accounts - Payables,Migration Only - Marked as Do Not Use
Cambridgeshire County Council,14-Sep-20,51301393669,"-47,792.20",A2B Travel Group,TRADE SUPPLIER,Passenger Transport other,Tendered Bus Costs,Support - subsidised bus routes
Cambridgeshire County Council,08-Sep-20,51301434871,"-41,368.08",Focus Care Agency,CARE ESTABLISHMENT,LAC Placements,Placements - residential disability,Agency Placements - Out of  County
Cambridgeshire County Council,04-Sep-20,51301391251,"-32,500.00",ESPO,TRADE SUPPLIER,Professional Finance,Cambridge Head of Finance,Staff health & welfare Costs
Cambridgeshire County Council,10-Sep-20,51301429019,"-19,020.71",Guidance Care,CARE ESTABLISHMENT,LAC Placements,Placements - residential homes,Agency Placements - In County
Cambridgeshire County Council,04-Sep-20,51301431992,"-7,094.92",GLENHOLME HEALTHCARE LTD,CARE ESTABLISHMENT,LD - Young Adults Team,LD - Young Adults - Care,Residential Care
Cambridgeshire County Council,04-Sep-20,51301431992,"-7,094.92",GLENHOLME HEALTHCARE LTD,CARE ESTABLISHMENT,LD - Young Adults Team,LD - Young Adults - Care,Residential Care
Cambridgeshire County Council,04-Sep-20,51301431992,"-7,094.92",GLENHOLME HEALTHCARE LTD,CARE ESTABLISHMENT,LD - Young Adults Team,LD - Young Adults - Care,Residential Care
Cambridgeshire County Council,04-Sep-20,51301431992,"-7,094.92",GLENHOLME HEALTHCARE LTD,CARE ESTABLISHMENT,LD - Young Adults Team,LD - Young Adults - Care,Residential Care
Cambridgeshire County Council,04-Sep-20,51301431992,"-7,094.92",GLENHOLME HEALTHCARE LTD,CARE ESTABLISHMENT,LD - Young Adults Team,LD - Young Adults - Care,Residential Care
Cambridgeshire County Council,04-Sep-20,51301431992,"-7,094.92",GLENHOLME HEALTHCARE LTD,CARE ESTABLISHMENT,LD - Young Adults Team,LD - Young Adults - Care,Residential Care
Cambridgeshire County Council,04-Sep-20,51301431992,"-7,094.92",GLENHOLME HEALTHCARE LTD,CARE ESTABLISHMENT,LD - Young Adults Team,LD - Young Adults - Care,Residential Care
Cambridgeshire County Council,04-Sep-20,51301431992,"-7,094.92",GLENHOLME HEALTHCARE LTD,CARE ESTABLISHMENT,LD - Young Adults Team,LD - Young Adults - Care,Residential Care
Cambridgeshire County Council,04-Sep-20,51301431992,"-7,094.92",GLENHOLME HEALTHCARE LTD,CARE ESTABLISHMENT,LD - Young Adults Team,LD - Young Adults - Care,Residential Care
Cambridgeshire County Council,04-Sep-20,51301431992,"-7,094.92",GLENHOLME HEALTHCARE LTD,CARE ESTABLISHMENT,LD - Young Adults Team,LD - Young Adults - Care,Residential Care
Cambridgeshire County Council,04-Sep-20,51301431992,"-7,094.92",GLENHOLME HEALTHCARE LTD,CARE ESTABLISHMENT,LD - Young Adults Team,LD - Young Adults - Care,Residential Care
Cambridgeshire County Council,04-Sep-20,51301431992,"-7,094.92",GLENHOLME HEALTHCARE LTD,CARE ESTABLISHMENT,LD - Young Adults Team,LD - Young Adults - Care,Residential Care
Cambridgeshire County Council,04-Sep-20,51301431992,"-7,094.92",GLENHOLME HEALTHCARE LTD,CARE ESTABLISHMENT,LD - Young Adults Team,LD - Young Adults - Care,Residential Care
Cambridgeshire County Council,04-Sep-20,51301431992,"-7,094.92",GLENHOLME HEALTHCARE LTD,CARE ESTABLISHMENT,LD - Young Adults Team,LD - Young Adults - Care,Residential Care
Cambridgeshire County Council,04-Sep-20,51301431992,"-7,094.92",GLENHOLME HEALTHCARE LTD,CARE ESTABLISHMENT,LD - Young Adults Team,LD - Young Adults - Care,Residential Care
Cambridgeshire County Council,04-Sep-20,51301431992,"-7,094.92",GLENHOLME HEALTHCARE LTD,CARE ESTABLISHMENT,LD - Young Adults Team,LD - Young Adults - Care,Residential Care
Cambridgeshire County Council,04-Sep-20,51301431992,"-7,094.92",GLENHOLME HEALTHCARE LTD,CARE ESTABLISHMENT,LD - Young Adults Team,LD - Young Adults - Care,Residential Care
Cambridgeshire County Council,04-Sep-20,51301431992,"-7,094.92",GLENHOLME HEALTHCARE LTD,CARE ESTABLISHMENT,LD - Young Adults Team,LD - Young Adults - Care,Residential Care
Cambridgeshire County Council,04-Sep-20,51301431992,"-7,094.92",GLENHOLME HEALTHCARE LTD,CARE ESTABLISHMENT,LD - Young Adults Team,LD - Young Adults - Care,Residential Care
Cambridgeshire County Council,04-Sep-20,51301431992,"-7,094.92",GLENHOLME HEALTHCARE LTD,CARE ESTABLISHMENT,LD - Young Adults Team,LD - Young Adults - Care,Residential Care
Cambridgeshire County Council,04-Sep-20,51301431992,"-7,094.92",GLENHOLME HEALTHCARE LTD,CARE ESTABLISHMENT,LD - Young Adults Team,LD - Young Adults - Care,Residential Care
Cambridgeshire County Council,04-Sep-20,51301431992,"-7,094.92",GLENHOLME HEALTHCARE LTD,CARE ESTABLISHMENT,LD - Young Adults Team,LD - Young Adults - Care,Residential Care
Cambridgeshire County Council,04-Sep-20,51301431992,"-7,094.92",GLENHOLME HEALTHCARE LTD,CARE ESTABLISHMENT,LD - Young Adults Team,LD - Young Adults - Care,Residential Care
Cambridgeshire County Council,04-Sep-20,51301431992,"-7,094.92",GLENHOLME HEALTHCARE LTD,CARE ESTABLISHMENT,LD - Young Adults Team,LD - Young Adults - Care,Residential Care
Cambridgeshire County Council,04-Sep-20,51301431992,"-6,921.87",GLENHOLME HEALTHCARE LTD,CARE ESTABLISHMENT,LD - Young Adults Team,LD - Young Adults - Care,Residential Care
Cambridgeshire County Council,04-Sep-20,51301431992,"-6,921.87",GLENHOLME HEALTHCARE LTD,CARE ESTABLISHMENT,LD - Young Adults Team,LD - Young Adults - Care,Residential Care
Cambridgeshire County Council,04-Sep-20,51301431992,"-6,921.87",GLENHOLME HEALTHCARE LTD,CARE ESTABLISHMENT,LD - Young Adults Team,LD - Young Adults - Care,Residential Care
Cambridgeshire County Council,04-Sep-20,51301431992,"-6,921.87",GLENHOLME HEALTHCARE LTD,CARE ESTABLISHMENT,LD - Young Adults Team,LD - Young Adults - Care,Residential Care
Cambridgeshire County Council,04-Sep-20,51301431992,"-6,921.87",GLENHOLME HEALTHCARE LTD,CARE ESTABLISHMENT,LD - Young Adults Team,LD - Young Adults - Care,Residential Care
Cambridgeshire County Council,04-Sep-20,51301431992,"-6,921.87",GLENHOLME HEALTHCARE LTD,CARE ESTABLISHMENT,LD - Young Adults Team,LD - Young Adults - Care,Residential Care
Cambridgeshire County Council,04-Sep-20,51301431992,"-6,921.87",GLENHOLME HEALTHCARE LTD,CARE ESTABLISHMENT,LD - Young Adults Team,LD - Young Adults - Care,Residential Care
Cambridgeshire County Council,04-Sep-20,51301431992,"-6,921.87",GLENHOLME HEALTHCARE LTD,CARE ESTABLISHMENT,LD - Young Adults Team,LD - Young Adults - Care,Residential Care
Cambridgeshire County Council,04-Sep-20,51301431992,"-6,921.87",GLENHOLME HEALTHCARE LTD,CARE ESTABLISHMENT,LD - Young Adults Team,LD - Young Adults - Care,Residential Care
Cambridgeshire County Council,04-Sep-20,51301431992,"-6,921.87",GLENHOLME HEALTHCARE LTD,CARE ESTABLISHMENT,LD - Young Adults Team,LD - Young Adults - Care,Residential Care
Cambridgeshire County Council,04-Sep-20,51301431992,"-6,921.87",GLENHOLME HEALTHCARE LTD,CARE ESTABLISHMENT,LD - Young Adults Team,LD - Young Adults - Care,Residential Care
Cambridgeshire County Council,04-Sep-20,51301431992,"-6,921.87",GLENHOLME HEALTHCARE LTD,CARE ESTABLISHMENT,LD - Young Adults Team,LD - Young Adults - Care,Residential Care
Cambridgeshire County Council,04-Sep-20,51301431992,"-6,921.87",GLENHOLME HEALTHCARE LTD,CARE ESTABLISHMENT,LD - Young Adults Team,LD - Young Adults - Care,Residential Care
Cambridgeshire County Council,04-Sep-20,51301431992,"-6,921.87",GLENHOLME HEALTHCARE LTD,CARE ESTABLISHMENT,LD - Young Adults Team,LD - Young Adults - Care,Residential Care
Cambridgeshire County Council,04-Sep-20,51301431992,"-6,921.87",GLENHOLME HEALTHCARE LTD,CARE ESTABLISHMENT,LD - Young Adults Team,LD - Young Adults - Care,Residential Care
Cambridgeshire County Council,04-Sep-20,51301431992,"-6,921.87",GLENHOLME HEALTHCARE LTD,CARE ESTABLISHMENT,LD - Young Adults Team,LD - Young Adults - Care,Residential Care
Cambridgeshire County Council,04-Sep-20,51301431992,"-6,921.87",GLENHOLME HEALTHCARE LTD,CARE ESTABLISHMENT,LD - Young Adults Team,LD - Young Adults - Care,Residential Care
Cambridgeshire County Council,04-Sep-20,51301431992,"-6,921.87",GLENHOLME HEALTHCARE LTD,CARE ESTABLISHMENT,LD - Young Adults Team,LD - Young Adults - Care,Residential Care
Cambridgeshire County Council,04-Sep-20,51301431992,"-6,921.87",GLENHOLME HEALTHCARE LTD,CARE ESTABLISHMENT,LD - Young Adults Team,LD - Young Adults - Care,Residential Care
Cambridgeshire County Council,04-Sep-20,51301431992,"-6,921.87",GLENHOLME HEALTHCARE LTD,CARE ESTABLISHMENT,LD - Young Adults Team,LD - Young Adults - Care,Residential Care
Cambridgeshire County Council,04-Sep-20,51301431992,"-6,921.87",GLENHOLME HEALTHCARE LTD,CARE ESTABLISHMENT,LD - Young Adults Team,LD - Young Adults - Care,Residential Care
Cambridgeshire County Council,04-Sep-20,51301431992,"-6,921.87",GLENHOLME HEALTHCARE LTD,CARE ESTABLISHMENT,LD - Young Adults Team,LD - Young Adults - Care,Residential Care
Cambridgeshire County Council,04-Sep-20,51301431992,"-6,921.87",GLENHOLME HEALTHCARE LTD,CARE ESTABLISHMENT,LD - Young Adults Team,LD - Young Adults - Care,Residential Care
Cambridgeshire County Council,04-Sep-20,51301431992,"-6,921.87",GLENHOLME HEALTHCARE LTD,CARE ESTABLISHMENT,LD - Young Adults Team,LD - Young Adults - Care,Residential Care
Cambridgeshire County Council,04-Sep-20,51301431992,"-6,921.87",GLENHOLME HEALTHCARE LTD,CARE ESTABLISHMENT,LD - Young Adults Team,LD - Young Adults - Care,Residential Care
Cambridgeshire County Council,04-Sep-20,51301431992,"-6,921.87",GLENHOLME HEALTHCARE LTD,CARE ESTABLISHMENT,LD - Young Adults Team,LD - Young Adults - Care,Residential Care
Cambridgeshire County Council,04-Sep-20,51301431992,"-6,921.87",GLENHOLME HEALTHCARE LTD,CARE ESTABLISHMENT,LD - Young Adults Team,LD - Young Adults - Care,Residential Care
Cambridgeshire County Council,04-Sep-20,51301431992,"-6,081.36",GLENHOLME HEALTHCARE LTD,CARE ESTABLISHMENT,LD - Young Adults Team,LD - Young Adults - Care,Residential Care
Cambridgeshire County Council,04-Sep-20,51301431992,"-4,775.79",GLENHOLME HEALTHCARE LTD,CARE ESTABLISHMENT,LD - Young Adults Team,LD - Young Adults - Care,Residential Care
Cambridgeshire County Council,04-Sep-20,51301431992,"-4,389.27",GLENHOLME HEALTHCARE LTD,CARE ESTABLISHMENT,LD - Young Adults Team,LD - Young Adults - Care,Residential Care
Cambridgeshire County Council,04-Sep-20,51301431992,"-4,389.27",GLENHOLME HEALTHCARE LTD,CARE ESTABLISHMENT,LD - Young Adults Team,LD - Young Adults - Care,Residential Care
Cambridgeshire County Council,04-Sep-20,51301431992,"-4,282.21",GLENHOLME HEALTHCARE LTD,CARE ESTABLISHMENT,LD - Young Adults Team,LD - Young Adults - Care,Residential Care
Cambridgeshire County Council,04-Sep-20,51301431992,"-4,282.21",GLENHOLME HEALTHCARE LTD,CARE ESTABLISHMENT,LD - Young Adults Team,LD - Young Adults - Care,Residential Care
Cambridgeshire County Council,04-Sep-20,51301431992,"-4,282.21",GLENHOLME HEALTHCARE LTD,CARE ESTABLISHMENT,LD - Young Adults Team,LD - Young Adults - Care,Residential Care
Cambridgeshire County Council,04-Sep-20,51301431992,"-4,282.21",GLENHOLME HEALTHCARE LTD,CARE ESTABLISHMENT,LD - Young Adults Team,LD - Young Adults - Care,Residential Care
Cambridgeshire County Council,04-Sep-20,51301431992,"-4,282.21",GLENHOLME HEALTHCARE LTD,CARE ESTABLISHMENT,LD - Young Adults Team,LD - Young Adults - Care,Residential Care
Cambridgeshire County Council,04-Sep-20,51301431992,"-4,282.21",GLENHOLME HEALTHCARE LTD,CARE ESTABLISHMENT,LD - Young Adults Team,LD - Young Adults - Care,Residential Care
Cambridgeshire County Council,04-Sep-20,51301431992,"-4,282.21",GLENHOLME HEALTHCARE LTD,CARE ESTABLISHMENT,LD - Young Adults Team,LD - Young Adults - Care,Residential Care
Cambridgeshire County Council,04-Sep-20,51301431992,"-4,282.21",GLENHOLME HEALTHCARE LTD,CARE ESTABLISHMENT,LD - Young Adults Team,LD - Young Adults - Care,Residential Care
Cambridgeshire County Council,04-Sep-20,51301431992,"-4,282.21",GLENHOLME HEALTHCARE LTD,CARE ESTABLISHMENT,LD - Young Adults Team,LD - Young Adults - Care,Residential Care
Cambridgeshire County Council,04-Sep-20,51301431992,"-4,282.21",GLENHOLME HEALTHCARE LTD,CARE ESTABLISHMENT,LD - Young Adults Team,LD - Young Adults - Care,Residential Care
Cambridgeshire County Council,04-Sep-20,51301431992,"-4,282.21",GLENHOLME HEALTHCARE LTD,CARE ESTABLISHMENT,LD - Young Adults Team,LD - Young Adults - Care,Residential Care
Cambridgeshire County Council,04-Sep-20,51301431992,"-4,282.21",GLENHOLME HEALTHCARE LTD,CARE ESTABLISHMENT,LD - Young Adults Team,LD - Young Adults - Care,Residential Care
Cambridgeshire County Council,04-Sep-20,51301431992,"-4,282.21",GLENHOLME HEALTHCARE LTD,CARE ESTABLISHMENT,LD - Young Adults Team,LD - Young Adults - Care,Residential Care
Cambridgeshire County Council,04-Sep-20,51301431992,"-4,282.21",GLENHOLME HEALTHCARE LTD,CARE ESTABLISHMENT,LD - Young Adults Team,LD - Young Adults - Care,Residential Care
Cambridgeshire County Council,04-Sep-20,51301431992,"-4,282.21",GLENHOLME HEALTHCARE LTD,CARE ESTABLISHMENT,LD - Young Adults Team,LD - Young Adults - Care,Residential Care
Cambridgeshire County Council,04-Sep-20,51301431992,"-4,282.21",GLENHOLME HEALTHCARE LTD,CARE ESTABLISHMENT,LD - Young Adults Team,LD - Young Adults - Care,Residential Care
Cambridgeshire County Council,04-Sep-20,51301431992,"-4,282.21",GLENHOLME HEALTHCARE LTD,CARE ESTABLISHMENT,LD - Young Adults Team,LD - Young Adults - Care,Residential Care
Cambridgeshire County Council,04-Sep-20,51301431992,"-4,282.21",GLENHOLME HEALTHCARE LTD,CARE ESTABLISHMENT,LD - Young Adults Team,LD - Young Adults - Care,Residential Care
Cambridgeshire County Council,04-Sep-20,51301431992,"-4,282.21",GLENHOLME HEALTHCARE LTD,CARE ESTABLISHMENT,LD - Young Adults Team,LD - Young Adults - Care,Residential Care
Cambridgeshire County Council,04-Sep-20,51301431992,"-4,282.21",GLENHOLME HEALTHCARE LTD,CARE ESTABLISHMENT,LD - Young Adults Team,LD - Young Adults - Care,Residential Care
Cambridgeshire County Council,04-Sep-20,51301432073,"-4,124.97",GLENHOLME HEALTHCARE LTD,CARE ESTABLISHMENT,LD - South Locality - Cost of Care,LD - South Cambs - Special Needs,Residential Care
Cambridgeshire County Council,04-Sep-20,51301432073,"-4,124.97",GLENHOLME HEALTHCARE LTD,CARE ESTABLISHMENT,LD - South Locality - Cost of Care,LD - South Cambs - Special Needs,Residential Care
Cambridgeshire County Council,04-Sep-20,51301432073,"-4,124.97",GLENHOLME HEALTHCARE LTD,CARE ESTABLISHMENT,LD - South Locality - Cost of Care,LD - South Cambs - Special Needs,Residential Care
Cambridgeshire County Council,04-Sep-20,51301432073,"-4,124.97",GLENHOLME HEALTHCARE LTD,CARE ESTABLISHMENT,LD - South Locality - Cost of Care,LD - South Cambs - Special Needs,Residential Care
Cambridgeshire County Council,04-Sep-20,51301432073,"-4,124.97",GLENHOLME HEALTHCARE LTD,CARE ESTABLISHMENT,LD - South Locality - Cost of Care,LD - South Cambs - Special Needs,Residential Care
Cambridgeshire County Council,04-Sep-20,51301432073,"-4,124.97",GLENHOLME HEALTHCARE LTD,CARE ESTABLISHMENT,LD - South Locality - Cost of Care,LD - South Cambs - Special Needs,Residential Care
Cambridgeshire County Council,04-Sep-20,51301432073,"-4,124.97",GLENHOLME HEALTHCARE LTD,CARE ESTABLISHMENT,LD - South Locality - Cost of Care,LD - South Cambs - Special Needs,Residential Care
Cambridgeshire County Council,04-Sep-20,51301432073,"-4,124.97",GLENHOLME HEALTHCARE LTD,CARE ESTABLISHMENT,LD - South Locality - Cost of Care,LD - South Cambs - Special Needs,Residential Care
Cambridgeshire County Council,04-Sep-20,51301432073,"-4,124.97",GLENHOLME HEALTHCARE LTD,CARE ESTABLISHMENT,LD - South Locality - Cost of Care,LD - South Cambs - Special Needs,Residential Care
Cambridgeshire County Council,04-Sep-20,51301432073,"-4,124.97",GLENHOLME HEALTHCARE LTD,CARE ESTABLISHMENT,LD - South Locality - Cost of Care,LD - South Cambs - Special Needs,Residential Care
Cambridgeshire County Council,04-Sep-20,51301432073,"-4,124.97",GLENHOLME HEALTHCARE LTD,CARE ESTABLISHMENT,LD - South Locality - Cost of Care,LD - South Cambs - Special Needs,Residential Care
Cambridgeshire County Council,04-Sep-20,51301432073,"-4,124.97",GLENHOLME HEALTHCARE LTD,CARE ESTABLISHMENT,LD - South Locality - Cost of Care,LD - South Cambs - Special Needs,Residential Care
Cambridgeshire County Council,04-Sep-20,51301432073,"-4,124.97",GLENHOLME HEALTHCARE LTD,CARE ESTABLISHMENT,LD - South Locality - Cost of Care,LD - South Cambs - Special Needs,Residential Care
Cambridgeshire County Council,04-Sep-20,51301432073,"-4,124.97",GLENHOLME HEALTHCARE LTD,CARE ESTABLISHMENT,LD - South Locality - Cost of Care,LD - South Cambs - Special Needs,Residential Care
Cambridgeshire County Council,04-Sep-20,51301432073,"-4,124.97",GLENHOLME HEALTHCARE LTD,CARE ESTABLISHMENT,LD - South Locality - Cost of Care,LD - South Cambs - Special Needs,Residential Care
Cambridgeshire County Council,04-Sep-20,51301432073,"-4,124.97",GLENHOLME HEALTHCARE LTD,CARE ESTABLISHMENT,LD - South Locality - Cost of Care,LD - South Cambs - Special Needs,Residential Care
Cambridgeshire County Council,04-Sep-20,51301432073,"-4,124.97",GLENHOLME HEALTHCARE LTD,CARE ESTABLISHMENT,LD - South Locality - Cost of Care,LD - South Cambs - Special Needs,Residential Care
Cambridgeshire County Council,04-Sep-20,51301432073,"-4,124.97",GLENHOLME HEALTHCARE LTD,CARE ESTABLISHMENT,LD - South Locality - Cost of Care,LD - South Cambs - Special Needs,Residential Care
Cambridgeshire County Council,04-Sep-20,51301432073,"-4,124.97",GLENHOLME HEALTHCARE LTD,CARE ESTABLISHMENT,LD - South Locality - Cost of Care,LD - South Cambs - Special Needs,Residential Care
Cambridgeshire County Council,04-Sep-20,51301432073,"-4,124.97",GLENHOLME HEALTHCARE LTD,CARE ESTABLISHMENT,LD - South Locality - Cost of Care,LD - South Cambs - Special Needs,Residential Care
Cambridgeshire County Council,04-Sep-20,51301432073,"-4,124.97",GLENHOLME HEALTHCARE LTD,CARE ESTABLISHMENT,LD - South Locality - Cost of Care,LD - South Cambs - Special Needs,Residential Care
Cambridgeshire County Council,04-Sep-20,51301432073,"-4,124.97",GLENHOLME HEALTHCARE LTD,CARE ESTABLISHMENT,LD - South Locality - Cost of Care,LD - South Cambs - Special Needs,Residential Care
Cambridgeshire County Council,04-Sep-20,51301432073,"-4,124.97",GLENHOLME HEALTHCARE LTD,CARE ESTABLISHMENT,LD - South Locality - Cost of Care,LD - South Cambs - Special Needs,Residential Care
Cambridgeshire County Council,04-Sep-20,51301432073,"-4,124.97",GLENHOLME HEALTHCARE LTD,CARE ESTABLISHMENT,LD - South Locality - Cost of Care,LD - South Cambs - Special Needs,Residential Care
Cambridgeshire County Council,04-Sep-20,51301432073,"-4,124.97",GLENHOLME HEALTHCARE LTD,CARE ESTABLISHMENT,LD - South Locality - Cost of Care,LD - South Cambs - Special Needs,Residential Care
Cambridgeshire County Council,04-Sep-20,51301432073,"-4,124.97",GLENHOLME HEALTHCARE LTD,CARE ESTABLISHMENT,LD - South Locality - Cost of Care,LD - South Cambs - Special Needs,Residential Care
Cambridgeshire County Council,04-Sep-20,51301432073,"-4,124.97",GLENHOLME HEALTHCARE LTD,CARE ESTABLISHMENT,LD - South Locality - Cost of Care,LD - South Cambs - Special Needs,Residential Care
Cambridgeshire County Council,04-Sep-20,51301432073,"-4,124.97",GLENHOLME HEALTHCARE LTD,CARE ESTABLISHMENT,LD - South Locality - Cost of Care,LD - South Cambs - Special Needs,Residential Care
Cambridgeshire County Council,04-Sep-20,51301432073,"-4,124.97",GLENHOLME HEALTHCARE LTD,CARE ESTABLISHMENT,LD - South Locality - Cost of Care,LD - South Cambs - Special Needs,Residential Care
Cambridgeshire County Council,04-Sep-20,51301432073,"-4,124.97",GLENHOLME HEALTHCARE LTD,CARE ESTABLISHMENT,LD - South Locality - Cost of Care,LD - South Cambs - Special Needs,Residential Care
Cambridgeshire County Council,04-Sep-20,51301432073,"-4,124.97",GLENHOLME HEALTHCARE LTD,CARE ESTABLISHMENT,LD - South Locality - Cost of Care,LD - South Cambs - Special Needs,Residential Care
Cambridgeshire County Council,04-Sep-20,51301432073,"-4,124.97",GLENHOLME HEALTHCARE LTD,CARE ESTABLISHMENT,LD - South Locality - Cost of Care,LD - South Cambs - Special Needs,Residential Care
Cambridgeshire County Council,04-Sep-20,51301432073,"-4,124.97",GLENHOLME HEALTHCARE LTD,CARE ESTABLISHMENT,LD - South Locality - Cost of Care,LD - South Cambs - Special Needs,Residential Care
Cambridgeshire County Council,04-Sep-20,51301432073,"-4,124.97",GLENHOLME HEALTHCARE LTD,CARE ESTABLISHMENT,LD - South Locality - Cost of Care,LD - South Cambs - Special Needs,Residential Care
Cambridgeshire County Council,04-Sep-20,51301432073,"-4,124.97",GLENHOLME HEALTHCARE LTD,CARE ESTABLISHMENT,LD - South Locality - Cost of Care,LD - South Cambs - Special Needs,Residential Care
Cambridgeshire County Council,04-Sep-20,51301432073,"-4,124.97",GLENHOLME HEALTHCARE LTD,CARE ESTABLISHMENT,LD - South Locality - Cost of Care,LD - South Cambs - Special Needs,Residential Care
Cambridgeshire County Council,04-Sep-20,51301432073,"-4,124.97",GLENHOLME HEALTHCARE LTD,CARE ESTABLISHMENT,LD - South Locality - Cost of Care,LD - South Cambs - Special Needs,Residential Care
Cambridgeshire County Council,04-Sep-20,51301432073,"-4,124.97",GLENHOLME HEALTHCARE LTD,CARE ESTABLISHMENT,LD - South Locality - Cost of Care,LD - South Cambs - Special Needs,Residential Care
Cambridgeshire County Council,04-Sep-20,51301432073,"-4,124.97",GLENHOLME HEALTHCARE LTD,CARE ESTABLISHMENT,LD - South Locality - Cost of Care,LD - South Cambs - Special Needs,Residential Care
Cambridgeshire County Council,04-Sep-20,51301432073,"-4,124.97",GLENHOLME HEALTHCARE LTD,CARE ESTABLISHMENT,LD - South Locality - Cost of Care,LD - South Cambs - Special Needs,Residential Care
Cambridgeshire County Council,04-Sep-20,51301432073,"-4,124.97",GLENHOLME HEALTHCARE LTD,CARE ESTABLISHMENT,LD - South Locality - Cost of Care,LD - South Cambs - Special Needs,Residential Care
Cambridgeshire County Council,04-Sep-20,51301432073,"-4,124.97",GLENHOLME HEALTHCARE LTD,CARE ESTABLISHMENT,LD - South Locality - Cost of Care,LD - South Cambs - Special Needs,Residential Care
Cambridgeshire County Council,04-Sep-20,51301432073,"-4,124.97",GLENHOLME HEALTHCARE LTD,CARE ESTABLISHMENT,LD - South Locality - Cost of Care,LD - South Cambs - Special Needs,Residential Care
Cambridgeshire County Council,01-Sep-20,51301426263,"-3,868.05",THE MANOR CHESHIRE HOME,CARE ESTABLISHMENT,LD - Head of Service,Head of LDP,Residential Care
Cambridgeshire County Council,01-Sep-20,51301426263,"-3,868.05",THE MANOR CHESHIRE HOME,CARE ESTABLISHMENT,LD - Head of Service,Head of LDP,Residential Care
Cambridgeshire County Council,01-Sep-20,51301426263,"-3,868.05",THE MANOR CHESHIRE HOME,CARE ESTABLISHMENT,LD - Head of Service,Head of LDP,Residential Care
Cambridgeshire County Council,01-Sep-20,51301426263,"-3,868.05",THE MANOR CHESHIRE HOME,CARE ESTABLISHMENT,LD - Head of Service,Head of LDP,Residential Care
Cambridgeshire County Council,01-Sep-20,51301426263,"-3,868.05",THE MANOR CHESHIRE HOME,CARE ESTABLISHMENT,LD - Head of Service,Head of LDP,Residential Care
Cambridgeshire County Council,01-Sep-20,51301426263,"-3,868.05",THE MANOR CHESHIRE HOME,CARE ESTABLISHMENT,LD - Head of Service,Head of LDP,Residential Care
Cambridgeshire County Council,01-Sep-20,51301426263,"-3,868.05",THE MANOR CHESHIRE HOME,CARE ESTABLISHMENT,LD - Head of Service,Head of LDP,Residential Care
Cambridgeshire County Council,01-Sep-20,51301426263,"-3,868.05",THE MANOR CHESHIRE HOME,CARE ESTABLISHMENT,LD - Head of Service,Head of LDP,Residential Care
Cambridgeshire County Council,01-Sep-20,51301426263,"-3,868.05",THE MANOR CHESHIRE HOME,CARE ESTABLISHMENT,LD - Head of Service,Head of LDP,Residential Care
Cambridgeshire County Council,01-Sep-20,51301426263,"-3,868.05",THE MANOR CHESHIRE HOME,CARE ESTABLISHMENT,LD - Head of Service,Head of LDP,Residential Care
Cambridgeshire County Council,01-Sep-20,51301426263,"-3,868.05",THE MANOR CHESHIRE HOME,CARE ESTABLISHMENT,LD - Head of Service,Head of LDP,Residential Care
Cambridgeshire County Council,01-Sep-20,51301426263,"-3,868.05",THE MANOR CHESHIRE HOME,CARE ESTABLISHMENT,LD - Head of Service,Head of LDP,Residential Care
Cambridgeshire County Council,01-Sep-20,51301426263,"-3,868.05",THE MANOR CHESHIRE HOME,CARE ESTABLISHMENT,LD - Head of Service,Head of LDP,Residential Care
Cambridgeshire County Council,01-Sep-20,51301426263,"-3,868.05",THE MANOR CHESHIRE HOME,CARE ESTABLISHMENT,LD - Head of Service,Head of LDP,Residential Care
Cambridgeshire County Council,01-Sep-20,51301426263,"-3,868.05",THE MANOR CHESHIRE HOME,CARE ESTABLISHMENT,LD - Head of Service,Head of LDP,Residential Care
Cambridgeshire County Council,01-Sep-20,51301426263,"-3,868.05",THE MANOR CHESHIRE HOME,CARE ESTABLISHMENT,LD - Head of Service,Head of LDP,Residential Care
Cambridgeshire County Council,01-Sep-20,51301426263,"-3,868.05",THE MANOR CHESHIRE HOME,CARE ESTABLISHMENT,LD - Head of Service,Head of LDP,Residential Care
Cambridgeshire County Council,01-Sep-20,51301426263,"-3,868.05",THE MANOR CHESHIRE HOME,CARE ESTABLISHMENT,LD - Head of Service,Head of LDP,Residential Care
Cambridgeshire County Council,01-Sep-20,51301426263,"-3,868.05",THE MANOR CHESHIRE HOME,CARE ESTABLISHMENT,LD - Head of Service,Head of LDP,Residential Care
Cambridgeshire County Council,01-Sep-20,51301426263,"-3,868.05",THE MANOR CHESHIRE HOME,CARE ESTABLISHMENT,LD - Head of Service,Head of LDP,Residential Care
Cambridgeshire County Council,01-Sep-20,51301426263,"-3,868.05",THE MANOR CHESHIRE HOME,CARE ESTABLISHMENT,LD - Head of Service,Head of LDP,Residential Care
Cambridgeshire County Council,01-Sep-20,51301426263,"-3,868.05",THE MANOR CHESHIRE HOME,CARE ESTABLISHMENT,LD - Head of Service,Head of LDP,Residential Care
Cambridgeshire County Council,01-Sep-20,51301426263,"-3,868.05",THE MANOR CHESHIRE HOME,CARE ESTABLISHMENT,LD - Head of Service,Head of LDP,Residential Care
Cambridgeshire County Council,21-Sep-20,51301434363,"-3,780.00",WATERMAN ASPEN LTD,TRADE SUPPLIER,MID - General,Major Infrastructure Delivery,Agency Staff
Cambridgeshire County Council,22-Sep-20,51301392284,"-3,771.35",VODAFONE CORPORATE LTD,TRADE SUPPLIER,"Telephony, CPSN & MFD",Corporate Telephony,Telephone equipment & installation
Cambridgeshire County Council,04-Sep-20,51301431992,"-3,762.23",GLENHOLME HEALTHCARE LTD,CARE ESTABLISHMENT,LD - Young Adults Team,LD - Young Adults - Care,Residential Care
Cambridgeshire County Council,04-Sep-20,51301430354,"-3,487.00",Olive Healthcare Solutions Limited,CARE ESTABLISHMENT,OP - Hunts Locality - Cost of Care,Hunts OP Team - Care,Domiciliary Care
Cambridgeshire County Council,01-Sep-20,51301426263,"-3,315.47",THE MANOR CHESHIRE HOME,CARE ESTABLISHMENT,LD - Head of Service,Head of LDP,Residential Care
Cambridgeshire County Council,04-Sep-20,51301431992,"-3,058.72",GLENHOLME HEALTHCARE LTD,CARE ESTABLISHMENT,LD - Young Adults Team,LD - Young Adults - Care,Residential Care
Cambridgeshire County Council,04-Sep-20,51301431867,"-2,928.11",LANGLEY LODGE RESIDENTIAL CARE HOME,CARE ESTABLISHMENT,OP - Fenland Locality - Cost of Care,Older People - Fenland - Care,Residential Care
Cambridgeshire County Council,04-Sep-20,51301418913,"-2,542.70",AN DARACH HOUSE ( KISIMUL GROUP LTD),CARE ESTABLISHMENT,LD - South Locality - Cost of Care,LD - South Cambs - Care,Residential Care
Cambridgeshire County Council,04-Sep-20,51301418913,"-2,542.70",AN DARACH HOUSE ( KISIMUL GROUP LTD),CARE ESTABLISHMENT,LD - South Locality - Cost of Care,LD - South Cambs - Care,Residential Care
Cambridgeshire County Council,04-Sep-20,51301418913,"-2,542.70",AN DARACH HOUSE ( KISIMUL GROUP LTD),CARE ESTABLISHMENT,LD - South Locality - Cost of Care,LD - South Cambs - Care,Residential Care
Cambridgeshire County Council,04-Sep-20,51301418913,"-2,542.70",AN DARACH HOUSE ( KISIMUL GROUP LTD),CARE ESTABLISHMENT,LD - South Locality - Cost of Care,LD - South Cambs - Care,Residential Care
Cambridgeshire County Council,04-Sep-20,51301418913,"-2,542.70",AN DARACH HOUSE ( KISIMUL GROUP LTD),CARE ESTABLISHMENT,LD - South Locality - Cost of Care,LD - South Cambs - Care,Residential Care
Cambridgeshire County Council,04-Sep-20,51301418913,"-2,542.70",AN DARACH HOUSE ( KISIMUL GROUP LTD),CARE ESTABLISHMENT,LD - South Locality - Cost of Care,LD - South Cambs - Care,Residential Care
Cambridgeshire County Council,04-Sep-20,51301418913,"-2,542.70",AN DARACH HOUSE ( KISIMUL GROUP LTD),CARE ESTABLISHMENT,LD - South Locality - Cost of Care,LD - South Cambs - Care,Residential Care
Cambridgeshire County Council,04-Sep-20,51301418913,"-2,542.70",AN DARACH HOUSE ( KISIMUL GROUP LTD),CARE ESTABLISHMENT,LD - South Locality - Cost of Care,LD - South Cambs - Care,Residential Care
Cambridgeshire County Council,04-Sep-20,51301418913,"-2,542.70",AN DARACH HOUSE ( KISIMUL GROUP LTD),CARE ESTABLISHMENT,LD - South Locality - Cost of Care,LD - South Cambs - Care,Residential Care
Cambridgeshire County Council,04-Sep-20,51301418913,"-2,542.70",AN DARACH HOUSE ( KISIMUL GROUP LTD),CARE ESTABLISHMENT,LD - South Locality - Cost of Care,LD - South Cambs - Care,Residential Care
Cambridgeshire County Council,04-Sep-20,51301418913,"-2,542.70",AN DARACH HOUSE ( KISIMUL GROUP LTD),CARE ESTABLISHMENT,LD - South Locality - Cost of Care,LD - South Cambs - Care,Residential Care
Cambridgeshire County Council,04-Sep-20,51301418913,"-2,542.70",AN DARACH HOUSE ( KISIMUL GROUP LTD),CARE ESTABLISHMENT,LD - South Locality - Cost of Care,LD - South Cambs - Care,Residential Care
Cambridgeshire County Council,04-Sep-20,51301418913,"-2,542.70",AN DARACH HOUSE ( KISIMUL GROUP LTD),CARE ESTABLISHMENT,LD - South Locality - Cost of Care,LD - South Cambs - Care,Residential Care
Cambridgeshire County Council,04-Sep-20,51301418913,"-2,542.70",AN DARACH HOUSE ( KISIMUL GROUP LTD),CARE ESTABLISHMENT,LD - South Locality - Cost of Care,LD - South Cambs - Care,Residential Care
Cambridgeshire County Council,04-Sep-20,51301418913,"-2,542.70",AN DARACH HOUSE ( KISIMUL GROUP LTD),CARE ESTABLISHMENT,LD - South Locality - Cost of Care,LD - South Cambs - Care,Residential Care
Cambridgeshire County Council,04-Sep-20,51301418913,"-2,542.70",AN DARACH HOUSE ( KISIMUL GROUP LTD),CARE ESTABLISHMENT,LD - South Locality - Cost of Care,LD - South Cambs - Care,Residential Care
Cambridgeshire County Council,04-Sep-20,51301418913,"-2,542.70",AN DARACH HOUSE ( KISIMUL GROUP LTD),CARE ESTABLISHMENT,LD - South Locality - Cost of Care,LD - South Cambs - Care,Residential Care
Cambridgeshire County Council,04-Sep-20,51301418913,"-2,542.70",AN DARACH HOUSE ( KISIMUL GROUP LTD),CARE ESTABLISHMENT,LD - South Locality - Cost of Care,LD - South Cambs - Care,Residential Care
Cambridgeshire County Council,04-Sep-20,51301418913,"-2,542.70",AN DARACH HOUSE ( KISIMUL GROUP LTD),CARE ESTABLISHMENT,LD - South Locality - Cost of Care,LD - South Cambs - Care,Residential Care
Cambridgeshire County Council,04-Sep-20,51301418913,"-2,542.70",AN DARACH HOUSE ( KISIMUL GROUP LTD),CARE ESTABLISHMENT,LD - South Locality - Cost of Care,LD - South Cambs - Care,Residential Care
Cambridgeshire County Council,04-Sep-20,51301418913,"-2,542.70",AN DARACH HOUSE ( KISIMUL GROUP LTD),CARE ESTABLISHMENT,LD - South Locality - Cost of Care,LD - South Cambs - Care,Residential Care
Cambridgeshire County Council,04-Sep-20,51301418913,"-2,542.70",AN DARACH HOUSE ( KISIMUL GROUP LTD),CARE ESTABLISHMENT,LD - South Locality - Cost of Care,LD - South Cambs - Care,Residential Care
Cambridgeshire County Council,04-Sep-20,51301418913,"-2,542.70",AN DARACH HOUSE ( KISIMUL GROUP LTD),CARE ESTABLISHMENT,LD - South Locality - Cost of Care,LD - South Cambs - Care,Residential Care
Cambridgeshire County Council,04-Sep-20,51301418913,"-2,542.70",AN DARACH HOUSE ( KISIMUL GROUP LTD),CARE ESTABLISHMENT,LD - South Locality - Cost of Care,LD - South Cambs - Care,Residential Care
Cambridgeshire County Council,04-Sep-20,51301418913,"-2,542.70",AN DARACH HOUSE ( KISIMUL GROUP LTD),CARE ESTABLISHMENT,LD - South Locality - Cost of Care,LD - South Cambs - Care,Residential Care
Cambridgeshire County Council,04-Sep-20,51301418913,"-2,542.70",AN DARACH HOUSE ( KISIMUL GROUP LTD),CARE ESTABLISHMENT,LD - South Locality - Cost of Care,LD - South Cambs - Care,Residential Care
Cambridgeshire County Council,04-Sep-20,51301418913,"-2,542.70",AN DARACH HOUSE ( KISIMUL GROUP LTD),CARE ESTABLISHMENT,LD - South Locality - Cost of Care,LD - South Cambs - Care,Residential Care
Cambridgeshire County Council,04-Sep-20,51301418913,"-2,542.70",AN DARACH HOUSE ( KISIMUL GROUP LTD),CARE ESTABLISHMENT,LD - South Locality - Cost of Care,LD - South Cambs - Care,Residential Care
Cambridgeshire County Council,04-Sep-20,51301418913,"-2,542.70",AN DARACH HOUSE ( KISIMUL GROUP LTD),CARE ESTABLISHMENT,LD - South Locality - Cost of Care,LD - South Cambs - Care,Residential Care
Cambridgeshire County Council,04-Sep-20,51301418913,"-2,542.70",AN DARACH HOUSE ( KISIMUL GROUP LTD),CARE ESTABLISHMENT,LD - South Locality - Cost of Care,LD - South Cambs - Care,Residential Care
Cambridgeshire County Council,04-Sep-20,51301418913,"-2,542.70",AN DARACH HOUSE ( KISIMUL GROUP LTD),CARE ESTABLISHMENT,LD - South Locality - Cost of Care,LD - South Cambs - Care,Residential Care
Cambridgeshire County Council,04-Sep-20,51301418913,"-2,542.70",AN DARACH HOUSE ( KISIMUL GROUP LTD),CARE ESTABLISHMENT,LD - South Locality - Cost of Care,LD - South Cambs - Care,Residential Care
Cambridgeshire County Council,04-Sep-20,51301418913,"-2,542.70",AN DARACH HOUSE ( KISIMUL GROUP LTD),CARE ESTABLISHMENT,LD - South Locality - Cost of Care,LD - South Cambs - Care,Residential Care
Cambridgeshire County Council,04-Sep-20,51301418913,"-2,542.70",AN DARACH HOUSE ( KISIMUL GROUP LTD),CARE ESTABLISHMENT,LD - South Locality - Cost of Care,LD - South Cambs - Care,Residential Care
Cambridgeshire County Council,04-Sep-20,51301418913,"-2,542.70",AN DARACH HOUSE ( KISIMUL GROUP LTD),CARE ESTABLISHMENT,LD - South Locality - Cost of Care,LD - South Cambs - Care,Residential Care
Cambridgeshire County Council,04-Sep-20,51301418913,"-2,542.70",AN DARACH HOUSE ( KISIMUL GROUP LTD),CARE ESTABLISHMENT,LD - South Locality - Cost of Care,LD - South Cambs - Care,Residential Care
Cambridgeshire County Council,04-Sep-20,51301418913,"-2,542.70",AN DARACH HOUSE ( KISIMUL GROUP LTD),CARE ESTABLISHMENT,LD - South Locality - Cost of Care,LD - South Cambs - Care,Residential Care
Cambridgeshire County Council,04-Sep-20,51301418913,"-2,542.70",AN DARACH HOUSE ( KISIMUL GROUP LTD),CARE ESTABLISHMENT,LD - South Locality - Cost of Care,LD - South Cambs - Care,Residential Care
Cambridgeshire County Council,04-Sep-20,51301418913,"-2,542.70",AN DARACH HOUSE ( KISIMUL GROUP LTD),CARE ESTABLISHMENT,LD - South Locality - Cost of Care,LD - South Cambs - Care,Residential Care
Cambridgeshire County Council,04-Sep-20,51301418913,"-2,542.70",AN DARACH HOUSE ( KISIMUL GROUP LTD),CARE ESTABLISHMENT,LD - South Locality - Cost of Care,LD - South Cambs - Care,Residential Care
Cambridgeshire County Council,04-Sep-20,51301418913,"-2,542.70",AN DARACH HOUSE ( KISIMUL GROUP LTD),CARE ESTABLISHMENT,LD - South Locality - Cost of Care,LD - South Cambs - Care,Residential Care
Cambridgeshire County Council,04-Sep-20,51301418913,"-2,542.70",AN DARACH HOUSE ( KISIMUL GROUP LTD),CARE ESTABLISHMENT,LD - South Locality - Cost of Care,LD - South Cambs - Care,Residential Care
Cambridgeshire County Council,04-Sep-20,51301418913,"-2,542.70",AN DARACH HOUSE ( KISIMUL GROUP LTD),CARE ESTABLISHMENT,LD - South Locality - Cost of Care,LD - South Cambs - Care,Residential Care
Cambridgeshire County Council,04-Sep-20,51301418913,"-2,542.70",AN DARACH HOUSE ( KISIMUL GROUP LTD),CARE ESTABLISHMENT,LD - South Locality - Cost of Care,LD - South Cambs - Care,Residential Care
Cambridgeshire County Council,04-Sep-20,51301418913,"-2,542.70",AN DARACH HOUSE ( KISIMUL GROUP LTD),CARE ESTABLISHMENT,LD - South Locality - Cost of Care,LD - South Cambs - Care,Residential Care
Cambridgeshire County Council,04-Sep-20,51301418913,"-2,542.70",AN DARACH HOUSE ( KISIMUL GROUP LTD),CARE ESTABLISHMENT,LD - South Locality - Cost of Care,LD - South Cambs - Care,Residential Care
Cambridgeshire County Council,04-Sep-20,51301418913,"-2,542.70",AN DARACH HOUSE ( KISIMUL GROUP LTD),CARE ESTABLISHMENT,LD - South Locality - Cost of Care,LD - South Cambs - Care,Residential Care
Cambridgeshire County Council,04-Sep-20,51301418913,"-2,542.70",AN DARACH HOUSE ( KISIMUL GROUP LTD),CARE ESTABLISHMENT,LD - South Locality - Cost of Care,LD - South Cambs - Care,Residential Care
Cambridgeshire County Council,04-Sep-20,51301418913,"-2,542.70",AN DARACH HOUSE ( KISIMUL GROUP LTD),CARE ESTABLISHMENT,LD - South Locality - Cost of Care,LD - South Cambs - Care,Residential Care
Cambridgeshire County Council,04-Sep-20,51301418913,"-2,542.70",AN DARACH HOUSE ( KISIMUL GROUP LTD),CARE ESTABLISHMENT,LD - South Locality - Cost of Care,LD - South Cambs - Care,Residential Care
Cambridgeshire County Council,04-Sep-20,51301418913,"-2,542.70",AN DARACH HOUSE ( KISIMUL GROUP LTD),CARE ESTABLISHMENT,LD - South Locality - Cost of Care,LD - South Cambs - Care,Residential Care
Cambridgeshire County Council,04-Sep-20,51301418913,"-2,542.70",AN DARACH HOUSE ( KISIMUL GROUP LTD),CARE ESTABLISHMENT,LD - South Locality - Cost of Care,LD - South Cambs - Care,Residential Care
Cambridgeshire County Council,04-Sep-20,51301418913,"-2,542.70",AN DARACH HOUSE ( KISIMUL GROUP LTD),CARE ESTABLISHMENT,LD - South Locality - Cost of Care,LD - South Cambs - Care,Residential Care
Cambridgeshire County Council,04-Sep-20,51301418913,"-2,542.70",AN DARACH HOUSE ( KISIMUL GROUP LTD),CARE ESTABLISHMENT,LD - South Locality - Cost of Care,LD - South Cambs - Care,Residential Care
Cambridgeshire County Council,04-Sep-20,51301418913,"-2,542.70",AN DARACH HOUSE ( KISIMUL GROUP LTD),CARE ESTABLISHMENT,LD - South Locality - Cost of Care,LD - South Cambs - Care,Residential Care
Cambridgeshire County Council,04-Sep-20,51301418913,"-2,542.70",AN DARACH HOUSE ( KISIMUL GROUP LTD),CARE ESTABLISHMENT,LD - South Locality - Cost of Care,LD - South Cambs - Care,Residential Care
Cambridgeshire County Council,04-Sep-20,51301418913,"-2,542.70",AN DARACH HOUSE ( KISIMUL GROUP LTD),CARE ESTABLISHMENT,LD - South Locality - Cost of Care,LD - South Cambs - Care,Residential Care
Cambridgeshire County Council,04-Sep-20,51301418913,"-2,542.70",AN DARACH HOUSE ( KISIMUL GROUP LTD),CARE ESTABLISHMENT,LD - South Locality - Cost of Care,LD - South Cambs - Care,Residential Care
Cambridgeshire County Council,04-Sep-20,51301418913,"-2,542.70",AN DARACH HOUSE ( KISIMUL GROUP LTD),CARE ESTABLISHMENT,LD - South Locality - Cost of Care,LD - South Cambs - Care,Residential Care
Cambridgeshire County Council,04-Sep-20,51301418913,"-2,542.70",AN DARACH HOUSE ( KISIMUL GROUP LTD),CARE ESTABLISHMENT,LD - South Locality - Cost of Care,LD - South Cambs - Care,Residential Care
Cambridgeshire County Council,04-Sep-20,51301418913,"-2,542.70",AN DARACH HOUSE ( KISIMUL GROUP LTD),CARE ESTABLISHMENT,LD - South Locality - Cost of Care,LD - South Cambs - Care,Residential Care
Cambridgeshire County Council,04-Sep-20,51301418913,"-2,542.70",AN DARACH HOUSE ( KISIMUL GROUP LTD),CARE ESTABLISHMENT,LD - South Locality - Cost of Care,LD - South Cambs - Care,Residential Care
Cambridgeshire County Council,04-Sep-20,51301418913,"-2,542.70",AN DARACH HOUSE ( KISIMUL GROUP LTD),CARE ESTABLISHMENT,LD - South Locality - Cost of Care,LD - South Cambs - Care,Residential Care
Cambridgeshire County Council,04-Sep-20,51301418913,"-2,542.70",AN DARACH HOUSE ( KISIMUL GROUP LTD),CARE ESTABLISHMENT,LD - South Locality - Cost of Care,LD - South Cambs - Care,Residential Care
Cambridgeshire County Council,04-Sep-20,51301418913,"-2,542.70",AN DARACH HOUSE ( KISIMUL GROUP LTD),CARE ESTABLISHMENT,LD - South Locality - Cost of Care,LD - South Cambs - Care,Residential Care
Cambridgeshire County Council,04-Sep-20,51301418913,"-2,542.70",AN DARACH HOUSE ( KISIMUL GROUP LTD),CARE ESTABLISHMENT,LD - South Locality - Cost of Care,LD - South Cambs - Care,Residential Care
Cambridgeshire County Council,04-Sep-20,51301418913,"-2,542.70",AN DARACH HOUSE ( KISIMUL GROUP LTD),CARE ESTABLISHMENT,LD - South Locality - Cost of Care,LD - South Cambs - Care,Residential Care
Cambridgeshire County Council,04-Sep-20,51301418913,"-2,542.70",AN DARACH HOUSE ( KISIMUL GROUP LTD),CARE ESTABLISHMENT,LD - South Locality - Cost of Care,LD - South Cambs - Care,Residential Care
Cambridgeshire County Council,04-Sep-20,51301418913,"-2,542.70",AN DARACH HOUSE ( KISIMUL GROUP LTD),CARE ESTABLISHMENT,LD - South Locality - Cost of Care,LD - South Cambs - Care,Residential Care
Cambridgeshire County Council,04-Sep-20,51301418913,"-2,542.70",AN DARACH HOUSE ( KISIMUL GROUP LTD),CARE ESTABLISHMENT,LD - South Locality - Cost of Care,LD - South Cambs - Care,Residential Care
Cambridgeshire County Council,04-Sep-20,51301418913,"-2,542.70",AN DARACH HOUSE ( KISIMUL GROUP LTD),CARE ESTABLISHMENT,LD - South Locality - Cost of Care,LD - South Cambs - Care,Residential Care
Cambridgeshire County Council,04-Sep-20,51301418913,"-2,542.70",AN DARACH HOUSE ( KISIMUL GROUP LTD),CARE ESTABLISHMENT,LD - South Locality - Cost of Care,LD - South Cambs - Care,Residential Care
Cambridgeshire County Council,04-Sep-20,51301418913,"-2,542.70",AN DARACH HOUSE ( KISIMUL GROUP LTD),CARE ESTABLISHMENT,LD - South Locality - Cost of Care,LD - South Cambs - Care,Residential Care
Cambridgeshire County Council,04-Sep-20,51301418913,"-2,542.70",AN DARACH HOUSE ( KISIMUL GROUP LTD),CARE ESTABLISHMENT,LD - South Locality - Cost of Care,LD - South Cambs - Care,Residential Care
Cambridgeshire County Council,04-Sep-20,51301418913,"-2,542.70",AN DARACH HOUSE ( KISIMUL GROUP LTD),CARE ESTABLISHMENT,LD - South Locality - Cost of Care,LD - South Cambs - Care,Residential Care
Cambridgeshire County Council,04-Sep-20,51301418913,"-2,542.70",AN DARACH HOUSE ( KISIMUL GROUP LTD),CARE ESTABLISHMENT,LD - South Locality - Cost of Care,LD - South Cambs - Care,Residential Care
Cambridgeshire County Council,04-Sep-20,51301418913,"-2,542.70",AN DARACH HOUSE ( KISIMUL GROUP LTD),CARE ESTABLISHMENT,LD - South Locality - Cost of Care,LD - South Cambs - Care,Residential Care
Cambridgeshire County Council,04-Sep-20,51301418913,"-2,542.70",AN DARACH HOUSE ( KISIMUL GROUP LTD),CARE ESTABLISHMENT,LD - South Locality - Cost of Care,LD - South Cambs - Care,Residential Care
Cambridgeshire County Council,04-Sep-20,51301418913,"-2,542.70",AN DARACH HOUSE ( KISIMUL GROUP LTD),CARE ESTABLISHMENT,LD - South Locality - Cost of Care,LD - South Cambs - Care,Residential Care
Cambridgeshire County Council,04-Sep-20,51301418913,"-2,542.70",AN DARACH HOUSE ( KISIMUL GROUP LTD),CARE ESTABLISHMENT,LD - South Locality - Cost of Care,LD - South Cambs - Care,Residential Care
Cambridgeshire County Council,04-Sep-20,51301418913,"-2,542.70",AN DARACH HOUSE ( KISIMUL GROUP LTD),CARE ESTABLISHMENT,LD - South Locality - Cost of Care,LD - South Cambs - Care,Residential Care
Cambridgeshire County Council,04-Sep-20,51301418913,"-2,542.70",AN DARACH HOUSE ( KISIMUL GROUP LTD),CARE ESTABLISHMENT,LD - South Locality - Cost of Care,LD - South Cambs - Care,Residential Care
Cambridgeshire County Council,04-Sep-20,51301418913,"-2,542.70",AN DARACH HOUSE ( KISIMUL GROUP LTD),CARE ESTABLISHMENT,LD - South Locality - Cost of Care,LD - South Cambs - Care,Residential Care
Cambridgeshire County Council,04-Sep-20,51301418913,"-2,542.70",AN DARACH HOUSE ( KISIMUL GROUP LTD),CARE ESTABLISHMENT,LD - South Locality - Cost of Care,LD - South Cambs - Care,Residential Care
Cambridgeshire County Council,04-Sep-20,51301418913,"-2,542.70",AN DARACH HOUSE ( KISIMUL GROUP LTD),CARE ESTABLISHMENT,LD - South Locality - Cost of Care,LD - South Cambs - Care,Residential Care
Cambridgeshire County Council,04-Sep-20,51301418913,"-2,542.70",AN DARACH HOUSE ( KISIMUL GROUP LTD),CARE ESTABLISHMENT,LD - South Locality - Cost of Care,LD - South Cambs - Care,Residential Care
Cambridgeshire County Council,04-Sep-20,51301418913,"-2,542.70",AN DARACH HOUSE ( KISIMUL GROUP LTD),CARE ESTABLISHMENT,LD - South Locality - Cost of Care,LD - South Cambs - Care,Residential Care
Cambridgeshire County Council,04-Sep-20,51301418913,"-2,542.70",AN DARACH HOUSE ( KISIMUL GROUP LTD),CARE ESTABLISHMENT,LD - South Locality - Cost of Care,LD - South Cambs - Care,Residential Care
Cambridgeshire County Council,04-Sep-20,51301418913,"-2,542.70",AN DARACH HOUSE ( KISIMUL GROUP LTD),CARE ESTABLISHMENT,LD - South Locality - Cost of Care,LD - South Cambs - Care,Residential Care
Cambridgeshire County Council,04-Sep-20,51301418913,"-2,542.70",AN DARACH HOUSE ( KISIMUL GROUP LTD),CARE ESTABLISHMENT,LD - South Locality - Cost of Care,LD - South Cambs - Care,Residential Care
Cambridgeshire County Council,04-Sep-20,51301418913,"-2,542.70",AN DARACH HOUSE ( KISIMUL GROUP LTD),CARE ESTABLISHMENT,LD - South Locality - Cost of Care,LD - South Cambs - Care,Residential Care
Cambridgeshire County Council,04-Sep-20,51301418913,"-2,542.70",AN DARACH HOUSE ( KISIMUL GROUP LTD),CARE ESTABLISHMENT,LD - South Locality - Cost of Care,LD - South Cambs - Care,Residential Care
Cambridgeshire County Council,04-Sep-20,51301418913,"-2,542.70",AN DARACH HOUSE ( KISIMUL GROUP LTD),CARE ESTABLISHMENT,LD - South Locality - Cost of Care,LD - South Cambs - Care,Residential Care
Cambridgeshire County Council,04-Sep-20,51301418913,"-2,542.70",AN DARACH HOUSE ( KISIMUL GROUP LTD),CARE ESTABLISHMENT,LD - South Locality - Cost of Care,LD - South Cambs - Care,Residential Care
Cambridgeshire County Council,04-Sep-20,51301418913,"-2,542.70",AN DARACH HOUSE ( KISIMUL GROUP LTD),CARE ESTABLISHMENT,LD - South Locality - Cost of Care,LD - South Cambs - Care,Residential Care
Cambridgeshire County Council,04-Sep-20,51301418913,"-2,542.70",AN DARACH HOUSE ( KISIMUL GROUP LTD),CARE ESTABLISHMENT,LD - South Locality - Cost of Care,LD - South Cambs - Care,Residential Care
Cambridgeshire County Council,24-Sep-20,51301440161,"-2,395.00",Chartwell Care Services Ltd,CARE ESTABLISHMENT,LD - Young Adults Team,LD - Young Adults - Care,Residential Care
Cambridgeshire County Council,24-Sep-20,51301440161,"-2,395.00",Chartwell Care Services Ltd,CARE ESTABLISHMENT,LD - Young Adults Team,LD - Young Adults - Care,Residential Care
Cambridgeshire County Council,24-Sep-20,51301440161,"-2,395.00",Chartwell Care Services Ltd,CARE ESTABLISHMENT,LD - Young Adults Team,LD - Young Adults - Care,Residential Care
Cambridgeshire County Council,24-Sep-20,51301440161,"-2,395.00",Chartwell Care Services Ltd,CARE ESTABLISHMENT,LD - Young Adults Team,LD - Young Adults - Care,Residential Care
Cambridgeshire County Council,24-Sep-20,51301440161,"-2,395.00",Chartwell Care Services Ltd,CARE ESTABLISHMENT,LD - Young Adults Team,LD - Young Adults - Care,Residential Care
Cambridgeshire County Council,24-Sep-20,51301440161,"-2,395.00",Chartwell Care Services Ltd,CARE ESTABLISHMENT,LD - Young Adults Team,LD - Young Adults - Care,Residential Care
Cambridgeshire County Council,24-Sep-20,51301440161,"-2,395.00",Chartwell Care Services Ltd,CARE ESTABLISHMENT,LD - Young Adults Team,LD - Young Adults - Care,Residential Care
Cambridgeshire County Council,24-Sep-20,51301440161,"-2,395.00",Chartwell Care Services Ltd,CARE ESTABLISHMENT,LD - Young Adults Team,LD - Young Adults - Care,Residential Care
Cambridgeshire County Council,24-Sep-20,51301440161,"-2,395.00",Chartwell Care Services Ltd,CARE ESTABLISHMENT,LD - Young Adults Team,LD - Young Adults - Care,Residential Care
Cambridgeshire County Council,24-Sep-20,51301440161,"-2,395.00",Chartwell Care Services Ltd,CARE ESTABLISHMENT,LD - Young Adults Team,LD - Young Adults - Care,Residential Care
Cambridgeshire County Council,24-Sep-20,51301440161,"-2,395.00",Chartwell Care Services Ltd,CARE ESTABLISHMENT,LD - Young Adults Team,LD - Young Adults - Care,Residential Care
Cambridgeshire County Council,24-Sep-20,51301440161,"-2,395.00",Chartwell Care Services Ltd,CARE ESTABLISHMENT,LD - Young Adults Team,LD - Young Adults - Care,Residential Care
Cambridgeshire County Council,24-Sep-20,51301440161,"-2,395.00",Chartwell Care Services Ltd,CARE ESTABLISHMENT,LD - Young Adults Team,LD - Young Adults - Care,Residential Care
Cambridgeshire County Council,24-Sep-20,51301440161,"-2,395.00",Chartwell Care Services Ltd,CARE ESTABLISHMENT,LD - Young Adults Team,LD - Young Adults - Care,Residential Care
Cambridgeshire County Council,24-Sep-20,51301440161,"-2,395.00",Chartwell Care Services Ltd,CARE ESTABLISHMENT,LD - Young Adults Team,LD - Young Adults - Care,Residential Care
Cambridgeshire County Council,24-Sep-20,51301440161,"-2,395.00",Chartwell Care Services Ltd,CARE ESTABLISHMENT,LD - Young Adults Team,LD - Young Adults - Care,Residential Care
Cambridgeshire County Council,24-Sep-20,51301440161,"-2,395.00",Chartwell Care Services Ltd,CARE ESTABLISHMENT,LD - Young Adults Team,LD - Young Adults - Care,Residential Care
Cambridgeshire County Council,24-Sep-20,51301440161,"-2,395.00",Chartwell Care Services Ltd,CARE ESTABLISHMENT,LD - Young Adults Team,LD - Young Adults - Care,Residential Care
Cambridgeshire County Council,24-Sep-20,51301440161,"-2,395.00",Chartwell Care Services Ltd,CARE ESTABLISHMENT,LD - Young Adults Team,LD - Young Adults - Care,Residential Care
Cambridgeshire County Council,24-Sep-20,51301440161,"-2,395.00",Chartwell Care Services Ltd,CARE ESTABLISHMENT,LD - Young Adults Team,LD - Young Adults - Care,Residential Care
Cambridgeshire County Council,24-Sep-20,51301440161,"-2,395.00",Chartwell Care Services Ltd,CARE ESTABLISHMENT,LD - Young Adults Team,LD - Young Adults - Care,Residential Care
Cambridgeshire County Council,24-Sep-20,51301440161,"-2,395.00",Chartwell Care Services Ltd,CARE ESTABLISHMENT,LD - Young Adults Team,LD - Young Adults - Care,Residential Care
Cambridgeshire County Council,24-Sep-20,51301440161,"-2,395.00",Chartwell Care Services Ltd,CARE ESTABLISHMENT,LD - Young Adults Team,LD - Young Adults - Care,Residential Care
Cambridgeshire County Council,14-Sep-20,51301425301,"-2,328.00",WATERMAN ASPEN LTD,TRADE SUPPLIER,Highways Development Management,Highways Development Management,Professional Fees and Hired Services
Cambridgeshire County Council,04-Sep-20,51301433423,"-2,326.80",VOYAGE,CARE ESTABLISHMENT,LD - Hunts Locality - Cost of Care,LD - Huntingdonshire - Care,Supported Living
Cambridgeshire County Council,04-Sep-20,51301433423,"-2,326.80",VOYAGE,CARE ESTABLISHMENT,LD - Hunts Locality - Cost of Care,LD - Huntingdonshire - Care,Supported Living
Cambridgeshire County Council,04-Sep-20,51301433423,"-2,326.80",VOYAGE,CARE ESTABLISHMENT,LD - Hunts Locality - Cost of Care,LD - Huntingdonshire - Care,Supported Living
Cambridgeshire County Council,04-Sep-20,51301433423,"-2,326.80",VOYAGE,CARE ESTABLISHMENT,LD - Hunts Locality - Cost of Care,LD - Huntingdonshire - Care,Supported Living
Cambridgeshire County Council,04-Sep-20,51301433423,"-2,326.80",VOYAGE,CARE ESTABLISHMENT,LD - Hunts Locality - Cost of Care,LD - Huntingdonshire - Care,Supported Living
Cambridgeshire County Council,04-Sep-20,51301433423,"-2,326.80",VOYAGE,CARE ESTABLISHMENT,LD - Hunts Locality - Cost of Care,LD - Huntingdonshire - Care,Supported Living
Cambridgeshire County Council,04-Sep-20,51301433423,"-2,326.80",VOYAGE,CARE ESTABLISHMENT,LD - Hunts Locality - Cost of Care,LD - Huntingdonshire - Care,Supported Living
Cambridgeshire County Council,04-Sep-20,51301433423,"-2,326.80",VOYAGE,CARE ESTABLISHMENT,LD - Hunts Locality - Cost of Care,LD - Huntingdonshire - Care,Supported Living
Cambridgeshire County Council,04-Sep-20,51301433485,"-2,317.11",VOYAGE,CARE ESTABLISHMENT,LD - East Locality - Cost of Care,LD - East Cambs - Care,Residential Care
Cambridgeshire County Council,04-Sep-20,51301433485,"-2,317.11",VOYAGE,CARE ESTABLISHMENT,LD - East Locality - Cost of Care,LD - East Cambs - Care,Residential Care
Cambridgeshire County Council,04-Sep-20,51301433485,"-2,317.11",VOYAGE,CARE ESTABLISHMENT,LD - East Locality - Cost of Care,LD - East Cambs - Care,Residential Care
Cambridgeshire County Council,04-Sep-20,51301433485,"-2,317.11",VOYAGE,CARE ESTABLISHMENT,LD - East Locality - Cost of Care,LD - East Cambs - Care,Residential Care
Cambridgeshire County Council,04-Sep-20,51301433485,"-2,317.11",VOYAGE,CARE ESTABLISHMENT,LD - East Locality - Cost of Care,LD - East Cambs - Care,Residential Care
Cambridgeshire County Council,04-Sep-20,51301433485,"-2,317.11",VOYAGE,CARE ESTABLISHMENT,LD - East Locality - Cost of Care,LD - East Cambs - Care,Residential Care
Cambridgeshire County Council,04-Sep-20,51301433485,"-2,317.11",VOYAGE,CARE ESTABLISHMENT,LD - East Locality - Cost of Care,LD - East Cambs - Care,Residential Care
Cambridgeshire County Council,04-Sep-20,51301433485,"-2,317.11",VOYAGE,CARE ESTABLISHMENT,LD - East Locality - Cost of Care,LD - East Cambs - Care,Residential Care
Cambridgeshire County Council,04-Sep-20,51301433460,"-2,085.43",THERA EAST ANGLIA,CARE ESTABLISHMENT,LD - Young Adults Team,LD - Young Adults - Care,Rehabilitation And Respite Care
Cambridgeshire County Council,04-Sep-20,51301431374,"-2,075.49",DIMENSIONS (UK) LTD,CARE ESTABLISHMENT,LD - South Locality - Cost of Care,LD - South Cambs - Care,Supported Living
Cambridgeshire County Council,04-Sep-20,51301431374,"-2,075.49",DIMENSIONS (UK) LTD,CARE ESTABLISHMENT,LD - South Locality - Cost of Care,LD - South Cambs - Care,Supported Living
Cambridgeshire County Council,04-Sep-20,51301431374,"-2,075.49",DIMENSIONS (UK) LTD,CARE ESTABLISHMENT,LD - South Locality - Cost of Care,LD - South Cambs - Care,Supported Living
Cambridgeshire County Council,04-Sep-20,51301431374,"-2,075.49",DIMENSIONS (UK) LTD,CARE ESTABLISHMENT,LD - South Locality - Cost of Care,LD - South Cambs - Care,Supported Living
Cambridgeshire County Council,04-Sep-20,51301431374,"-2,075.49",DIMENSIONS (UK) LTD,CARE ESTABLISHMENT,LD - South Locality - Cost of Care,LD - South Cambs - Care,Supported Living
Cambridgeshire County Council,04-Sep-20,51301431374,"-2,075.49",DIMENSIONS (UK) LTD,CARE ESTABLISHMENT,LD - South Locality - Cost of Care,LD - South Cambs - Care,Supported Living
Cambridgeshire County Council,04-Sep-20,51301431374,"-2,075.49",DIMENSIONS (UK) LTD,CARE ESTABLISHMENT,LD - South Locality - Cost of Care,LD - South Cambs - Care,Supported Living
Cambridgeshire County Council,04-Sep-20,51301431374,"-2,075.49",DIMENSIONS (UK) LTD,CARE ESTABLISHMENT,LD - South Locality - Cost of Care,LD - South Cambs - Care,Supported Living
Cambridgeshire County Council,04-Sep-20,51301431374,"-2,075.49",DIMENSIONS (UK) LTD,CARE ESTABLISHMENT,LD - South Locality - Cost of Care,LD - South Cambs - Care,Supported Living
Cambridgeshire County Council,04-Sep-20,51301431374,"-2,075.49",DIMENSIONS (UK) LTD,CARE ESTABLISHMENT,LD - South Locality - Cost of Care,LD - South Cambs - Care,Supported Living
Cambridgeshire County Council,04-Sep-20,51301431374,"-2,075.49",DIMENSIONS (UK) LTD,CARE ESTABLISHMENT,LD - South Locality - Cost of Care,LD - South Cambs - Care,Supported Living
Cambridgeshire County Council,04-Sep-20,51301431374,"-2,075.49",DIMENSIONS (UK) LTD,CARE ESTABLISHMENT,LD - South Locality - Cost of Care,LD - South Cambs - Care,Supported Living
Cambridgeshire County Council,04-Sep-20,51301431374,"-2,075.49",DIMENSIONS (UK) LTD,CARE ESTABLISHMENT,LD - South Locality - Cost of Care,LD - South Cambs - Care,Supported Living
Cambridgeshire County Council,04-Sep-20,51301431374,"-2,075.49",DIMENSIONS (UK) LTD,CARE ESTABLISHMENT,LD - South Locality - Cost of Care,LD - South Cambs - Care,Supported Living
Cambridgeshire County Council,04-Sep-20,51301431374,"-2,075.49",DIMENSIONS (UK) LTD,CARE ESTABLISHMENT,LD - South Locality - Cost of Care,LD - South Cambs - Care,Supported Living
Cambridgeshire County Council,04-Sep-20,51301431374,"-2,075.49",DIMENSIONS (UK) LTD,CARE ESTABLISHMENT,LD - South Locality - Cost of Care,LD - South Cambs - Care,Supported Living
Cambridgeshire County Council,04-Sep-20,51301431374,"-2,075.49",DIMENSIONS (UK) LTD,CARE ESTABLISHMENT,LD - South Locality - Cost of Care,LD - South Cambs - Care,Supported Living
Cambridgeshire County Council,04-Sep-20,51301431374,"-2,075.49",DIMENSIONS (UK) LTD,CARE ESTABLISHMENT,LD - South Locality - Cost of Care,LD - South Cambs - Care,Supported Living
Cambridgeshire County Council,04-Sep-20,51301431374,"-2,075.49",DIMENSIONS (UK) LTD,CARE ESTABLISHMENT,LD - South Locality - Cost of Care,LD - South Cambs - Care,Supported Living
Cambridgeshire County Council,04-Sep-20,51301431374,"-2,075.49",DIMENSIONS (UK) LTD,CARE ESTABLISHMENT,LD - South Locality - Cost of Care,LD - South Cambs - Care,Supported Living
Cambridgeshire County Council,04-Sep-20,51301431374,"-2,075.49",DIMENSIONS (UK) LTD,CARE ESTABLISHMENT,LD - South Locality - Cost of Care,LD - South Cambs - Care,Supported Living
Cambridgeshire County Council,04-Sep-20,51301431374,"-2,075.49",DIMENSIONS (UK) LTD,CARE ESTABLISHMENT,LD - South Locality - Cost of Care,LD - South Cambs - Care,Supported Living
Cambridgeshire County Council,04-Sep-20,51301431374,"-2,075.49",DIMENSIONS (UK) LTD,CARE ESTABLISHMENT,LD - South Locality - Cost of Care,LD - South Cambs - Care,Supported Living
Cambridgeshire County Council,04-Sep-20,51301431374,"-2,075.49",DIMENSIONS (UK) LTD,CARE ESTABLISHMENT,LD - South Locality - Cost of Care,LD - South Cambs - Care,Supported Living
Cambridgeshire County Council,04-Sep-20,51301431374,"-2,075.49",DIMENSIONS (UK) LTD,CARE ESTABLISHMENT,LD - South Locality - Cost of Care,LD - South Cambs - Care,Supported Living
Cambridgeshire County Council,04-Sep-20,51301431374,"-2,075.49",DIMENSIONS (UK) LTD,CARE ESTABLISHMENT,LD - South Locality - Cost of Care,LD - South Cambs - Care,Supported Living
Cambridgeshire County Council,04-Sep-20,51301431374,"-2,075.49",DIMENSIONS (UK) LTD,CARE ESTABLISHMENT,LD - South Locality - Cost of Care,LD - South Cambs - Care,Supported Living
Cambridgeshire County Council,04-Sep-20,51301431374,"-2,075.49",DIMENSIONS (UK) LTD,CARE ESTABLISHMENT,LD - South Locality - Cost of Care,LD - South Cambs - Care,Supported Living
Cambridgeshire County Council,04-Sep-20,51301431374,"-2,075.49",DIMENSIONS (UK) LTD,CARE ESTABLISHMENT,LD - South Locality - Cost of Care,LD - South Cambs - Care,Supported Living
Cambridgeshire County Council,04-Sep-20,51301431374,"-2,075.49",DIMENSIONS (UK) LTD,CARE ESTABLISHMENT,LD - South Locality - Cost of Care,LD - South Cambs - Care,Supported Living
Cambridgeshire County Council,04-Sep-20,51301431374,"-2,075.49",DIMENSIONS (UK) LTD,CARE ESTABLISHMENT,LD - South Locality - Cost of Care,LD - South Cambs - Care,Supported Living
Cambridgeshire County Council,04-Sep-20,51301431374,"-2,075.49",DIMENSIONS (UK) LTD,CARE ESTABLISHMENT,LD - South Locality - Cost of Care,LD - South Cambs - Care,Supported Living
Cambridgeshire County Council,04-Sep-20,51301431374,"-2,075.49",DIMENSIONS (UK) LTD,CARE ESTABLISHMENT,LD - South Locality - Cost of Care,LD - South Cambs - Care,Supported Living
Cambridgeshire County Council,04-Sep-20,51301431374,"-2,075.49",DIMENSIONS (UK) LTD,CARE ESTABLISHMENT,LD - South Locality - Cost of Care,LD - South Cambs - Care,Supported Living
Cambridgeshire County Council,04-Sep-20,51301431374,"-2,075.49",DIMENSIONS (UK) LTD,CARE ESTABLISHMENT,LD - South Locality - Cost of Care,LD - South Cambs - Care,Supported Living
Cambridgeshire County Council,04-Sep-20,51301431374,"-2,075.49",DIMENSIONS (UK) LTD,CARE ESTABLISHMENT,LD - South Locality - Cost of Care,LD - South Cambs - Care,Supported Living
Cambridgeshire County Council,04-Sep-20,51301431374,"-2,075.49",DIMENSIONS (UK) LTD,CARE ESTABLISHMENT,LD - South Locality - Cost of Care,LD - South Cambs - Care,Supported Living
Cambridgeshire County Council,04-Sep-20,51301431374,"-2,075.49",DIMENSIONS (UK) LTD,CARE ESTABLISHMENT,LD - South Locality - Cost of Care,LD - South Cambs - Care,Supported Living
Cambridgeshire County Council,04-Sep-20,51301431374,"-2,075.49",DIMENSIONS (UK) LTD,CARE ESTABLISHMENT,LD - South Locality - Cost of Care,LD - South Cambs - Care,Supported Living
Cambridgeshire County Council,04-Sep-20,51301431374,"-2,075.49",DIMENSIONS (UK) LTD,CARE ESTABLISHMENT,LD - South Locality - Cost of Care,LD - South Cambs - Care,Supported Living
Cambridgeshire County Council,04-Sep-20,51301431374,"-2,075.49",DIMENSIONS (UK) LTD,CARE ESTABLISHMENT,LD - South Locality - Cost of Care,LD - South Cambs - Care,Supported Living
Cambridgeshire County Council,04-Sep-20,51301431374,"-2,075.49",DIMENSIONS (UK) LTD,CARE ESTABLISHMENT,LD - South Locality - Cost of Care,LD - South Cambs - Care,Supported Living
Cambridgeshire County Council,04-Sep-20,51301431374,"-2,075.49",DIMENSIONS (UK) LTD,CARE ESTABLISHMENT,LD - South Locality - Cost of Care,LD - South Cambs - Care,Supported Living
Cambridgeshire County Council,04-Sep-20,51301431374,"-2,075.49",DIMENSIONS (UK) LTD,CARE ESTABLISHMENT,LD - South Locality - Cost of Care,LD - South Cambs - Care,Supported Living
Cambridgeshire County Council,03-Sep-20,51301427950,"-2,036.58",Keys PCE Ltd,CARE ESTABLISHMENT,LAC Placements,Placements - residential homes,Agency Placements - Out of  County
Cambridgeshire County Council,04-Sep-20,51301433468,"-1,940.32",VOYAGE,CARE ESTABLISHMENT,LD - East Locality - Cost of Care,LD - East Cambs - Care,Residential Care
Cambridgeshire County Council,04-Sep-20,51301433468,"-1,940.32",VOYAGE,CARE ESTABLISHMENT,LD - East Locality - Cost of Care,LD - East Cambs - Care,Residential Care
Cambridgeshire County Council,04-Sep-20,51301433468,"-1,940.32",VOYAGE,CARE ESTABLISHMENT,LD - East Locality - Cost of Care,LD - East Cambs - Care,Residential Care
Cambridgeshire County Council,04-Sep-20,51301433468,"-1,940.32",VOYAGE,CARE ESTABLISHMENT,LD - East Locality - Cost of Care,LD - East Cambs - Care,Residential Care
Cambridgeshire County Council,04-Sep-20,51301433468,"-1,940.32",VOYAGE,CARE ESTABLISHMENT,LD - East Locality - Cost of Care,LD - East Cambs - Care,Residential Care
Cambridgeshire County Council,04-Sep-20,51301433468,"-1,940.32",VOYAGE,CARE ESTABLISHMENT,LD - East Locality - Cost of Care,LD - East Cambs - Care,Residential Care
Cambridgeshire County Council,04-Sep-20,51301433468,"-1,940.32",VOYAGE,CARE ESTABLISHMENT,LD - East Locality - Cost of Care,LD - East Cambs - Care,Residential Care
Cambridgeshire County Council,04-Sep-20,51301433468,"-1,940.32",VOYAGE,CARE ESTABLISHMENT,LD - East Locality - Cost of Care,LD - East Cambs - Care,Residential Care
Cambridgeshire County Council,04-Sep-20,51301432498,"-1,892.22",REDMOND HOUSE (VOYAGE),CARE ESTABLISHMENT,LD - South Locality - Cost of Care,LD - South Cambs - Care,Residential Care
Cambridgeshire County Council,04-Sep-20,51301432498,"-1,892.22",REDMOND HOUSE (VOYAGE),CARE ESTABLISHMENT,LD - South Locality - Cost of Care,LD - South Cambs - Care,Residential Care
Cambridgeshire County Council,04-Sep-20,51301432498,"-1,892.22",REDMOND HOUSE (VOYAGE),CARE ESTABLISHMENT,LD - South Locality - Cost of Care,LD - South Cambs - Care,Residential Care
Cambridgeshire County Council,04-Sep-20,51301432498,"-1,892.22",REDMOND HOUSE (VOYAGE),CARE ESTABLISHMENT,LD - South Locality - Cost of Care,LD - South Cambs - Care,Residential Care
Cambridgeshire County Council,04-Sep-20,51301432498,"-1,892.22",REDMOND HOUSE (VOYAGE),CARE ESTABLISHMENT,LD - South Locality - Cost of Care,LD - South Cambs - Care,Residential Care
Cambridgeshire County Council,04-Sep-20,51301432498,"-1,892.22",REDMOND HOUSE (VOYAGE),CARE ESTABLISHMENT,LD - South Locality - Cost of Care,LD - South Cambs - Care,Residential Care
Cambridgeshire County Council,04-Sep-20,51301432498,"-1,892.22",REDMOND HOUSE (VOYAGE),CARE ESTABLISHMENT,LD - South Locality - Cost of Care,LD - South Cambs - Care,Residential Care
Cambridgeshire County Council,04-Sep-20,51301432498,"-1,892.22",REDMOND HOUSE (VOYAGE),CARE ESTABLISHMENT,LD - South Locality - Cost of Care,LD - South Cambs - Care,Residential Care
Cambridgeshire County Council,04-Sep-20,51301432498,"-1,892.22",REDMOND HOUSE (VOYAGE),CARE ESTABLISHMENT,LD - South Locality - Cost of Care,LD - South Cambs - Care,Residential Care
Cambridgeshire County Council,04-Sep-20,51301432498,"-1,892.22",REDMOND HOUSE (VOYAGE),CARE ESTABLISHMENT,LD - South Locality - Cost of Care,LD - South Cambs - Care,Residential Care
Cambridgeshire County Council,04-Sep-20,51301432498,"-1,892.22",REDMOND HOUSE (VOYAGE),CARE ESTABLISHMENT,LD - South Locality - Cost of Care,LD - South Cambs - Care,Residential Care
Cambridgeshire County Council,04-Sep-20,51301432498,"-1,892.22",REDMOND HOUSE (VOYAGE),CARE ESTABLISHMENT,LD - South Locality - Cost of Care,LD - South Cambs - Care,Residential Care
Cambridgeshire County Council,14-Sep-20,51301425302,"-1,862.40",WATERMAN ASPEN LTD,TRADE SUPPLIER,Highways Development Management,Highways Development Management,Professional Fees and Hired Services
Cambridgeshire County Council,14-Sep-20,51301436640,"-1,716.59",Redacted Personal Data ,PARENT/GUARDIAN,Physical Disablity - Cost of Care,Countywide PD Service - Care,Direct Payments
Cambridgeshire County Council,14-Sep-20,51301436640,"-1,716.59",Redacted Personal Data ,PARENT/GUARDIAN,Physical Disablity - Cost of Care,Countywide PD Service - Care,Direct Payments
Cambridgeshire County Council,14-Sep-20,51301436640,"-1,716.59",Redacted Personal Data ,PARENT/GUARDIAN,Physical Disablity - Cost of Care,Countywide PD Service - Care,Direct Payments
Cambridgeshire County Council,14-Sep-20,51301436640,"-1,716.59",Redacted Personal Data ,PARENT/GUARDIAN,Physical Disablity - Cost of Care,Countywide PD Service - Care,Direct Payments
Cambridgeshire County Council,14-Sep-20,51301436640,"-1,716.59",Redacted Personal Data ,PARENT/GUARDIAN,Physical Disablity - Cost of Care,Countywide PD Service - Care,Direct Payments
Cambridgeshire County Council,14-Sep-20,51301436640,"-1,716.59",Redacted Personal Data ,PARENT/GUARDIAN,Physical Disablity - Cost of Care,Countywide PD Service - Care,Direct Payments
Cambridgeshire County Council,14-Sep-20,51301436640,"-1,716.59",Redacted Personal Data ,PARENT/GUARDIAN,Physical Disablity - Cost of Care,Countywide PD Service - Care,Direct Payments
Cambridgeshire County Council,14-Sep-20,51301436640,"-1,716.59",Redacted Personal Data ,PARENT/GUARDIAN,Physical Disablity - Cost of Care,Countywide PD Service - Care,Direct Payments
Cambridgeshire County Council,14-Sep-20,51301436640,"-1,716.59",Redacted Personal Data ,PARENT/GUARDIAN,Physical Disablity - Cost of Care,Countywide PD Service - Care,Direct Payments
Cambridgeshire County Council,04-Sep-20,51301431374,"-1,698.14",DIMENSIONS (UK) LTD,CARE ESTABLISHMENT,LD - South Locality - Cost of Care,LD - South Cambs - Care,Supported Living
Cambridgeshire County Council,04-Sep-20,51301431374,"-1,698.14",DIMENSIONS (UK) LTD,CARE ESTABLISHMENT,LD - South Locality - Cost of Care,LD - South Cambs - Care,Supported Living
Cambridgeshire County Council,04-Sep-20,51301431374,"-1,698.14",DIMENSIONS (UK) LTD,CARE ESTABLISHMENT,LD - South Locality - Cost of Care,LD - South Cambs - Care,Supported Living
Cambridgeshire County Council,04-Sep-20,51301431374,"-1,698.14",DIMENSIONS (UK) LTD,CARE ESTABLISHMENT,LD - South Locality - Cost of Care,LD - South Cambs - Care,Supported Living
Cambridgeshire County Council,04-Sep-20,51301431374,"-1,698.14",DIMENSIONS (UK) LTD,CARE ESTABLISHMENT,LD - South Locality - Cost of Care,LD - South Cambs - Care,Supported Living
Cambridgeshire County Council,04-Sep-20,51301431374,"-1,698.14",DIMENSIONS (UK) LTD,CARE ESTABLISHMENT,LD - South Locality - Cost of Care,LD - South Cambs - Care,Supported Living
Cambridgeshire County Council,04-Sep-20,51301431374,"-1,698.14",DIMENSIONS (UK) LTD,CARE ESTABLISHMENT,LD - South Locality - Cost of Care,LD - South Cambs - Care,Supported Living
Cambridgeshire County Council,04-Sep-20,51301431374,"-1,698.14",DIMENSIONS (UK) LTD,CARE ESTABLISHMENT,LD - South Locality - Cost of Care,LD - South Cambs - Care,Supported Living
Cambridgeshire County Council,04-Sep-20,51301431374,"-1,698.14",DIMENSIONS (UK) LTD,CARE ESTABLISHMENT,LD - South Locality - Cost of Care,LD - South Cambs - Care,Supported Living
Cambridgeshire County Council,04-Sep-20,51301431374,"-1,698.14",DIMENSIONS (UK) LTD,CARE ESTABLISHMENT,LD - South Locality - Cost of Care,LD - South Cambs - Care,Supported Living
Cambridgeshire County Council,04-Sep-20,51301431374,"-1,698.14",DIMENSIONS (UK) LTD,CARE ESTABLISHMENT,LD - South Locality - Cost of Care,LD - South Cambs - Care,Supported Living
Cambridgeshire County Council,04-Sep-20,51301431374,"-1,698.14",DIMENSIONS (UK) LTD,CARE ESTABLISHMENT,LD - South Locality - Cost of Care,LD - South Cambs - Care,Supported Living
Cambridgeshire County Council,04-Sep-20,51301431374,"-1,698.14",DIMENSIONS (UK) LTD,CARE ESTABLISHMENT,LD - South Locality - Cost of Care,LD - South Cambs - Care,Supported Living
Cambridgeshire County Council,04-Sep-20,51301431374,"-1,698.14",DIMENSIONS (UK) LTD,CARE ESTABLISHMENT,LD - South Locality - Cost of Care,LD - South Cambs - Care,Supported Living
Cambridgeshire County Council,04-Sep-20,51301431374,"-1,698.14",DIMENSIONS (UK) LTD,CARE ESTABLISHMENT,LD - South Locality - Cost of Care,LD - South Cambs - Care,Supported Living
Cambridgeshire County Council,04-Sep-20,51301431374,"-1,698.14",DIMENSIONS (UK) LTD,CARE ESTABLISHMENT,LD - South Locality - Cost of Care,LD - South Cambs - Care,Supported Living
Cambridgeshire County Council,04-Sep-20,51301431374,"-1,698.14",DIMENSIONS (UK) LTD,CARE ESTABLISHMENT,LD - South Locality - Cost of Care,LD - South Cambs - Care,Supported Living
Cambridgeshire County Council,04-Sep-20,51301431374,"-1,698.14",DIMENSIONS (UK) LTD,CARE ESTABLISHMENT,LD - South Locality - Cost of Care,LD - South Cambs - Care,Supported Living
Cambridgeshire County Council,04-Sep-20,51301431374,"-1,698.14",DIMENSIONS (UK) LTD,CARE ESTABLISHMENT,LD - South Locality - Cost of Care,LD - South Cambs - Care,Supported Living
Cambridgeshire County Council,04-Sep-20,51301431374,"-1,698.14",DIMENSIONS (UK) LTD,CARE ESTABLISHMENT,LD - South Locality - Cost of Care,LD - South Cambs - Care,Supported Living
Cambridgeshire County Council,04-Sep-20,51301431374,"-1,698.14",DIMENSIONS (UK) LTD,CARE ESTABLISHMENT,LD - South Locality - Cost of Care,LD - South Cambs - Care,Supported Living
Cambridgeshire County Council,04-Sep-20,51301431374,"-1,698.14",DIMENSIONS (UK) LTD,CARE ESTABLISHMENT,LD - South Locality - Cost of Care,LD - South Cambs - Care,Supported Living
Cambridgeshire County Council,04-Sep-20,51301431374,"-1,698.14",DIMENSIONS (UK) LTD,CARE ESTABLISHMENT,LD - South Locality - Cost of Care,LD - South Cambs - Care,Supported Living
Cambridgeshire County Council,04-Sep-20,51301431374,"-1,698.14",DIMENSIONS (UK) LTD,CARE ESTABLISHMENT,LD - South Locality - Cost of Care,LD - South Cambs - Care,Supported Living
Cambridgeshire County Council,04-Sep-20,51301431374,"-1,698.14",DIMENSIONS (UK) LTD,CARE ESTABLISHMENT,LD - South Locality - Cost of Care,LD - South Cambs - Care,Supported Living
Cambridgeshire County Council,04-Sep-20,51301431374,"-1,698.14",DIMENSIONS (UK) LTD,CARE ESTABLISHMENT,LD - South Locality - Cost of Care,LD - South Cambs - Care,Supported Living
Cambridgeshire County Council,04-Sep-20,51301431374,"-1,698.14",DIMENSIONS (UK) LTD,CARE ESTABLISHMENT,LD - South Locality - Cost of Care,LD - South Cambs - Care,Supported Living
Cambridgeshire County Council,04-Sep-20,51301431374,"-1,698.14",DIMENSIONS (UK) LTD,CARE ESTABLISHMENT,LD - South Locality - Cost of Care,LD - South Cambs - Care,Supported Living
Cambridgeshire County Council,04-Sep-20,51301431374,"-1,698.14",DIMENSIONS (UK) LTD,CARE ESTABLISHMENT,LD - South Locality - Cost of Care,LD - South Cambs - Care,Supported Living
Cambridgeshire County Council,04-Sep-20,51301431374,"-1,698.14",DIMENSIONS (UK) LTD,CARE ESTABLISHMENT,LD - South Locality - Cost of Care,LD - South Cambs - Care,Supported Living
Cambridgeshire County Council,04-Sep-20,51301431374,"-1,698.14",DIMENSIONS (UK) LTD,CARE ESTABLISHMENT,LD - South Locality - Cost of Care,LD - South Cambs - Care,Supported Living
Cambridgeshire County Council,04-Sep-20,51301431374,"-1,698.14",DIMENSIONS (UK) LTD,CARE ESTABLISHMENT,LD - South Locality - Cost of Care,LD - South Cambs - Care,Supported Living
Cambridgeshire County Council,04-Sep-20,51301431374,"-1,698.14",DIMENSIONS (UK) LTD,CARE ESTABLISHMENT,LD - South Locality - Cost of Care,LD - South Cambs - Care,Supported Living
Cambridgeshire County Council,04-Sep-20,51301431374,"-1,698.14",DIMENSIONS (UK) LTD,CARE ESTABLISHMENT,LD - South Locality - Cost of Care,LD - South Cambs - Care,Supported Living
Cambridgeshire County Council,04-Sep-20,51301431374,"-1,698.14",DIMENSIONS (UK) LTD,CARE ESTABLISHMENT,LD - South Locality - Cost of Care,LD - South Cambs - Care,Supported Living
Cambridgeshire County Council,04-Sep-20,51301431374,"-1,698.14",DIMENSIONS (UK) LTD,CARE ESTABLISHMENT,LD - South Locality - Cost of Care,LD - South Cambs - Care,Supported Living
Cambridgeshire County Council,04-Sep-20,51301431374,"-1,698.14",DIMENSIONS (UK) LTD,CARE ESTABLISHMENT,LD - South Locality - Cost of Care,LD - South Cambs - Care,Supported Living
Cambridgeshire County Council,04-Sep-20,51301431374,"-1,698.14",DIMENSIONS (UK) LTD,CARE ESTABLISHMENT,LD - South Locality - Cost of Care,LD - South Cambs - Care,Supported Living
Cambridgeshire County Council,04-Sep-20,51301431374,"-1,698.14",DIMENSIONS (UK) LTD,CARE ESTABLISHMENT,LD - South Locality - Cost of Care,LD - South Cambs - Care,Supported Living
Cambridgeshire County Council,04-Sep-20,51301431374,"-1,698.14",DIMENSIONS (UK) LTD,CARE ESTABLISHMENT,LD - South Locality - Cost of Care,LD - South Cambs - Care,Supported Living
Cambridgeshire County Council,04-Sep-20,51301431374,"-1,698.14",DIMENSIONS (UK) LTD,CARE ESTABLISHMENT,LD - South Locality - Cost of Care,LD - South Cambs - Care,Supported Living
Cambridgeshire County Council,04-Sep-20,51301431374,"-1,698.14",DIMENSIONS (UK) LTD,CARE ESTABLISHMENT,LD - South Locality - Cost of Care,LD - South Cambs - Care,Supported Living
Cambridgeshire County Council,04-Sep-20,51301431374,"-1,698.14",DIMENSIONS (UK) LTD,CARE ESTABLISHMENT,LD - South Locality - Cost of Care,LD - South Cambs - Care,Supported Living
Cambridgeshire County Council,04-Sep-20,51301431374,"-1,698.14",DIMENSIONS (UK) LTD,CARE ESTABLISHMENT,LD - South Locality - Cost of Care,LD - South Cambs - Care,Supported Living
Cambridgeshire County Council,09-Sep-20,51301426271,"-1,623.91",PHS GROUP PLC,TRADE SUPPLIER,Professional Development Centres,Professional Development Centre - Cambri,Specialist Waste Disposal
Cambridgeshire County Council,04-Sep-20,51301433660,"-1,601.35",VOYAGE,CARE ESTABLISHMENT,LD - East Locality - Cost of Care,LD - East Cambs - Care,Residential Care
Cambridgeshire County Council,04-Sep-20,51301433660,"-1,601.35",VOYAGE,CARE ESTABLISHMENT,LD - East Locality - Cost of Care,LD - East Cambs - Care,Residential Care
Cambridgeshire County Council,04-Sep-20,51301433660,"-1,601.35",VOYAGE,CARE ESTABLISHMENT,LD - East Locality - Cost of Care,LD - East Cambs - Care,Residential Care
Cambridgeshire County Council,04-Sep-20,51301433660,"-1,601.35",VOYAGE,CARE ESTABLISHMENT,LD - East Locality - Cost of Care,LD - East Cambs - Care,Residential Care
Cambridgeshire County Council,04-Sep-20,51301433660,"-1,601.35",VOYAGE,CARE ESTABLISHMENT,LD - East Locality - Cost of Care,LD - East Cambs - Care,Residential Care
Cambridgeshire County Council,04-Sep-20,51301433660,"-1,601.35",VOYAGE,CARE ESTABLISHMENT,LD - East Locality - Cost of Care,LD - East Cambs - Care,Residential Care
Cambridgeshire County Council,04-Sep-20,51301433660,"-1,601.35",VOYAGE,CARE ESTABLISHMENT,LD - East Locality - Cost of Care,LD - East Cambs - Care,Residential Care
Cambridgeshire County Council,04-Sep-20,51301433660,"-1,601.35",VOYAGE,CARE ESTABLISHMENT,LD - East Locality - Cost of Care,LD - East Cambs - Care,Residential Care
Cambridgeshire County Council,04-Sep-20,51301433739,"-1,600.00",CAMBRIDGE MANOR CARE HOME (TLC),CARE ESTABLISHMENT,OPMH - City & South,Older People Mental Health City & South,Nursing Care
Cambridgeshire County Council,04-Sep-20,51301433739,"-1,600.00",CAMBRIDGE MANOR CARE HOME (TLC),CARE ESTABLISHMENT,OPMH - City & South,Older People Mental Health City & South,Nursing Care
Cambridgeshire County Council,04-Sep-20,51301433739,"-1,600.00",CAMBRIDGE MANOR CARE HOME (TLC),CARE ESTABLISHMENT,OPMH - City & South,Older People Mental Health City & South,Nursing Care
Cambridgeshire County Council,04-Sep-20,51301433739,"-1,600.00",CAMBRIDGE MANOR CARE HOME (TLC),CARE ESTABLISHMENT,OPMH - City & South,Older People Mental Health City & South,Nursing Care
Cambridgeshire County Council,04-Sep-20,51301433739,"-1,600.00",CAMBRIDGE MANOR CARE HOME (TLC),CARE ESTABLISHMENT,OPMH - City & South,Older People Mental Health City & South,Nursing Care
Cambridgeshire County Council,14-Sep-20,51301436640,"-1,560.54",Redacted Personal Data ,PARENT/GUARDIAN,Physical Disablity - Cost of Care,Countywide PD Service - Care,Direct Payments
Cambridgeshire County Council,14-Sep-20,51301436640,"-1,560.54",Redacted Personal Data ,PARENT/GUARDIAN,Physical Disablity - Cost of Care,Countywide PD Service - Care,Direct Payments
Cambridgeshire County Council,14-Sep-20,51301436640,"-1,560.54",Redacted Personal Data ,PARENT/GUARDIAN,Physical Disablity - Cost of Care,Countywide PD Service - Care,Direct Payments
Cambridgeshire County Council,14-Sep-20,51301436640,"-1,560.54",Redacted Personal Data ,PARENT/GUARDIAN,Physical Disablity - Cost of Care,Countywide PD Service - Care,Direct Payments
Cambridgeshire County Council,14-Sep-20,51301436640,"-1,560.54",Redacted Personal Data ,PARENT/GUARDIAN,Physical Disablity - Cost of Care,Countywide PD Service - Care,Direct Payments
Cambridgeshire County Council,14-Sep-20,51301436640,"-1,560.54",Redacted Personal Data ,PARENT/GUARDIAN,Physical Disablity - Cost of Care,Countywide PD Service - Care,Direct Payments
Cambridgeshire County Council,14-Sep-20,51301436640,"-1,560.54",Redacted Personal Data ,PARENT/GUARDIAN,Physical Disablity - Cost of Care,Countywide PD Service - Care,Direct Payments
Cambridgeshire County Council,14-Sep-20,51301436640,"-1,560.54",Redacted Personal Data ,PARENT/GUARDIAN,Physical Disablity - Cost of Care,Countywide PD Service - Care,Direct Payments
Cambridgeshire County Council,14-Sep-20,51301436640,"-1,560.53",Redacted Personal Data ,PARENT/GUARDIAN,Physical Disablity - Cost of Care,Countywide PD Service - Care,Direct Payments
Cambridgeshire County Council,14-Sep-20,51301436640,"-1,560.53",Redacted Personal Data ,PARENT/GUARDIAN,Physical Disablity - Cost of Care,Countywide PD Service - Care,Direct Payments
Cambridgeshire County Council,14-Sep-20,51301436640,"-1,560.53",Redacted Personal Data ,PARENT/GUARDIAN,Physical Disablity - Cost of Care,Countywide PD Service - Care,Direct Payments
Cambridgeshire County Council,14-Sep-20,51301436640,"-1,560.53",Redacted Personal Data ,PARENT/GUARDIAN,Physical Disablity - Cost of Care,Countywide PD Service - Care,Direct Payments
Cambridgeshire County Council,14-Sep-20,51301436640,"-1,560.53",Redacted Personal Data ,PARENT/GUARDIAN,Physical Disablity - Cost of Care,Countywide PD Service - Care,Direct Payments
Cambridgeshire County Council,14-Sep-20,51301436640,"-1,560.53",Redacted Personal Data ,PARENT/GUARDIAN,Physical Disablity - Cost of Care,Countywide PD Service - Care,Direct Payments
Cambridgeshire County Council,14-Sep-20,51301436640,"-1,560.53",Redacted Personal Data ,PARENT/GUARDIAN,Physical Disablity - Cost of Care,Countywide PD Service - Care,Direct Payments
Cambridgeshire County Council,14-Sep-20,51301436640,"-1,560.53",Redacted Personal Data ,PARENT/GUARDIAN,Physical Disablity - Cost of Care,Countywide PD Service - Care,Direct Payments
Cambridgeshire County Council,14-Sep-20,51301436640,"-1,560.53",Redacted Personal Data ,PARENT/GUARDIAN,Physical Disablity - Cost of Care,Countywide PD Service - Care,Direct Payments
Cambridgeshire County Council,14-Sep-20,51301436640,"-1,560.53",Redacted Personal Data ,PARENT/GUARDIAN,Physical Disablity - Cost of Care,Countywide PD Service - Care,Direct Payments
Cambridgeshire County Council,14-Sep-20,51301436640,"-1,560.53",Redacted Personal Data ,PARENT/GUARDIAN,Physical Disablity - Cost of Care,Countywide PD Service - Care,Direct Payments
Cambridgeshire County Council,14-Sep-20,51301436640,"-1,560.53",Redacted Personal Data ,PARENT/GUARDIAN,Physical Disablity - Cost of Care,Countywide PD Service - Care,Direct Payments
Cambridgeshire County Council,14-Sep-20,51301436640,"-1,560.53",Redacted Personal Data ,PARENT/GUARDIAN,Physical Disablity - Cost of Care,Countywide PD Service - Care,Direct Payments
Cambridgeshire County Council,14-Sep-20,51301436640,"-1,560.53",Redacted Personal Data ,PARENT/GUARDIAN,Physical Disablity - Cost of Care,Countywide PD Service - Care,Direct Payments
Cambridgeshire County Council,04-Sep-20,51301432546,"-1,537.44",VOYAGE,CARE ESTABLISHMENT,LD - South Locality - Cost of Care,LD - South Cambs - Care,Residential Care
Cambridgeshire County Council,04-Sep-20,51301432546,"-1,537.44",VOYAGE,CARE ESTABLISHMENT,LD - South Locality - Cost of Care,LD - South Cambs - Care,Residential Care
Cambridgeshire County Council,04-Sep-20,51301432546,"-1,537.44",VOYAGE,CARE ESTABLISHMENT,LD - South Locality - Cost of Care,LD - South Cambs - Care,Residential Care
Cambridgeshire County Council,04-Sep-20,51301432546,"-1,537.44",VOYAGE,CARE ESTABLISHMENT,LD - South Locality - Cost of Care,LD - South Cambs - Care,Residential Care
Cambridgeshire County Council,04-Sep-20,51301432546,"-1,537.44",VOYAGE,CARE ESTABLISHMENT,LD - South Locality - Cost of Care,LD - South Cambs - Care,Residential Care
Cambridgeshire County Council,04-Sep-20,51301432546,"-1,537.44",VOYAGE,CARE ESTABLISHMENT,LD - South Locality - Cost of Care,LD - South Cambs - Care,Residential Care
Cambridgeshire County Council,04-Sep-20,51301432546,"-1,537.44",VOYAGE,CARE ESTABLISHMENT,LD - South Locality - Cost of Care,LD - South Cambs - Care,Residential Care
Cambridgeshire County Council,04-Sep-20,51301432546,"-1,537.44",VOYAGE,CARE ESTABLISHMENT,LD - South Locality - Cost of Care,LD - South Cambs - Care,Residential Care
Cambridgeshire County Council,04-Sep-20,51301432546,"-1,537.44",VOYAGE,CARE ESTABLISHMENT,LD - South Locality - Cost of Care,LD - South Cambs - Care,Residential Care
Cambridgeshire County Council,04-Sep-20,51301432546,"-1,537.44",VOYAGE,CARE ESTABLISHMENT,LD - South Locality - Cost of Care,LD - South Cambs - Care,Residential Care
Cambridgeshire County Council,04-Sep-20,51301432546,"-1,537.44",VOYAGE,CARE ESTABLISHMENT,LD - South Locality - Cost of Care,LD - South Cambs - Care,Residential Care
Cambridgeshire County Council,04-Sep-20,51301432546,"-1,537.44",VOYAGE,CARE ESTABLISHMENT,LD - South Locality - Cost of Care,LD - South Cambs - Care,Residential Care
Cambridgeshire County Council,04-Sep-20,51301431374,"-1,482.49",DIMENSIONS (UK) LTD,CARE ESTABLISHMENT,LD - South Locality - Cost of Care,LD - South Cambs - Care,Supported Living
Cambridgeshire County Council,14-Sep-20,51301436640,"-1,471.36",Redacted Personal Data ,PARENT/GUARDIAN,Physical Disablity - Cost of Care,Countywide PD Service - Care,Direct Payments
Cambridgeshire County Council,15-Sep-20,51301438059,"-1,468.32",Keys PCE Ltd,CARE ESTABLISHMENT,LAC Placements,Placements - residential homes,Agency Placements - Out of  County
Cambridgeshire County Council,04-Sep-20,51301432547,"-1,441.36",VOYAGE,CARE ESTABLISHMENT,LD - South Locality - Cost of Care,LD - South Cambs - Care,Residential Care
Cambridgeshire County Council,04-Sep-20,51301432547,"-1,441.36",VOYAGE,CARE ESTABLISHMENT,LD - South Locality - Cost of Care,LD - South Cambs - Care,Residential Care
Cambridgeshire County Council,04-Sep-20,51301432547,"-1,441.36",VOYAGE,CARE ESTABLISHMENT,LD - South Locality - Cost of Care,LD - South Cambs - Care,Residential Care
Cambridgeshire County Council,04-Sep-20,51301432547,"-1,441.36",VOYAGE,CARE ESTABLISHMENT,LD - South Locality - Cost of Care,LD - South Cambs - Care,Residential Care
Cambridgeshire County Council,04-Sep-20,51301432547,"-1,441.36",VOYAGE,CARE ESTABLISHMENT,LD - South Locality - Cost of Care,LD - South Cambs - Care,Residential Care
Cambridgeshire County Council,04-Sep-20,51301432547,"-1,441.36",VOYAGE,CARE ESTABLISHMENT,LD - South Locality - Cost of Care,LD - South Cambs - Care,Residential Care
Cambridgeshire County Council,04-Sep-20,51301432547,"-1,441.36",VOYAGE,CARE ESTABLISHMENT,LD - South Locality - Cost of Care,LD - South Cambs - Care,Residential Care
Cambridgeshire County Council,04-Sep-20,51301432547,"-1,441.36",VOYAGE,CARE ESTABLISHMENT,LD - South Locality - Cost of Care,LD - South Cambs - Care,Residential Care
Cambridgeshire County Council,04-Sep-20,51301432547,"-1,441.36",VOYAGE,CARE ESTABLISHMENT,LD - South Locality - Cost of Care,LD - South Cambs - Care,Residential Care
Cambridgeshire County Council,04-Sep-20,51301432547,"-1,441.36",VOYAGE,CARE ESTABLISHMENT,LD - South Locality - Cost of Care,LD - South Cambs - Care,Residential Care
Cambridgeshire County Council,04-Sep-20,51301432547,"-1,441.36",VOYAGE,CARE ESTABLISHMENT,LD - South Locality - Cost of Care,LD - South Cambs - Care,Residential Care
Cambridgeshire County Council,04-Sep-20,51301432547,"-1,441.36",VOYAGE,CARE ESTABLISHMENT,LD - South Locality - Cost of Care,LD - South Cambs - Care,Residential Care
Cambridgeshire County Council,24-Sep-20,51301440167,"-1,426.53",1 RIVERVIEW DRIVE (DIMENSIONS),CARE ESTABLISHMENT,LD - Hunts Locality - Cost of Care,LD - Huntingdonshire - Care,Supported Living
Cambridgeshire County Council,04-Sep-20,51301433410,"-1,404.81",VOYAGE,CARE ESTABLISHMENT,LD - South Locality - Cost of Care,LD - South Cambs - Care,Supported Living
Cambridgeshire County Council,04-Sep-20,51301433410,"-1,404.81",VOYAGE,CARE ESTABLISHMENT,LD - South Locality - Cost of Care,LD - South Cambs - Care,Supported Living
Cambridgeshire County Council,24-Sep-20,51301440161,"-1,368.57",Chartwell Care Services Ltd,CARE ESTABLISHMENT,LD - Young Adults Team,LD - Young Adults - Care,Residential Care
Cambridgeshire County Council,14-Sep-20,51301436640,"-1,337.61",Redacted Personal Data ,PARENT/GUARDIAN,Physical Disablity - Cost of Care,Countywide PD Service - Care,Direct Payments
Cambridgeshire County Council,14-Sep-20,51301436640,"-1,337.60",Redacted Personal Data ,PARENT/GUARDIAN,Physical Disablity - Cost of Care,Countywide PD Service - Care,Direct Payments
Cambridgeshire County Council,04-Sep-20,51301430719,"-1,297.13",VOYAGE,CARE ESTABLISHMENT,LD - South Locality - Cost of Care,LD - South Cambs - Care,Domiciliary Care
Cambridgeshire County Council,04-Sep-20,51301430719,"-1,297.13",VOYAGE,CARE ESTABLISHMENT,LD - South Locality - Cost of Care,LD - South Cambs - Care,Domiciliary Care
Cambridgeshire County Council,04-Sep-20,51301430719,"-1,297.13",VOYAGE,CARE ESTABLISHMENT,LD - South Locality - Cost of Care,LD - South Cambs - Care,Domiciliary Care
Cambridgeshire County Council,04-Sep-20,51301430719,"-1,297.13",VOYAGE,CARE ESTABLISHMENT,LD - South Locality - Cost of Care,LD - South Cambs - Care,Domiciliary Care
Cambridgeshire County Council,04-Sep-20,51301430719,"-1,297.13",VOYAGE,CARE ESTABLISHMENT,LD - South Locality - Cost of Care,LD - South Cambs - Care,Domiciliary Care
Cambridgeshire County Council,04-Sep-20,51301430719,"-1,297.13",VOYAGE,CARE ESTABLISHMENT,LD - South Locality - Cost of Care,LD - South Cambs - Care,Domiciliary Care
Cambridgeshire County Council,04-Sep-20,51301430719,"-1,297.13",VOYAGE,CARE ESTABLISHMENT,LD - South Locality - Cost of Care,LD - South Cambs - Care,Domiciliary Care
Cambridgeshire County Council,04-Sep-20,51301430719,"-1,297.13",VOYAGE,CARE ESTABLISHMENT,LD - South Locality - Cost of Care,LD - South Cambs - Care,Domiciliary Care
Cambridgeshire County Council,04-Sep-20,51301432492,"-1,278.68",VOYAGE,CARE ESTABLISHMENT,LD - South Locality - Cost of Care,LD - South Cambs - Care,Residential Care
Cambridgeshire County Council,04-Sep-20,51301432492,"-1,278.68",VOYAGE,CARE ESTABLISHMENT,LD - South Locality - Cost of Care,LD - South Cambs - Care,Residential Care
Cambridgeshire County Council,04-Sep-20,51301432492,"-1,278.68",VOYAGE,CARE ESTABLISHMENT,LD - South Locality - Cost of Care,LD - South Cambs - Care,Residential Care
Cambridgeshire County Council,04-Sep-20,51301432492,"-1,278.68",VOYAGE,CARE ESTABLISHMENT,LD - South Locality - Cost of Care,LD - South Cambs - Care,Residential Care
Cambridgeshire County Council,04-Sep-20,51301432492,"-1,278.68",VOYAGE,CARE ESTABLISHMENT,LD - South Locality - Cost of Care,LD - South Cambs - Care,Residential Care
Cambridgeshire County Council,04-Sep-20,51301432492,"-1,278.68",VOYAGE,CARE ESTABLISHMENT,LD - South Locality - Cost of Care,LD - South Cambs - Care,Residential Care
Cambridgeshire County Council,04-Sep-20,51301432492,"-1,278.68",VOYAGE,CARE ESTABLISHMENT,LD - South Locality - Cost of Care,LD - South Cambs - Care,Residential Care
Cambridgeshire County Council,04-Sep-20,51301432492,"-1,278.68",VOYAGE,CARE ESTABLISHMENT,LD - South Locality - Cost of Care,LD - South Cambs - Care,Residential Care
Cambridgeshire County Council,04-Sep-20,51301432492,"-1,278.68",VOYAGE,CARE ESTABLISHMENT,LD - South Locality - Cost of Care,LD - South Cambs - Care,Residential Care
Cambridgeshire County Council,04-Sep-20,51301432492,"-1,278.68",VOYAGE,CARE ESTABLISHMENT,LD - South Locality - Cost of Care,LD - South Cambs - Care,Residential Care
Cambridgeshire County Council,04-Sep-20,51301432492,"-1,278.68",VOYAGE,CARE ESTABLISHMENT,LD - South Locality - Cost of Care,LD - South Cambs - Care,Residential Care
Cambridgeshire County Council,04-Sep-20,51301432492,"-1,278.68",VOYAGE,CARE ESTABLISHMENT,LD - South Locality - Cost of Care,LD - South Cambs - Care,Residential Care
Cambridgeshire County Council,04-Sep-20,51301431520,"-1,269.10",23 LIONS CROSS (VOYAGE),CARE ESTABLISHMENT,LD - Hunts Locality - Cost of Care,LD - Huntingdonshire - Care,Supported Living
Cambridgeshire County Council,04-Sep-20,51301431520,"-1,269.10",23 LIONS CROSS (VOYAGE),CARE ESTABLISHMENT,LD - Hunts Locality - Cost of Care,LD - Huntingdonshire - Care,Supported Living
Cambridgeshire County Council,04-Sep-20,51301431520,"-1,269.10",23 LIONS CROSS (VOYAGE),CARE ESTABLISHMENT,LD - Hunts Locality - Cost of Care,LD - Huntingdonshire - Care,Supported Living
Cambridgeshire County Council,04-Sep-20,51301431520,"-1,269.10",23 LIONS CROSS (VOYAGE),CARE ESTABLISHMENT,LD - Hunts Locality - Cost of Care,LD - Huntingdonshire - Care,Supported Living
Cambridgeshire County Council,04-Sep-20,51301431520,"-1,269.10",23 LIONS CROSS (VOYAGE),CARE ESTABLISHMENT,LD - Hunts Locality - Cost of Care,LD - Huntingdonshire - Care,Supported Living
Cambridgeshire County Council,04-Sep-20,51301431520,"-1,269.10",23 LIONS CROSS (VOYAGE),CARE ESTABLISHMENT,LD - Hunts Locality - Cost of Care,LD - Huntingdonshire - Care,Supported Living
Cambridgeshire County Council,04-Sep-20,51301431520,"-1,269.10",23 LIONS CROSS (VOYAGE),CARE ESTABLISHMENT,LD - Hunts Locality - Cost of Care,LD - Huntingdonshire - Care,Supported Living
Cambridgeshire County Council,04-Sep-20,51301431520,"-1,269.10",23 LIONS CROSS (VOYAGE),CARE ESTABLISHMENT,LD - Hunts Locality - Cost of Care,LD - Huntingdonshire - Care,Supported Living
Cambridgeshire County Council,04-Sep-20,51301433253,"-1,253.56",THERA EAST ANGLIA,CARE ESTABLISHMENT,LD - East Locality - Cost of Care,LD - East Cambs - Care,Domiciliary Care
Cambridgeshire County Council,04-Sep-20,51301431210,"-1,250.00",OAKLANDS CARE HOME,CARE ESTABLISHMENT,OP - East Cambs Locality - Cost of Care,East Cambs - O P Team - Care,Nursing Care
Cambridgeshire County Council,04-Sep-20,51301433172,"-1,228.50",VOYAGE,CARE ESTABLISHMENT,LD - South Locality - Cost of Care,LD - South Cambs - Special Needs,Domiciliary Care
Cambridgeshire County Council,04-Sep-20,51301433172,"-1,228.50",VOYAGE,CARE ESTABLISHMENT,LD - South Locality - Cost of Care,LD - South Cambs - Special Needs,Domiciliary Care
Cambridgeshire County Council,04-Sep-20,51301433172,"-1,228.50",VOYAGE,CARE ESTABLISHMENT,LD - South Locality - Cost of Care,LD - South Cambs - Special Needs,Domiciliary Care
Cambridgeshire County Council,04-Sep-20,51301433172,"-1,228.50",VOYAGE,CARE ESTABLISHMENT,LD - South Locality - Cost of Care,LD - South Cambs - Special Needs,Domiciliary Care
Cambridgeshire County Council,04-Sep-20,51301433172,"-1,228.50",VOYAGE,CARE ESTABLISHMENT,LD - South Locality - Cost of Care,LD - South Cambs - Special Needs,Domiciliary Care
Cambridgeshire County Council,04-Sep-20,51301433172,"-1,228.50",VOYAGE,CARE ESTABLISHMENT,LD - South Locality - Cost of Care,LD - South Cambs - Special Needs,Domiciliary Care
Cambridgeshire County Council,04-Sep-20,51301433172,"-1,228.50",VOYAGE,CARE ESTABLISHMENT,LD - South Locality - Cost of Care,LD - South Cambs - Special Needs,Domiciliary Care
Cambridgeshire County Council,04-Sep-20,51301433172,"-1,228.50",VOYAGE,CARE ESTABLISHMENT,LD - South Locality - Cost of Care,LD - South Cambs - Special Needs,Domiciliary Care
Cambridgeshire County Council,24-Sep-20,51301440288,"-1,227.50",NEXUS FOSTERING LTD,CARE ESTABLISHMENT,LAC Placements,Placements - independent fostering,Agency Placements - Out of  County
Cambridgeshire County Council,04-Sep-20,51301430608,"-1,220.43",VOYAGE,CARE ESTABLISHMENT,LD - South Locality - Cost of Care,LD - South Cambs - Care,Domiciliary Care
Cambridgeshire County Council,04-Sep-20,51301430608,"-1,220.43",VOYAGE,CARE ESTABLISHMENT,LD - South Locality - Cost of Care,LD - South Cambs - Care,Domiciliary Care
Cambridgeshire County Council,04-Sep-20,51301430608,"-1,220.43",VOYAGE,CARE ESTABLISHMENT,LD - South Locality - Cost of Care,LD - South Cambs - Care,Domiciliary Care
Cambridgeshire County Council,04-Sep-20,51301430608,"-1,220.43",VOYAGE,CARE ESTABLISHMENT,LD - South Locality - Cost of Care,LD - South Cambs - Care,Domiciliary Care
Cambridgeshire County Council,04-Sep-20,51301430608,"-1,220.43",VOYAGE,CARE ESTABLISHMENT,LD - South Locality - Cost of Care,LD - South Cambs - Care,Domiciliary Care
Cambridgeshire County Council,04-Sep-20,51301430608,"-1,220.43",VOYAGE,CARE ESTABLISHMENT,LD - South Locality - Cost of Care,LD - South Cambs - Care,Domiciliary Care
Cambridgeshire County Council,04-Sep-20,51301430608,"-1,220.43",VOYAGE,CARE ESTABLISHMENT,LD - South Locality - Cost of Care,LD - South Cambs - Care,Domiciliary Care
Cambridgeshire County Council,04-Sep-20,51301430608,"-1,220.43",VOYAGE,CARE ESTABLISHMENT,LD - South Locality - Cost of Care,LD - South Cambs - Care,Domiciliary Care
Cambridgeshire County Council,04-Sep-20,51301430608,"-1,220.43",VOYAGE,CARE ESTABLISHMENT,LD - South Locality - Cost of Care,LD - South Cambs - Care,Domiciliary Care
Cambridgeshire County Council,04-Sep-20,51301431374,"-1,212.96",DIMENSIONS (UK) LTD,CARE ESTABLISHMENT,LD - South Locality - Cost of Care,LD - South Cambs - Care,Supported Living
Cambridgeshire County Council,21-Sep-20,51301439247,"-1,200.00",Redacted Personal Data ,SERVICE USER,Physical Disablity - Cost of Care,Countywide PD Service - Care,Direct Payments
Cambridgeshire County Council,21-Sep-20,51301439247,"-1,200.00",Redacted Personal Data ,SERVICE USER,Physical Disablity - Cost of Care,Countywide PD Service - Care,Direct Payments
Cambridgeshire County Council,21-Sep-20,51301439247,"-1,200.00",Redacted Personal Data ,SERVICE USER,Physical Disablity - Cost of Care,Countywide PD Service - Care,Direct Payments
Cambridgeshire County Council,21-Sep-20,51301439247,"-1,200.00",Redacted Personal Data ,SERVICE USER,Physical Disablity - Cost of Care,Countywide PD Service - Care,Direct Payments
Cambridgeshire County Council,21-Sep-20,51301439247,"-1,200.00",Redacted Personal Data ,SERVICE USER,Physical Disablity - Cost of Care,Countywide PD Service - Care,Direct Payments
Cambridgeshire County Council,21-Sep-20,51301439247,"-1,200.00",Redacted Personal Data ,SERVICE USER,Physical Disablity - Cost of Care,Countywide PD Service - Care,Direct Payments
Cambridgeshire County Council,18-Sep-20,51301438931,"-1,184.67",23 LIONS CROSS (VOYAGE),CARE ESTABLISHMENT,LD - South Locality - Cost of Care,LD - South Cambs - Care,Supported Living
Cambridgeshire County Council,18-Sep-20,51301438931,"-1,184.67",23 LIONS CROSS (VOYAGE),CARE ESTABLISHMENT,LD - South Locality - Cost of Care,LD - South Cambs - Care,Supported Living
Cambridgeshire County Council,18-Sep-20,51301438931,"-1,184.67",23 LIONS CROSS (VOYAGE),CARE ESTABLISHMENT,LD - South Locality - Cost of Care,LD - South Cambs - Care,Supported Living
Cambridgeshire County Council,18-Sep-20,51301438931,"-1,184.67",23 LIONS CROSS (VOYAGE),CARE ESTABLISHMENT,LD - South Locality - Cost of Care,LD - South Cambs - Care,Supported Living
Cambridgeshire County Council,18-Sep-20,51301438931,"-1,184.67",23 LIONS CROSS (VOYAGE),CARE ESTABLISHMENT,LD - South Locality - Cost of Care,LD - South Cambs - Care,Supported Living
Cambridgeshire County Council,18-Sep-20,51301438931,"-1,184.67",23 LIONS CROSS (VOYAGE),CARE ESTABLISHMENT,LD - South Locality - Cost of Care,LD - South Cambs - Care,Supported Living
Cambridgeshire County Council,18-Sep-20,51301438931,"-1,184.67",23 LIONS CROSS (VOYAGE),CARE ESTABLISHMENT,LD - South Locality - Cost of Care,LD - South Cambs - Care,Supported Living
Cambridgeshire County Council,18-Sep-20,51301438931,"-1,184.67",23 LIONS CROSS (VOYAGE),CARE ESTABLISHMENT,LD - South Locality - Cost of Care,LD - South Cambs - Care,Supported Living
Cambridgeshire County Council,18-Sep-20,51301438931,"-1,184.67",23 LIONS CROSS (VOYAGE),CARE ESTABLISHMENT,LD - South Locality - Cost of Care,LD - South Cambs - Care,Supported Living
Cambridgeshire County Council,18-Sep-20,51301438931,"-1,184.67",23 LIONS CROSS (VOYAGE),CARE ESTABLISHMENT,LD - South Locality - Cost of Care,LD - South Cambs - Care,Supported Living
Cambridgeshire County Council,18-Sep-20,51301438931,"-1,184.67",23 LIONS CROSS (VOYAGE),CARE ESTABLISHMENT,LD - South Locality - Cost of Care,LD - South Cambs - Care,Supported Living
Cambridgeshire County Council,18-Sep-20,51301438931,"-1,184.67",23 LIONS CROSS (VOYAGE),CARE ESTABLISHMENT,LD - South Locality - Cost of Care,LD - South Cambs - Care,Supported Living
Cambridgeshire County Council,18-Sep-20,51301438931,"-1,184.67",23 LIONS CROSS (VOYAGE),CARE ESTABLISHMENT,LD - South Locality - Cost of Care,LD - South Cambs - Care,Supported Living
Cambridgeshire County Council,18-Sep-20,51301438931,"-1,184.67",23 LIONS CROSS (VOYAGE),CARE ESTABLISHMENT,LD - South Locality - Cost of Care,LD - South Cambs - Care,Supported Living
Cambridgeshire County Council,18-Sep-20,51301438931,"-1,184.67",23 LIONS CROSS (VOYAGE),CARE ESTABLISHMENT,LD - South Locality - Cost of Care,LD - South Cambs - Care,Supported Living
Cambridgeshire County Council,18-Sep-20,51301438931,"-1,184.67",23 LIONS CROSS (VOYAGE),CARE ESTABLISHMENT,LD - South Locality - Cost of Care,LD - South Cambs - Care,Supported Living
Cambridgeshire County Council,18-Sep-20,51301438931,"-1,184.67",23 LIONS CROSS (VOYAGE),CARE ESTABLISHMENT,LD - South Locality - Cost of Care,LD - South Cambs - Care,Supported Living
Cambridgeshire County Council,18-Sep-20,51301438931,"-1,184.67",23 LIONS CROSS (VOYAGE),CARE ESTABLISHMENT,LD - South Locality - Cost of Care,LD - South Cambs - Care,Supported Living
Cambridgeshire County Council,18-Sep-20,51301438931,"-1,184.67",23 LIONS CROSS (VOYAGE),CARE ESTABLISHMENT,LD - South Locality - Cost of Care,LD - South Cambs - Care,Supported Living
Cambridgeshire County Council,18-Sep-20,51301438931,"-1,184.67",23 LIONS CROSS (VOYAGE),CARE ESTABLISHMENT,LD - South Locality - Cost of Care,LD - South Cambs - Care,Supported Living
Cambridgeshire County Council,18-Sep-20,51301438931,"-1,184.67",23 LIONS CROSS (VOYAGE),CARE ESTABLISHMENT,LD - South Locality - Cost of Care,LD - South Cambs - Care,Supported Living
Cambridgeshire County Council,18-Sep-20,51301438931,"-1,184.67",23 LIONS CROSS (VOYAGE),CARE ESTABLISHMENT,LD - South Locality - Cost of Care,LD - South Cambs - Care,Supported Living
Cambridgeshire County Council,18-Sep-20,51301438931,"-1,184.67",23 LIONS CROSS (VOYAGE),CARE ESTABLISHMENT,LD - South Locality - Cost of Care,LD - South Cambs - Care,Supported Living
Cambridgeshire County Council,18-Sep-20,51301438935,"-1,162.21",AUGUSTA CARE LTD,CARE ESTABLISHMENT,LD - Young Adults Team,LD - Young Adults - Care,Supported Living
Cambridgeshire County Council,18-Sep-20,51301438935,"-1,162.21",AUGUSTA CARE LTD,CARE ESTABLISHMENT,LD - Young Adults Team,LD - Young Adults - Care,Supported Living
Cambridgeshire County Council,18-Sep-20,51301438935,"-1,162.21",AUGUSTA CARE LTD,CARE ESTABLISHMENT,LD - Young Adults Team,LD - Young Adults - Care,Supported Living
Cambridgeshire County Council,18-Sep-20,51301438935,"-1,162.21",AUGUSTA CARE LTD,CARE ESTABLISHMENT,LD - Young Adults Team,LD - Young Adults - Care,Supported Living
Cambridgeshire County Council,18-Sep-20,51301438935,"-1,162.21",AUGUSTA CARE LTD,CARE ESTABLISHMENT,LD - Young Adults Team,LD - Young Adults - Care,Supported Living
Cambridgeshire County Council,18-Sep-20,51301438935,"-1,162.21",AUGUSTA CARE LTD,CARE ESTABLISHMENT,LD - Young Adults Team,LD - Young Adults - Care,Supported Living
Cambridgeshire County Council,18-Sep-20,51301438935,"-1,162.21",AUGUSTA CARE LTD,CARE ESTABLISHMENT,LD - Young Adults Team,LD - Young Adults - Care,Supported Living
Cambridgeshire County Council,18-Sep-20,51301438935,"-1,162.21",AUGUSTA CARE LTD,CARE ESTABLISHMENT,LD - Young Adults Team,LD - Young Adults - Care,Supported Living
Cambridgeshire County Council,18-Sep-20,51301438935,"-1,162.21",AUGUSTA CARE LTD,CARE ESTABLISHMENT,LD - Young Adults Team,LD - Young Adults - Care,Supported Living
Cambridgeshire County Council,18-Sep-20,51301438935,"-1,162.21",AUGUSTA CARE LTD,CARE ESTABLISHMENT,LD - Young Adults Team,LD - Young Adults - Care,Supported Living
Cambridgeshire County Council,18-Sep-20,51301438935,"-1,162.21",AUGUSTA CARE LTD,CARE ESTABLISHMENT,LD - Young Adults Team,LD - Young Adults - Care,Supported Living
Cambridgeshire County Council,18-Sep-20,51301438935,"-1,162.21",AUGUSTA CARE LTD,CARE ESTABLISHMENT,LD - Young Adults Team,LD - Young Adults - Care,Supported Living
Cambridgeshire County Council,18-Sep-20,51301438935,"-1,162.21",AUGUSTA CARE LTD,CARE ESTABLISHMENT,LD - Young Adults Team,LD - Young Adults - Care,Supported Living
Cambridgeshire County Council,18-Sep-20,51301438935,"-1,162.21",AUGUSTA CARE LTD,CARE ESTABLISHMENT,LD - Young Adults Team,LD - Young Adults - Care,Supported Living
Cambridgeshire County Council,18-Sep-20,51301438935,"-1,162.21",AUGUSTA CARE LTD,CARE ESTABLISHMENT,LD - Young Adults Team,LD - Young Adults - Care,Supported Living
Cambridgeshire County Council,18-Sep-20,51301438935,"-1,162.21",AUGUSTA CARE LTD,CARE ESTABLISHMENT,LD - Young Adults Team,LD - Young Adults - Care,Supported Living
Cambridgeshire County Council,18-Sep-20,51301438935,"-1,162.21",AUGUSTA CARE LTD,CARE ESTABLISHMENT,LD - Young Adults Team,LD - Young Adults - Care,Supported Living
Cambridgeshire County Council,18-Sep-20,51301438935,"-1,162.21",AUGUSTA CARE LTD,CARE ESTABLISHMENT,LD - Young Adults Team,LD - Young Adults - Care,Supported Living
Cambridgeshire County Council,18-Sep-20,51301438935,"-1,162.21",AUGUSTA CARE LTD,CARE ESTABLISHMENT,LD - Young Adults Team,LD - Young Adults - Care,Supported Living
Cambridgeshire County Council,18-Sep-20,51301438935,"-1,162.21",AUGUSTA CARE LTD,CARE ESTABLISHMENT,LD - Young Adults Team,LD - Young Adults - Care,Supported Living
Cambridgeshire County Council,18-Sep-20,51301438935,"-1,162.21",AUGUSTA CARE LTD,CARE ESTABLISHMENT,LD - Young Adults Team,LD - Young Adults - Care,Supported Living
Cambridgeshire County Council,18-Sep-20,51301438935,"-1,162.21",AUGUSTA CARE LTD,CARE ESTABLISHMENT,LD - Young Adults Team,LD - Young Adults - Care,Supported Living
Cambridgeshire County Council,18-Sep-20,51301438935,"-1,162.21",AUGUSTA CARE LTD,CARE ESTABLISHMENT,LD - Young Adults Team,LD - Young Adults - Care,Supported Living
Cambridgeshire County Council,18-Sep-20,51301438935,"-1,162.21",AUGUSTA CARE LTD,CARE ESTABLISHMENT,LD - Young Adults Team,LD - Young Adults - Care,Supported Living
Cambridgeshire County Council,18-Sep-20,51301438935,"-1,162.21",AUGUSTA CARE LTD,CARE ESTABLISHMENT,LD - Young Adults Team,LD - Young Adults - Care,Supported Living
Cambridgeshire County Council,04-Sep-20,51301433449,"-1,158.36",VOYAGE,CARE ESTABLISHMENT,LD - Hunts Locality - Cost of Care,LD - Huntingdonshire - Care,Supported Living
Cambridgeshire County Council,04-Sep-20,51301433449,"-1,158.36",VOYAGE,CARE ESTABLISHMENT,LD - Hunts Locality - Cost of Care,LD - Huntingdonshire - Care,Supported Living
Cambridgeshire County Council,04-Sep-20,51301433449,"-1,158.36",VOYAGE,CARE ESTABLISHMENT,LD - Hunts Locality - Cost of Care,LD - Huntingdonshire - Care,Supported Living
Cambridgeshire County Council,04-Sep-20,51301433449,"-1,158.36",VOYAGE,CARE ESTABLISHMENT,LD - Hunts Locality - Cost of Care,LD - Huntingdonshire - Care,Supported Living
Cambridgeshire County Council,04-Sep-20,51301433449,"-1,158.36",VOYAGE,CARE ESTABLISHMENT,LD - Hunts Locality - Cost of Care,LD - Huntingdonshire - Care,Supported Living
Cambridgeshire County Council,04-Sep-20,51301433449,"-1,158.36",VOYAGE,CARE ESTABLISHMENT,LD - Hunts Locality - Cost of Care,LD - Huntingdonshire - Care,Supported Living
Cambridgeshire County Council,04-Sep-20,51301433449,"-1,158.36",VOYAGE,CARE ESTABLISHMENT,LD - Hunts Locality - Cost of Care,LD - Huntingdonshire - Care,Supported Living
Cambridgeshire County Council,04-Sep-20,51301433449,"-1,158.36",VOYAGE,CARE ESTABLISHMENT,LD - Hunts Locality - Cost of Care,LD - Huntingdonshire - Care,Supported Living
Cambridgeshire County Council,04-Sep-20,51301433428,"-1,138.03",VOYAGE,CARE ESTABLISHMENT,LD - South Locality - Cost of Care,LD - South Cambs - Care,Domiciliary Care
Cambridgeshire County Council,04-Sep-20,51301433428,"-1,138.03",VOYAGE,CARE ESTABLISHMENT,LD - South Locality - Cost of Care,LD - South Cambs - Care,Domiciliary Care
Cambridgeshire County Council,04-Sep-20,51301433428,"-1,138.03",VOYAGE,CARE ESTABLISHMENT,LD - South Locality - Cost of Care,LD - South Cambs - Care,Domiciliary Care
Cambridgeshire County Council,04-Sep-20,51301433428,"-1,138.03",VOYAGE,CARE ESTABLISHMENT,LD - South Locality - Cost of Care,LD - South Cambs - Care,Domiciliary Care
Cambridgeshire County Council,04-Sep-20,51301433428,"-1,138.03",VOYAGE,CARE ESTABLISHMENT,LD - South Locality - Cost of Care,LD - South Cambs - Care,Domiciliary Care
Cambridgeshire County Council,04-Sep-20,51301433428,"-1,138.03",VOYAGE,CARE ESTABLISHMENT,LD - South Locality - Cost of Care,LD - South Cambs - Care,Domiciliary Care
Cambridgeshire County Council,04-Sep-20,51301433428,"-1,138.03",VOYAGE,CARE ESTABLISHMENT,LD - South Locality - Cost of Care,LD - South Cambs - Care,Domiciliary Care
Cambridgeshire County Council,04-Sep-20,51301433428,"-1,138.03",VOYAGE,CARE ESTABLISHMENT,LD - South Locality - Cost of Care,LD - South Cambs - Care,Domiciliary Care
Cambridgeshire County Council,15-Sep-20,51301438049,"-1,123.58",REGIONAL FOSTER PLACEMENTS,CARE ESTABLISHMENT,LAC Placements,Placements - independent fostering,Agency Placements - Out of  County
Cambridgeshire County Council,04-Sep-20,51301433209,"-1,116.90",VOYAGE,CARE ESTABLISHMENT,LD - South Locality - Cost of Care,LD - South Cambs - Care,Domiciliary Care
Cambridgeshire County Council,04-Sep-20,51301433209,"-1,116.90",VOYAGE,CARE ESTABLISHMENT,LD - South Locality - Cost of Care,LD - South Cambs - Care,Domiciliary Care
Cambridgeshire County Council,04-Sep-20,51301433209,"-1,116.90",VOYAGE,CARE ESTABLISHMENT,LD - South Locality - Cost of Care,LD - South Cambs - Care,Domiciliary Care
Cambridgeshire County Council,04-Sep-20,51301433209,"-1,116.90",VOYAGE,CARE ESTABLISHMENT,LD - South Locality - Cost of Care,LD - South Cambs - Care,Domiciliary Care
Cambridgeshire County Council,04-Sep-20,51301433209,"-1,116.90",VOYAGE,CARE ESTABLISHMENT,LD - South Locality - Cost of Care,LD - South Cambs - Care,Domiciliary Care
Cambridgeshire County Council,04-Sep-20,51301433209,"-1,116.90",VOYAGE,CARE ESTABLISHMENT,LD - South Locality - Cost of Care,LD - South Cambs - Care,Domiciliary Care
Cambridgeshire County Council,04-Sep-20,51301433209,"-1,116.90",VOYAGE,CARE ESTABLISHMENT,LD - South Locality - Cost of Care,LD - South Cambs - Care,Domiciliary Care
Cambridgeshire County Council,04-Sep-20,51301433209,"-1,116.90",VOYAGE,CARE ESTABLISHMENT,LD - South Locality - Cost of Care,LD - South Cambs - Care,Domiciliary Care
Cambridgeshire County Council,10-Sep-20,51301435959,"-1,116.00",24/7 Support UK Limited,CARE ESTABLISHMENT,LAC Placements,Placements - supported accommodation,Agency Placements - In County
Cambridgeshire County Council,23-Sep-20,51301440032,"-1,116.00",24/7 Support UK Limited,CARE ESTABLISHMENT,LAC Placements,Placements - supported accommodation,Agency Placements - In County
Cambridgeshire County Council,23-Sep-20,51301439882,"-1,114.68",24/7 Support UK Limited,CARE ESTABLISHMENT,Unaccompanied Asylum Seeking Children,Unaccompanied Asylum Seeking Children <18,Asylum Seekers
Cambridgeshire County Council,04-Sep-20,51301433309,"-1,107.38",VOYAGE,CARE ESTABLISHMENT,LD - South Locality - Cost of Care,LD - South Cambs - Care,Supported Living
Cambridgeshire County Council,04-Sep-20,51301433309,"-1,107.38",VOYAGE,CARE ESTABLISHMENT,LD - South Locality - Cost of Care,LD - South Cambs - Care,Supported Living
Cambridgeshire County Council,04-Sep-20,51301433309,"-1,107.38",VOYAGE,CARE ESTABLISHMENT,LD - South Locality - Cost of Care,LD - South Cambs - Care,Supported Living
Cambridgeshire County Council,04-Sep-20,51301433309,"-1,107.38",VOYAGE,CARE ESTABLISHMENT,LD - South Locality - Cost of Care,LD - South Cambs - Care,Supported Living
Cambridgeshire County Council,04-Sep-20,51301433309,"-1,107.38",VOYAGE,CARE ESTABLISHMENT,LD - South Locality - Cost of Care,LD - South Cambs - Care,Supported Living
Cambridgeshire County Council,04-Sep-20,51301433309,"-1,107.38",VOYAGE,CARE ESTABLISHMENT,LD - South Locality - Cost of Care,LD - South Cambs - Care,Supported Living
Cambridgeshire County Council,04-Sep-20,51301433309,"-1,107.38",VOYAGE,CARE ESTABLISHMENT,LD - South Locality - Cost of Care,LD - South Cambs - Care,Supported Living
Cambridgeshire County Council,04-Sep-20,51301433309,"-1,107.38",VOYAGE,CARE ESTABLISHMENT,LD - South Locality - Cost of Care,LD - South Cambs - Care,Supported Living
Cambridgeshire County Council,04-Sep-20,51301380042,"-1,099.68",HOME FARM TRUST (SHEFFIELD),CARE ESTABLISHMENT,LD - Young Adults Team,LD - Young Adults - Care,Supported Living
Cambridgeshire County Council,04-Sep-20,51301380042,"-1,099.68",HOME FARM TRUST (SHEFFIELD),CARE ESTABLISHMENT,LD - Young Adults Team,LD - Young Adults - Care,Supported Living
Cambridgeshire County Council,04-Sep-20,51301380042,"-1,099.68",HOME FARM TRUST (SHEFFIELD),CARE ESTABLISHMENT,LD - Young Adults Team,LD - Young Adults - Care,Supported Living
Cambridgeshire County Council,04-Sep-20,51301433489,"-1,098.33",VOYAGE,CARE ESTABLISHMENT,LD - East Locality - Cost of Care,LD - East Cambs - Care,Residential Care
Cambridgeshire County Council,04-Sep-20,51301433489,"-1,098.33",VOYAGE,CARE ESTABLISHMENT,LD - East Locality - Cost of Care,LD - East Cambs - Care,Residential Care
Cambridgeshire County Council,04-Sep-20,51301433489,"-1,098.33",VOYAGE,CARE ESTABLISHMENT,LD - East Locality - Cost of Care,LD - East Cambs - Care,Residential Care
Cambridgeshire County Council,04-Sep-20,51301433489,"-1,098.33",VOYAGE,CARE ESTABLISHMENT,LD - East Locality - Cost of Care,LD - East Cambs - Care,Residential Care
Cambridgeshire County Council,04-Sep-20,51301433489,"-1,098.33",VOYAGE,CARE ESTABLISHMENT,LD - East Locality - Cost of Care,LD - East Cambs - Care,Residential Care
Cambridgeshire County Council,04-Sep-20,51301433489,"-1,098.33",VOYAGE,CARE ESTABLISHMENT,LD - East Locality - Cost of Care,LD - East Cambs - Care,Residential Care
Cambridgeshire County Council,04-Sep-20,51301433489,"-1,098.33",VOYAGE,CARE ESTABLISHMENT,LD - East Locality - Cost of Care,LD - East Cambs - Care,Residential Care
Cambridgeshire County Council,04-Sep-20,51301433489,"-1,098.33",VOYAGE,CARE ESTABLISHMENT,LD - East Locality - Cost of Care,LD - East Cambs - Care,Residential Care
Cambridgeshire County Council,04-Sep-20,51301431821,"-1,096.94",ELTISLEY MANOR (PSYCARE LTD),CARE ESTABLISHMENT,Physical Disablity - Cost of Care,Countywide PD Service - Care,Nursing Care
Cambridgeshire County Council,04-Sep-20,51301431821,"-1,096.94",ELTISLEY MANOR (PSYCARE LTD),CARE ESTABLISHMENT,Physical Disablity - Cost of Care,Countywide PD Service - Care,Nursing Care
Cambridgeshire County Council,04-Sep-20,51301431821,"-1,096.94",ELTISLEY MANOR (PSYCARE LTD),CARE ESTABLISHMENT,Physical Disablity - Cost of Care,Countywide PD Service - Care,Nursing Care
Cambridgeshire County Council,04-Sep-20,51301431821,"-1,096.94",ELTISLEY MANOR (PSYCARE LTD),CARE ESTABLISHMENT,Physical Disablity - Cost of Care,Countywide PD Service - Care,Nursing Care
Cambridgeshire County Council,04-Sep-20,51301431821,"-1,096.94",ELTISLEY MANOR (PSYCARE LTD),CARE ESTABLISHMENT,Physical Disablity - Cost of Care,Countywide PD Service - Care,Nursing Care
Cambridgeshire County Council,04-Sep-20,51301431821,"-1,096.94",ELTISLEY MANOR (PSYCARE LTD),CARE ESTABLISHMENT,Physical Disablity - Cost of Care,Countywide PD Service - Care,Nursing Care
Cambridgeshire County Council,04-Sep-20,51301431821,"-1,096.94",ELTISLEY MANOR (PSYCARE LTD),CARE ESTABLISHMENT,Physical Disablity - Cost of Care,Countywide PD Service - Care,Nursing Care
Cambridgeshire County Council,04-Sep-20,51301431821,"-1,096.94",ELTISLEY MANOR (PSYCARE LTD),CARE ESTABLISHMENT,Physical Disablity - Cost of Care,Countywide PD Service - Care,Nursing Care
Cambridgeshire County Council,04-Sep-20,51301431821,"-1,096.94",ELTISLEY MANOR (PSYCARE LTD),CARE ESTABLISHMENT,Physical Disablity - Cost of Care,Countywide PD Service - Care,Nursing Care
Cambridgeshire County Council,04-Sep-20,51301431821,"-1,096.94",ELTISLEY MANOR (PSYCARE LTD),CARE ESTABLISHMENT,Physical Disablity - Cost of Care,Countywide PD Service - Care,Nursing Care
Cambridgeshire County Council,04-Sep-20,51301431821,"-1,096.94",ELTISLEY MANOR (PSYCARE LTD),CARE ESTABLISHMENT,Physical Disablity - Cost of Care,Countywide PD Service - Care,Nursing Care
Cambridgeshire County Council,04-Sep-20,51301431821,"-1,096.94",ELTISLEY MANOR (PSYCARE LTD),CARE ESTABLISHMENT,Physical Disablity - Cost of Care,Countywide PD Service - Care,Nursing Care
Cambridgeshire County Council,04-Sep-20,51301431821,"-1,096.94",ELTISLEY MANOR (PSYCARE LTD),CARE ESTABLISHMENT,Physical Disablity - Cost of Care,Countywide PD Service - Care,Nursing Care
Cambridgeshire County Council,04-Sep-20,51301431821,"-1,096.94",ELTISLEY MANOR (PSYCARE LTD),CARE ESTABLISHMENT,Physical Disablity - Cost of Care,Countywide PD Service - Care,Nursing Care
Cambridgeshire County Council,04-Sep-20,51301431821,"-1,096.94",ELTISLEY MANOR (PSYCARE LTD),CARE ESTABLISHMENT,Physical Disablity - Cost of Care,Countywide PD Service - Care,Nursing Care
Cambridgeshire County Council,04-Sep-20,51301431821,"-1,096.94",ELTISLEY MANOR (PSYCARE LTD),CARE ESTABLISHMENT,Physical Disablity - Cost of Care,Countywide PD Service - Care,Nursing Care
Cambridgeshire County Council,04-Sep-20,51301431821,"-1,096.94",ELTISLEY MANOR (PSYCARE LTD),CARE ESTABLISHMENT,Physical Disablity - Cost of Care,Countywide PD Service - Care,Nursing Care
Cambridgeshire County Council,04-Sep-20,51301431821,"-1,096.94",ELTISLEY MANOR (PSYCARE LTD),CARE ESTABLISHMENT,Physical Disablity - Cost of Care,Countywide PD Service - Care,Nursing Care
Cambridgeshire County Council,04-Sep-20,51301431821,"-1,096.94",ELTISLEY MANOR (PSYCARE LTD),CARE ESTABLISHMENT,Physical Disablity - Cost of Care,Countywide PD Service - Care,Nursing Care
Cambridgeshire County Council,04-Sep-20,51301431821,"-1,096.94",ELTISLEY MANOR (PSYCARE LTD),CARE ESTABLISHMENT,Physical Disablity - Cost of Care,Countywide PD Service - Care,Nursing Care
Cambridgeshire County Council,04-Sep-20,51301431821,"-1,096.94",ELTISLEY MANOR (PSYCARE LTD),CARE ESTABLISHMENT,Physical Disablity - Cost of Care,Countywide PD Service - Care,Nursing Care
Cambridgeshire County Council,04-Sep-20,51301431821,"-1,096.94",ELTISLEY MANOR (PSYCARE LTD),CARE ESTABLISHMENT,Physical Disablity - Cost of Care,Countywide PD Service - Care,Nursing Care
Cambridgeshire County Council,04-Sep-20,51301431821,"-1,096.94",ELTISLEY MANOR (PSYCARE LTD),CARE ESTABLISHMENT,Physical Disablity - Cost of Care,Countywide PD Service - Care,Nursing Care
Cambridgeshire County Council,04-Sep-20,51301431821,"-1,096.94",ELTISLEY MANOR (PSYCARE LTD),CARE ESTABLISHMENT,Physical Disablity - Cost of Care,Countywide PD Service - Care,Nursing Care
Cambridgeshire County Council,04-Sep-20,51301431821,"-1,096.94",ELTISLEY MANOR (PSYCARE LTD),CARE ESTABLISHMENT,Physical Disablity - Cost of Care,Countywide PD Service - Care,Nursing Care
Cambridgeshire County Council,04-Sep-20,51301431821,"-1,096.94",ELTISLEY MANOR (PSYCARE LTD),CARE ESTABLISHMENT,Physical Disablity - Cost of Care,Countywide PD Service - Care,Nursing Care
Cambridgeshire County Council,04-Sep-20,51301431821,"-1,096.94",ELTISLEY MANOR (PSYCARE LTD),CARE ESTABLISHMENT,Physical Disablity - Cost of Care,Countywide PD Service - Care,Nursing Care
Cambridgeshire County Council,04-Sep-20,51301431821,"-1,096.94",ELTISLEY MANOR (PSYCARE LTD),CARE ESTABLISHMENT,Physical Disablity - Cost of Care,Countywide PD Service - Care,Nursing Care
Cambridgeshire County Council,04-Sep-20,51301431821,"-1,096.94",ELTISLEY MANOR (PSYCARE LTD),CARE ESTABLISHMENT,Physical Disablity - Cost of Care,Countywide PD Service - Care,Nursing Care
Cambridgeshire County Council,04-Sep-20,51301431821,"-1,096.94",ELTISLEY MANOR (PSYCARE LTD),CARE ESTABLISHMENT,Physical Disablity - Cost of Care,Countywide PD Service - Care,Nursing Care
Cambridgeshire County Council,04-Sep-20,51301431821,"-1,096.94",ELTISLEY MANOR (PSYCARE LTD),CARE ESTABLISHMENT,Physical Disablity - Cost of Care,Countywide PD Service - Care,Nursing Care
Cambridgeshire County Council,04-Sep-20,51301431821,"-1,096.94",ELTISLEY MANOR (PSYCARE LTD),CARE ESTABLISHMENT,Physical Disablity - Cost of Care,Countywide PD Service - Care,Nursing Care
Cambridgeshire County Council,04-Sep-20,51301431821,"-1,096.94",ELTISLEY MANOR (PSYCARE LTD),CARE ESTABLISHMENT,Physical Disablity - Cost of Care,Countywide PD Service - Care,Nursing Care
Cambridgeshire County Council,04-Sep-20,51301431821,"-1,096.94",ELTISLEY MANOR (PSYCARE LTD),CARE ESTABLISHMENT,Physical Disablity - Cost of Care,Countywide PD Service - Care,Nursing Care
Cambridgeshire County Council,04-Sep-20,51301431821,"-1,096.94",ELTISLEY MANOR (PSYCARE LTD),CARE ESTABLISHMENT,Physical Disablity - Cost of Care,Countywide PD Service - Care,Nursing Care
Cambridgeshire County Council,04-Sep-20,51301431821,"-1,096.94",ELTISLEY MANOR (PSYCARE LTD),CARE ESTABLISHMENT,Physical Disablity - Cost of Care,Countywide PD Service - Care,Nursing Care
Cambridgeshire County Council,04-Sep-20,51301431821,"-1,096.94",ELTISLEY MANOR (PSYCARE LTD),CARE ESTABLISHMENT,Physical Disablity - Cost of Care,Countywide PD Service - Care,Nursing Care
Cambridgeshire County Council,04-Sep-20,51301431821,"-1,096.94",ELTISLEY MANOR (PSYCARE LTD),CARE ESTABLISHMENT,Physical Disablity - Cost of Care,Countywide PD Service - Care,Nursing Care
Cambridgeshire County Council,04-Sep-20,51301431821,"-1,096.94",ELTISLEY MANOR (PSYCARE LTD),CARE ESTABLISHMENT,Physical Disablity - Cost of Care,Countywide PD Service - Care,Nursing Care
Cambridgeshire County Council,21-Sep-20,51301439247,"-1,090.91",Redacted Personal Data ,SERVICE USER,Physical Disablity - Cost of Care,Countywide PD Service - Care,Direct Payments
Cambridgeshire County Council,21-Sep-20,51301439247,"-1,090.91",Redacted Personal Data ,SERVICE USER,Physical Disablity - Cost of Care,Countywide PD Service - Care,Direct Payments
Cambridgeshire County Council,21-Sep-20,51301439247,"-1,090.91",Redacted Personal Data ,SERVICE USER,Physical Disablity - Cost of Care,Countywide PD Service - Care,Direct Payments
Cambridgeshire County Council,21-Sep-20,51301439247,"-1,090.91",Redacted Personal Data ,SERVICE USER,Physical Disablity - Cost of Care,Countywide PD Service - Care,Direct Payments
Cambridgeshire County Council,21-Sep-20,51301439247,"-1,090.91",Redacted Personal Data ,SERVICE USER,Physical Disablity - Cost of Care,Countywide PD Service - Care,Direct Payments
Cambridgeshire County Council,21-Sep-20,51301439247,"-1,090.91",Redacted Personal Data ,SERVICE USER,Physical Disablity - Cost of Care,Countywide PD Service - Care,Direct Payments
Cambridgeshire County Council,21-Sep-20,51301439247,"-1,090.91",Redacted Personal Data ,SERVICE USER,Physical Disablity - Cost of Care,Countywide PD Service - Care,Direct Payments
Cambridgeshire County Council,21-Sep-20,51301439247,"-1,090.91",Redacted Personal Data ,SERVICE USER,Physical Disablity - Cost of Care,Countywide PD Service - Care,Direct Payments
Cambridgeshire County Council,21-Sep-20,51301439247,"-1,090.91",Redacted Personal Data ,SERVICE USER,Physical Disablity - Cost of Care,Countywide PD Service - Care,Direct Payments
Cambridgeshire County Council,21-Sep-20,51301439247,"-1,090.91",Redacted Personal Data ,SERVICE USER,Physical Disablity - Cost of Care,Countywide PD Service - Care,Direct Payments
Cambridgeshire County Council,21-Sep-20,51301439247,"-1,090.91",Redacted Personal Data ,SERVICE USER,Physical Disablity - Cost of Care,Countywide PD Service - Care,Direct Payments
Cambridgeshire County Council,21-Sep-20,51301439247,"-1,090.91",Redacted Personal Data ,SERVICE USER,Physical Disablity - Cost of Care,Countywide PD Service - Care,Direct Payments
Cambridgeshire County Council,21-Sep-20,51301439247,"-1,090.91",Redacted Personal Data ,SERVICE USER,Physical Disablity - Cost of Care,Countywide PD Service - Care,Direct Payments
Cambridgeshire County Council,21-Sep-20,51301439247,"-1,090.91",Redacted Personal Data ,SERVICE USER,Physical Disablity - Cost of Care,Countywide PD Service - Care,Direct Payments
Cambridgeshire County Council,21-Sep-20,51301439247,"-1,090.91",Redacted Personal Data ,SERVICE USER,Physical Disablity - Cost of Care,Countywide PD Service - Care,Direct Payments
Cambridgeshire County Council,04-Sep-20,51301433592,"-1,080.36",THE MARBROOK CENTRE,CARE ESTABLISHMENT,OPMH - Hunts & Fens,Older People Mental Health Hunts,Nursing Care
Cambridgeshire County Council,04-Sep-20,51301433592,"-1,080.36",THE MARBROOK CENTRE,CARE ESTABLISHMENT,OPMH - Hunts & Fens,Older People Mental Health Hunts,Nursing Care
Cambridgeshire County Council,04-Sep-20,51301433592,"-1,080.36",THE MARBROOK CENTRE,CARE ESTABLISHMENT,OPMH - Hunts & Fens,Older People Mental Health Hunts,Nursing Care
Cambridgeshire County Council,04-Sep-20,51301433592,"-1,080.36",THE MARBROOK CENTRE,CARE ESTABLISHMENT,OPMH - Hunts & Fens,Older People Mental Health Hunts,Nursing Care
Cambridgeshire County Council,04-Sep-20,51301433592,"-1,080.36",THE MARBROOK CENTRE,CARE ESTABLISHMENT,OPMH - Hunts & Fens,Older People Mental Health Hunts,Nursing Care
Cambridgeshire County Council,04-Sep-20,51301433592,"-1,080.36",THE MARBROOK CENTRE,CARE ESTABLISHMENT,OPMH - Hunts & Fens,Older People Mental Health Hunts,Nursing Care
Cambridgeshire County Council,04-Sep-20,51301433592,"-1,080.36",THE MARBROOK CENTRE,CARE ESTABLISHMENT,OPMH - Hunts & Fens,Older People Mental Health Hunts,Nursing Care
Cambridgeshire County Council,04-Sep-20,51301433592,"-1,080.36",THE MARBROOK CENTRE,CARE ESTABLISHMENT,OPMH - Hunts & Fens,Older People Mental Health Hunts,Nursing Care
Cambridgeshire County Council,04-Sep-20,51301433592,"-1,080.36",THE MARBROOK CENTRE,CARE ESTABLISHMENT,OPMH - Hunts & Fens,Older People Mental Health Hunts,Nursing Care
Cambridgeshire County Council,04-Sep-20,51301433592,"-1,080.36",THE MARBROOK CENTRE,CARE ESTABLISHMENT,OPMH - Hunts & Fens,Older People Mental Health Hunts,Nursing Care
Cambridgeshire County Council,04-Sep-20,51301433592,"-1,080.36",THE MARBROOK CENTRE,CARE ESTABLISHMENT,OPMH - Hunts & Fens,Older People Mental Health Hunts,Nursing Care
Cambridgeshire County Council,04-Sep-20,51301433592,"-1,080.36",THE MARBROOK CENTRE,CARE ESTABLISHMENT,OPMH - Hunts & Fens,Older People Mental Health Hunts,Nursing Care
Cambridgeshire County Council,04-Sep-20,51301433592,"-1,080.36",THE MARBROOK CENTRE,CARE ESTABLISHMENT,OPMH - Hunts & Fens,Older People Mental Health Hunts,Nursing Care
Cambridgeshire County Council,04-Sep-20,51301433592,"-1,080.36",THE MARBROOK CENTRE,CARE ESTABLISHMENT,OPMH - Hunts & Fens,Older People Mental Health Hunts,Nursing Care
Cambridgeshire County Council,04-Sep-20,51301433592,"-1,080.36",THE MARBROOK CENTRE,CARE ESTABLISHMENT,OPMH - Hunts & Fens,Older People Mental Health Hunts,Nursing Care
Cambridgeshire County Council,04-Sep-20,51301433592,"-1,080.36",THE MARBROOK CENTRE,CARE ESTABLISHMENT,OPMH - Hunts & Fens,Older People Mental Health Hunts,Nursing Care
Cambridgeshire County Council,04-Sep-20,51301433592,"-1,080.36",THE MARBROOK CENTRE,CARE ESTABLISHMENT,OPMH - Hunts & Fens,Older People Mental Health Hunts,Nursing Care
Cambridgeshire County Council,04-Sep-20,51301433592,"-1,080.36",THE MARBROOK CENTRE,CARE ESTABLISHMENT,OPMH - Hunts & Fens,Older People Mental Health Hunts,Nursing Care
Cambridgeshire County Council,04-Sep-20,51301433592,"-1,080.36",THE MARBROOK CENTRE,CARE ESTABLISHMENT,OPMH - Hunts & Fens,Older People Mental Health Hunts,Nursing Care
Cambridgeshire County Council,04-Sep-20,51301433592,"-1,080.36",THE MARBROOK CENTRE,CARE ESTABLISHMENT,OPMH - Hunts & Fens,Older People Mental Health Hunts,Nursing Care
Cambridgeshire County Council,04-Sep-20,51301433592,"-1,080.36",THE MARBROOK CENTRE,CARE ESTABLISHMENT,OPMH - Hunts & Fens,Older People Mental Health Hunts,Nursing Care
Cambridgeshire County Council,04-Sep-20,51301433592,"-1,080.36",THE MARBROOK CENTRE,CARE ESTABLISHMENT,OPMH - Hunts & Fens,Older People Mental Health Hunts,Nursing Care
Cambridgeshire County Council,04-Sep-20,51301433592,"-1,080.36",THE MARBROOK CENTRE,CARE ESTABLISHMENT,OPMH - Hunts & Fens,Older People Mental Health Hunts,Nursing Care
Cambridgeshire County Council,04-Sep-20,51301433592,"-1,080.36",THE MARBROOK CENTRE,CARE ESTABLISHMENT,OPMH - Hunts & Fens,Older People Mental Health Hunts,Nursing Care
Cambridgeshire County Council,04-Sep-20,51301433592,"-1,080.36",THE MARBROOK CENTRE,CARE ESTABLISHMENT,OPMH - Hunts & Fens,Older People Mental Health Hunts,Nursing Care
Cambridgeshire County Council,04-Sep-20,51301433592,"-1,080.36",THE MARBROOK CENTRE,CARE ESTABLISHMENT,OPMH - Hunts & Fens,Older People Mental Health Hunts,Nursing Care
Cambridgeshire County Council,04-Sep-20,51301433592,"-1,080.36",THE MARBROOK CENTRE,CARE ESTABLISHMENT,OPMH - Hunts & Fens,Older People Mental Health Hunts,Nursing Care
Cambridgeshire County Council,04-Sep-20,51301433592,"-1,080.36",THE MARBROOK CENTRE,CARE ESTABLISHMENT,OPMH - Hunts & Fens,Older People Mental Health Hunts,Nursing Care
Cambridgeshire County Council,04-Sep-20,51301433592,"-1,080.36",THE MARBROOK CENTRE,CARE ESTABLISHMENT,OPMH - Hunts & Fens,Older People Mental Health Hunts,Nursing Care
Cambridgeshire County Council,04-Sep-20,51301433592,"-1,080.36",THE MARBROOK CENTRE,CARE ESTABLISHMENT,OPMH - Hunts & Fens,Older People Mental Health Hunts,Nursing Care
Cambridgeshire County Council,04-Sep-20,51301433592,"-1,080.36",THE MARBROOK CENTRE,CARE ESTABLISHMENT,OPMH - Hunts & Fens,Older People Mental Health Hunts,Nursing Care
Cambridgeshire County Council,04-Sep-20,51301433592,"-1,080.36",THE MARBROOK CENTRE,CARE ESTABLISHMENT,OPMH - Hunts & Fens,Older People Mental Health Hunts,Nursing Care
Cambridgeshire County Council,04-Sep-20,51301433592,"-1,080.36",THE MARBROOK CENTRE,CARE ESTABLISHMENT,OPMH - Hunts & Fens,Older People Mental Health Hunts,Nursing Care
Cambridgeshire County Council,04-Sep-20,51301433592,"-1,080.36",THE MARBROOK CENTRE,CARE ESTABLISHMENT,OPMH - Hunts & Fens,Older People Mental Health Hunts,Nursing Care
Cambridgeshire County Council,04-Sep-20,51301433592,"-1,080.36",THE MARBROOK CENTRE,CARE ESTABLISHMENT,OPMH - Hunts & Fens,Older People Mental Health Hunts,Nursing Care
Cambridgeshire County Council,04-Sep-20,51301433592,"-1,080.36",THE MARBROOK CENTRE,CARE ESTABLISHMENT,OPMH - Hunts & Fens,Older People Mental Health Hunts,Nursing Care
Cambridgeshire County Council,04-Sep-20,51301433592,"-1,080.36",THE MARBROOK CENTRE,CARE ESTABLISHMENT,OPMH - Hunts & Fens,Older People Mental Health Hunts,Nursing Care
Cambridgeshire County Council,04-Sep-20,51301433592,"-1,080.36",THE MARBROOK CENTRE,CARE ESTABLISHMENT,OPMH - Hunts & Fens,Older People Mental Health Hunts,Nursing Care
Cambridgeshire County Council,04-Sep-20,51301433592,"-1,080.36",THE MARBROOK CENTRE,CARE ESTABLISHMENT,OPMH - Hunts & Fens,Older People Mental Health Hunts,Nursing Care
Cambridgeshire County Council,04-Sep-20,51301433592,"-1,080.36",THE MARBROOK CENTRE,CARE ESTABLISHMENT,OPMH - Hunts & Fens,Older People Mental Health Hunts,Nursing Care
Cambridgeshire County Council,04-Sep-20,51301433592,"-1,080.36",THE MARBROOK CENTRE,CARE ESTABLISHMENT,OPMH - Hunts & Fens,Older People Mental Health Hunts,Nursing Care
Cambridgeshire County Council,04-Sep-20,51301433592,"-1,080.36",THE MARBROOK CENTRE,CARE ESTABLISHMENT,OPMH - Hunts & Fens,Older People Mental Health Hunts,Nursing Care
Cambridgeshire County Council,04-Sep-20,51301433592,"-1,080.36",THE MARBROOK CENTRE,CARE ESTABLISHMENT,OPMH - Hunts & Fens,Older People Mental Health Hunts,Nursing Care
Cambridgeshire County Council,04-Sep-20,51301433592,"-1,080.36",THE MARBROOK CENTRE,CARE ESTABLISHMENT,OPMH - Hunts & Fens,Older People Mental Health Hunts,Nursing Care
Cambridgeshire County Council,04-Sep-20,51301433592,"-1,080.36",THE MARBROOK CENTRE,CARE ESTABLISHMENT,OPMH - Hunts & Fens,Older People Mental Health Hunts,Nursing Care
Cambridgeshire County Council,04-Sep-20,51301433592,"-1,080.36",THE MARBROOK CENTRE,CARE ESTABLISHMENT,OPMH - Hunts & Fens,Older People Mental Health Hunts,Nursing Care
Cambridgeshire County Council,04-Sep-20,51301433592,"-1,080.36",THE MARBROOK CENTRE,CARE ESTABLISHMENT,OPMH - Hunts & Fens,Older People Mental Health Hunts,Nursing Care
Cambridgeshire County Council,04-Sep-20,51301433592,"-1,080.36",THE MARBROOK CENTRE,CARE ESTABLISHMENT,OPMH - Hunts & Fens,Older People Mental Health Hunts,Nursing Care
Cambridgeshire County Council,04-Sep-20,51301433592,"-1,080.36",THE MARBROOK CENTRE,CARE ESTABLISHMENT,OPMH - Hunts & Fens,Older People Mental Health Hunts,Nursing Care
Cambridgeshire County Council,04-Sep-20,51301432551,"-1,071.16",VOYAGE (LICHFIELD),CARE ESTABLISHMENT,LD - Fenland Locality - Cost of Care,LD - Fenland  - Care,Residential Care
Cambridgeshire County Council,04-Sep-20,51301432551,"-1,071.16",VOYAGE (LICHFIELD),CARE ESTABLISHMENT,LD - Fenland Locality - Cost of Care,LD - Fenland  - Care,Residential Care
Cambridgeshire County Council,04-Sep-20,51301432551,"-1,071.16",VOYAGE (LICHFIELD),CARE ESTABLISHMENT,LD - Fenland Locality - Cost of Care,LD - Fenland  - Care,Residential Care
Cambridgeshire County Council,04-Sep-20,51301432551,"-1,071.16",VOYAGE (LICHFIELD),CARE ESTABLISHMENT,LD - Fenland Locality - Cost of Care,LD - Fenland  - Care,Residential Care
Cambridgeshire County Council,04-Sep-20,51301432551,"-1,071.16",VOYAGE (LICHFIELD),CARE ESTABLISHMENT,LD - Fenland Locality - Cost of Care,LD - Fenland  - Care,Residential Care
Cambridgeshire County Council,04-Sep-20,51301432551,"-1,071.16",VOYAGE (LICHFIELD),CARE ESTABLISHMENT,LD - Fenland Locality - Cost of Care,LD - Fenland  - Care,Residential Care
Cambridgeshire County Council,04-Sep-20,51301432551,"-1,071.16",VOYAGE (LICHFIELD),CARE ESTABLISHMENT,LD - Fenland Locality - Cost of Care,LD - Fenland  - Care,Residential Care
Cambridgeshire County Council,04-Sep-20,51301432551,"-1,071.16",VOYAGE (LICHFIELD),CARE ESTABLISHMENT,LD - Fenland Locality - Cost of Care,LD - Fenland  - Care,Residential Care
Cambridgeshire County Council,04-Sep-20,51301432551,"-1,071.16",VOYAGE (LICHFIELD),CARE ESTABLISHMENT,LD - Fenland Locality - Cost of Care,LD - Fenland  - Care,Residential Care
Cambridgeshire County Council,04-Sep-20,51301432551,"-1,071.16",VOYAGE (LICHFIELD),CARE ESTABLISHMENT,LD - Fenland Locality - Cost of Care,LD - Fenland  - Care,Residential Care
Cambridgeshire County Council,04-Sep-20,51301432551,"-1,071.16",VOYAGE (LICHFIELD),CARE ESTABLISHMENT,LD - Fenland Locality - Cost of Care,LD - Fenland  - Care,Residential Care
Cambridgeshire County Council,04-Sep-20,51301432551,"-1,071.16",VOYAGE (LICHFIELD),CARE ESTABLISHMENT,LD - Fenland Locality - Cost of Care,LD - Fenland  - Care,Residential Care
Cambridgeshire County Council,04-Sep-20,51301432551,"-1,071.16",VOYAGE (LICHFIELD),CARE ESTABLISHMENT,LD - Fenland Locality - Cost of Care,LD - Fenland  - Care,Residential Care
Cambridgeshire County Council,04-Sep-20,51301432551,"-1,071.16",VOYAGE (LICHFIELD),CARE ESTABLISHMENT,LD - Fenland Locality - Cost of Care,LD - Fenland  - Care,Residential Care
Cambridgeshire County Council,04-Sep-20,51301432551,"-1,071.16",VOYAGE (LICHFIELD),CARE ESTABLISHMENT,LD - Fenland Locality - Cost of Care,LD - Fenland  - Care,Residential Care
Cambridgeshire County Council,04-Sep-20,51301432551,"-1,071.16",VOYAGE (LICHFIELD),CARE ESTABLISHMENT,LD - Fenland Locality - Cost of Care,LD - Fenland  - Care,Residential Care
Cambridgeshire County Council,04-Sep-20,51301432551,"-1,071.16",VOYAGE (LICHFIELD),CARE ESTABLISHMENT,LD - Fenland Locality - Cost of Care,LD - Fenland  - Care,Residential Care
Cambridgeshire County Council,04-Sep-20,51301432551,"-1,071.16",VOYAGE (LICHFIELD),CARE ESTABLISHMENT,LD - Fenland Locality - Cost of Care,LD - Fenland  - Care,Residential Care
Cambridgeshire County Council,04-Sep-20,51301432551,"-1,071.16",VOYAGE (LICHFIELD),CARE ESTABLISHMENT,LD - Fenland Locality - Cost of Care,LD - Fenland  - Care,Residential Care
Cambridgeshire County Council,04-Sep-20,51301432551,"-1,071.16",VOYAGE (LICHFIELD),CARE ESTABLISHMENT,LD - Fenland Locality - Cost of Care,LD - Fenland  - Care,Residential Care
Cambridgeshire County Council,04-Sep-20,51301432551,"-1,071.16",VOYAGE (LICHFIELD),CARE ESTABLISHMENT,LD - Fenland Locality - Cost of Care,LD - Fenland  - Care,Residential Care
Cambridgeshire County Council,04-Sep-20,51301432551,"-1,071.16",VOYAGE (LICHFIELD),CARE ESTABLISHMENT,LD - Fenland Locality - Cost of Care,LD - Fenland  - Care,Residential Care
Cambridgeshire County Council,04-Sep-20,51301432551,"-1,071.16",VOYAGE (LICHFIELD),CARE ESTABLISHMENT,LD - Fenland Locality - Cost of Care,LD - Fenland  - Care,Residential Care
Cambridgeshire County Council,04-Sep-20,51301432551,"-1,071.16",VOYAGE (LICHFIELD),CARE ESTABLISHMENT,LD - Fenland Locality - Cost of Care,LD - Fenland  - Care,Residential Care
Cambridgeshire County Council,04-Sep-20,51301432614,"-1,068.65",73 HIGH ROAD,CARE ESTABLISHMENT,OPMH - Hunts & Fens,Older People Mental Health Fenland,Supported Living
Cambridgeshire County Council,04-Sep-20,51301432614,"-1,068.65",73 HIGH ROAD,CARE ESTABLISHMENT,OPMH - Hunts & Fens,Older People Mental Health Fenland,Supported Living
Cambridgeshire County Council,04-Sep-20,51301432614,"-1,068.65",73 HIGH ROAD,CARE ESTABLISHMENT,OPMH - Hunts & Fens,Older People Mental Health Fenland,Supported Living
Cambridgeshire County Council,04-Sep-20,51301432614,"-1,068.65",73 HIGH ROAD,CARE ESTABLISHMENT,OPMH - Hunts & Fens,Older People Mental Health Fenland,Supported Living
Cambridgeshire County Council,04-Sep-20,51301432614,"-1,068.65",73 HIGH ROAD,CARE ESTABLISHMENT,OPMH - Hunts & Fens,Older People Mental Health Fenland,Supported Living
Cambridgeshire County Council,04-Sep-20,51301432614,"-1,068.65",73 HIGH ROAD,CARE ESTABLISHMENT,OPMH - Hunts & Fens,Older People Mental Health Fenland,Supported Living
Cambridgeshire County Council,04-Sep-20,51301432614,"-1,068.65",73 HIGH ROAD,CARE ESTABLISHMENT,OPMH - Hunts & Fens,Older People Mental Health Fenland,Supported Living
Cambridgeshire County Council,04-Sep-20,51301432614,"-1,068.65",73 HIGH ROAD,CARE ESTABLISHMENT,OPMH - Hunts & Fens,Older People Mental Health Fenland,Supported Living
Cambridgeshire County Council,04-Sep-20,51301431864,"-1,049.70",MAKING SPACE,CARE ESTABLISHMENT,Physical Disablity - Cost of Care,Countywide PD Service - Care,Nursing Care
Cambridgeshire County Council,04-Sep-20,51301431864,"-1,049.70",MAKING SPACE,CARE ESTABLISHMENT,Physical Disablity - Cost of Care,Countywide PD Service - Care,Nursing Care
Cambridgeshire County Council,04-Sep-20,51301431864,"-1,049.70",MAKING SPACE,CARE ESTABLISHMENT,Physical Disablity - Cost of Care,Countywide PD Service - Care,Nursing Care
Cambridgeshire County Council,04-Sep-20,51301431864,"-1,049.70",MAKING SPACE,CARE ESTABLISHMENT,Physical Disablity - Cost of Care,Countywide PD Service - Care,Nursing Care
Cambridgeshire County Council,04-Sep-20,51301431864,"-1,049.70",MAKING SPACE,CARE ESTABLISHMENT,Physical Disablity - Cost of Care,Countywide PD Service - Care,Nursing Care
Cambridgeshire County Council,04-Sep-20,51301431864,"-1,049.70",MAKING SPACE,CARE ESTABLISHMENT,Physical Disablity - Cost of Care,Countywide PD Service - Care,Nursing Care
Cambridgeshire County Council,04-Sep-20,51301431864,"-1,049.70",MAKING SPACE,CARE ESTABLISHMENT,Physical Disablity - Cost of Care,Countywide PD Service - Care,Nursing Care
Cambridgeshire County Council,04-Sep-20,51301431864,"-1,049.70",MAKING SPACE,CARE ESTABLISHMENT,Physical Disablity - Cost of Care,Countywide PD Service - Care,Nursing Care
Cambridgeshire County Council,03-Sep-20,51301428321,"-1,033.85",Redacted Personal Data ,INDIVIDUAL,Physical Disablity - Cost of Care,Countywide PD Service - Care,Direct Payments
Cambridgeshire County Council,03-Sep-20,51301428321,"-1,033.85",Redacted Personal Data ,INDIVIDUAL,Physical Disablity - Cost of Care,Countywide PD Service - Care,Direct Payments
Cambridgeshire County Council,03-Sep-20,51301428321,"-1,033.85",Redacted Personal Data ,INDIVIDUAL,Physical Disablity - Cost of Care,Countywide PD Service - Care,Direct Payments
Cambridgeshire County Council,03-Sep-20,51301428321,"-1,033.85",Redacted Personal Data ,INDIVIDUAL,Physical Disablity - Cost of Care,Countywide PD Service - Care,Direct Payments
Cambridgeshire County Council,04-Sep-20,51301433559,"-1,030.00",HUNTERS HEALTHCARE (HUNTERS DOWN),CARE ESTABLISHMENT,OP - Hunts Locality - Cost of Care,Hunts OP Team - Care,Residential Care
Cambridgeshire County Council,04-Sep-20,51301433559,"-1,030.00",HUNTERS HEALTHCARE (HUNTERS DOWN),CARE ESTABLISHMENT,OP - Hunts Locality - Cost of Care,Hunts OP Team - Care,Residential Care
Cambridgeshire County Council,04-Sep-20,51301433559,"-1,030.00",HUNTERS HEALTHCARE (HUNTERS DOWN),CARE ESTABLISHMENT,OP - Hunts Locality - Cost of Care,Hunts OP Team - Care,Residential Care
Cambridgeshire County Council,04-Sep-20,51301433559,"-1,030.00",HUNTERS HEALTHCARE (HUNTERS DOWN),CARE ESTABLISHMENT,OP - Hunts Locality - Cost of Care,Hunts OP Team - Care,Residential Care
Cambridgeshire County Council,04-Sep-20,51301431702,"-1,026.03",VOYAGE,CARE ESTABLISHMENT,LD - South Locality - Cost of Care,LD - South Cambs - Care,Residential Care
Cambridgeshire County Council,04-Sep-20,51301431702,"-1,026.03",VOYAGE,CARE ESTABLISHMENT,LD - South Locality - Cost of Care,LD - South Cambs - Care,Residential Care
Cambridgeshire County Council,04-Sep-20,51301431702,"-1,026.03",VOYAGE,CARE ESTABLISHMENT,LD - South Locality - Cost of Care,LD - South Cambs - Care,Residential Care
Cambridgeshire County Council,04-Sep-20,51301431702,"-1,026.03",VOYAGE,CARE ESTABLISHMENT,LD - South Locality - Cost of Care,LD - South Cambs - Care,Residential Care
Cambridgeshire County Council,04-Sep-20,51301431702,"-1,026.03",VOYAGE,CARE ESTABLISHMENT,LD - South Locality - Cost of Care,LD - South Cambs - Care,Residential Care
Cambridgeshire County Council,04-Sep-20,51301431702,"-1,026.03",VOYAGE,CARE ESTABLISHMENT,LD - South Locality - Cost of Care,LD - South Cambs - Care,Residential Care
Cambridgeshire County Council,04-Sep-20,51301431702,"-1,026.03",VOYAGE,CARE ESTABLISHMENT,LD - South Locality - Cost of Care,LD - South Cambs - Care,Residential Care
Cambridgeshire County Council,04-Sep-20,51301431702,"-1,026.03",VOYAGE,CARE ESTABLISHMENT,LD - South Locality - Cost of Care,LD - South Cambs - Care,Residential Care
Cambridgeshire County Council,04-Sep-20,51301431702,"-1,026.03",VOYAGE,CARE ESTABLISHMENT,LD - South Locality - Cost of Care,LD - South Cambs - Care,Residential Care
Cambridgeshire County Council,04-Sep-20,51301431702,"-1,026.03",VOYAGE,CARE ESTABLISHMENT,LD - South Locality - Cost of Care,LD - South Cambs - Care,Residential Care
Cambridgeshire County Council,04-Sep-20,51301431702,"-1,026.03",VOYAGE,CARE ESTABLISHMENT,LD - South Locality - Cost of Care,LD - South Cambs - Care,Residential Care
Cambridgeshire County Council,04-Sep-20,51301431702,"-1,026.03",VOYAGE,CARE ESTABLISHMENT,LD - South Locality - Cost of Care,LD - South Cambs - Care,Residential Care
Cambridgeshire County Council,24-Sep-20,51301440167,"-1,018.95",1 RIVERVIEW DRIVE (DIMENSIONS),CARE ESTABLISHMENT,LD - Hunts Locality - Cost of Care,LD - Huntingdonshire - Care,Supported Living
Cambridgeshire County Council,04-Sep-20,51301431516,"-1,017.90",23 LIONS CROSS (VOYAGE),CARE ESTABLISHMENT,LD - South Locality - Cost of Care,LD - South Cambs - Care,Supported Living
Cambridgeshire County Council,04-Sep-20,51301431516,"-1,017.90",23 LIONS CROSS (VOYAGE),CARE ESTABLISHMENT,LD - South Locality - Cost of Care,LD - South Cambs - Care,Supported Living
Cambridgeshire County Council,04-Sep-20,51301431516,"-1,017.90",23 LIONS CROSS (VOYAGE),CARE ESTABLISHMENT,LD - South Locality - Cost of Care,LD - South Cambs - Care,Supported Living
Cambridgeshire County Council,04-Sep-20,51301431516,"-1,017.90",23 LIONS CROSS (VOYAGE),CARE ESTABLISHMENT,LD - South Locality - Cost of Care,LD - South Cambs - Care,Supported Living
Cambridgeshire County Council,04-Sep-20,51301431516,"-1,017.90",23 LIONS CROSS (VOYAGE),CARE ESTABLISHMENT,LD - South Locality - Cost of Care,LD - South Cambs - Care,Supported Living
Cambridgeshire County Council,04-Sep-20,51301431516,"-1,017.90",23 LIONS CROSS (VOYAGE),CARE ESTABLISHMENT,LD - South Locality - Cost of Care,LD - South Cambs - Care,Supported Living
Cambridgeshire County Council,04-Sep-20,51301431516,"-1,017.90",23 LIONS CROSS (VOYAGE),CARE ESTABLISHMENT,LD - South Locality - Cost of Care,LD - South Cambs - Care,Supported Living
Cambridgeshire County Council,04-Sep-20,51301431516,"-1,017.90",23 LIONS CROSS (VOYAGE),CARE ESTABLISHMENT,LD - South Locality - Cost of Care,LD - South Cambs - Care,Supported Living
Cambridgeshire County Council,04-Sep-20,51301432168,"-1,016.08",BRAMLEY COURT,CARE ESTABLISHMENT,OP - City & South Locality - Cost of Care,Older People - City & South - Care,Nursing Care
Cambridgeshire County Council,04-Sep-20,51301432168,"-1,016.08",BRAMLEY COURT,CARE ESTABLISHMENT,OP - City & South Locality - Cost of Care,Older People - City & South - Care,Nursing Care
Cambridgeshire County Council,04-Sep-20,51301432168,"-1,016.08",BRAMLEY COURT,CARE ESTABLISHMENT,OP - City & South Locality - Cost of Care,Older People - City & South - Care,Nursing Care
Cambridgeshire County Council,04-Sep-20,51301432168,"-1,016.08",BRAMLEY COURT,CARE ESTABLISHMENT,OP - City & South Locality - Cost of Care,Older People - City & South - Care,Nursing Care
Cambridgeshire County Council,04-Sep-20,51301433340,-996.64,VOYAGE,CARE ESTABLISHMENT,LD - South Locality - Cost of Care,LD - South Cambs - Care,Supported Living
Cambridgeshire County Council,04-Sep-20,51301433340,-996.64,VOYAGE,CARE ESTABLISHMENT,LD - South Locality - Cost of Care,LD - South Cambs - Care,Supported Living
Cambridgeshire County Council,04-Sep-20,51301433340,-996.64,VOYAGE,CARE ESTABLISHMENT,LD - South Locality - Cost of Care,LD - South Cambs - Care,Supported Living
Cambridgeshire County Council,04-Sep-20,51301433340,-996.64,VOYAGE,CARE ESTABLISHMENT,LD - South Locality - Cost of Care,LD - South Cambs - Care,Supported Living
Cambridgeshire County Council,04-Sep-20,51301433340,-996.64,VOYAGE,CARE ESTABLISHMENT,LD - South Locality - Cost of Care,LD - South Cambs - Care,Supported Living
Cambridgeshire County Council,04-Sep-20,51301433340,-996.64,VOYAGE,CARE ESTABLISHMENT,LD - South Locality - Cost of Care,LD - South Cambs - Care,Supported Living
Cambridgeshire County Council,04-Sep-20,51301433340,-996.64,VOYAGE,CARE ESTABLISHMENT,LD - South Locality - Cost of Care,LD - South Cambs - Care,Supported Living
Cambridgeshire County Council,04-Sep-20,51301433340,-996.64,VOYAGE,CARE ESTABLISHMENT,LD - South Locality - Cost of Care,LD - South Cambs - Care,Supported Living
Cambridgeshire County Council,04-Sep-20,51301431992,-988.83,GLENHOLME HEALTHCARE LTD,CARE ESTABLISHMENT,LD - Young Adults Team,LD - Young Adults - Care,Residential Care
Cambridgeshire County Council,18-Sep-20,51301438893,-988.00,THE ELMS NURSING HOME,CARE ESTABLISHMENT,OP - Hunts Locality - Cost of Care,Hunts OP Team - Care,Nursing Care
Cambridgeshire County Council,04-Sep-20,51301431195,-975.00,HOME MEADOW LTD,CARE ESTABLISHMENT,OP - City & South Locality - Cost of Care,Older People - City & South - Care,Residential Care
Cambridgeshire County Council,04-Sep-20,51301431195,-975.00,HOME MEADOW LTD,CARE ESTABLISHMENT,OP - City & South Locality - Cost of Care,Older People - City & South - Care,Residential Care
Cambridgeshire County Council,04-Sep-20,51301431195,-975.00,HOME MEADOW LTD,CARE ESTABLISHMENT,OP - City & South Locality - Cost of Care,Older People - City & South - Care,Residential Care
Cambridgeshire County Council,04-Sep-20,51301431195,-975.00,HOME MEADOW LTD,CARE ESTABLISHMENT,OP - City & South Locality - Cost of Care,Older People - City & South - Care,Residential Care
Cambridgeshire County Council,04-Sep-20,51301431195,-975.00,HOME MEADOW LTD,CARE ESTABLISHMENT,OP - City & South Locality - Cost of Care,Older People - City & South - Care,Residential Care
Cambridgeshire County Council,04-Sep-20,51301431195,-975.00,HOME MEADOW LTD,CARE ESTABLISHMENT,OP - City & South Locality - Cost of Care,Older People - City & South - Care,Residential Care
Cambridgeshire County Council,04-Sep-20,51301431195,-975.00,HOME MEADOW LTD,CARE ESTABLISHMENT,OP - City & South Locality - Cost of Care,Older People - City & South - Care,Residential Care
Cambridgeshire County Council,04-Sep-20,51301431195,-975.00,HOME MEADOW LTD,CARE ESTABLISHMENT,OP - City & South Locality - Cost of Care,Older People - City & South - Care,Residential Care
Cambridgeshire County Council,04-Sep-20,51301431195,-975.00,HOME MEADOW LTD,CARE ESTABLISHMENT,OP - City & South Locality - Cost of Care,Older People - City & South - Care,Residential Care
Cambridgeshire County Council,04-Sep-20,51301431195,-975.00,HOME MEADOW LTD,CARE ESTABLISHMENT,OP - City & South Locality - Cost of Care,Older People - City & South - Care,Residential Care
Cambridgeshire County Council,04-Sep-20,51301431195,-975.00,HOME MEADOW LTD,CARE ESTABLISHMENT,OP - City & South Locality - Cost of Care,Older People - City & South - Care,Residential Care
Cambridgeshire County Council,04-Sep-20,51301431195,-975.00,HOME MEADOW LTD,CARE ESTABLISHMENT,OP - City & South Locality - Cost of Care,Older People - City & South - Care,Residential Care
Cambridgeshire County Council,04-Sep-20,51301431195,-975.00,HOME MEADOW LTD,CARE ESTABLISHMENT,OP - City & South Locality - Cost of Care,Older People - City & South - Care,Residential Care
Cambridgeshire County Council,04-Sep-20,51301431195,-975.00,HOME MEADOW LTD,CARE ESTABLISHMENT,OP - City & South Locality - Cost of Care,Older People - City & South - Care,Residential Care
Cambridgeshire County Council,04-Sep-20,51301431195,-975.00,HOME MEADOW LTD,CARE ESTABLISHMENT,OP - City & South Locality - Cost of Care,Older People - City & South - Care,Residential Care
Cambridgeshire County Council,04-Sep-20,51301431195,-975.00,HOME MEADOW LTD,CARE ESTABLISHMENT,OP - City & South Locality - Cost of Care,Older People - City & South - Care,Residential Care
Cambridgeshire County Council,04-Sep-20,51301431195,-975.00,HOME MEADOW LTD,CARE ESTABLISHMENT,OP - City & South Locality - Cost of Care,Older People - City & South - Care,Residential Care
Cambridgeshire County Council,04-Sep-20,51301431195,-975.00,HOME MEADOW LTD,CARE ESTABLISHMENT,OP - City & South Locality - Cost of Care,Older People - City & South - Care,Residential Care
Cambridgeshire County Council,04-Sep-20,51301431195,-975.00,HOME MEADOW LTD,CARE ESTABLISHMENT,OP - City & South Locality - Cost of Care,Older People - City & South - Care,Residential Care
Cambridgeshire County Council,04-Sep-20,51301431195,-975.00,HOME MEADOW LTD,CARE ESTABLISHMENT,OP - City & South Locality - Cost of Care,Older People - City & South - Care,Residential Care
Cambridgeshire County Council,04-Sep-20,51301431195,-975.00,HOME MEADOW LTD,CARE ESTABLISHMENT,OP - City & South Locality - Cost of Care,Older People - City & South - Care,Residential Care
Cambridgeshire County Council,04-Sep-20,51301431524,-961.58,2 CHEVERIL LANE (VOYAGE),CARE ESTABLISHMENT,LD - Hunts Locality - Cost of Care,LD - Huntingdonshire - Care,Supported Living
Cambridgeshire County Council,04-Sep-20,51301431524,-961.58,2 CHEVERIL LANE (VOYAGE),CARE ESTABLISHMENT,LD - Hunts Locality - Cost of Care,LD - Huntingdonshire - Care,Supported Living
Cambridgeshire County Council,04-Sep-20,51301431524,-961.58,2 CHEVERIL LANE (VOYAGE),CARE ESTABLISHMENT,LD - Hunts Locality - Cost of Care,LD - Huntingdonshire - Care,Supported Living
Cambridgeshire County Council,04-Sep-20,51301431524,-961.58,2 CHEVERIL LANE (VOYAGE),CARE ESTABLISHMENT,LD - Hunts Locality - Cost of Care,LD - Huntingdonshire - Care,Supported Living
Cambridgeshire County Council,04-Sep-20,51301431524,-961.58,2 CHEVERIL LANE (VOYAGE),CARE ESTABLISHMENT,LD - Hunts Locality - Cost of Care,LD - Huntingdonshire - Care,Supported Living
Cambridgeshire County Council,04-Sep-20,51301431524,-961.58,2 CHEVERIL LANE (VOYAGE),CARE ESTABLISHMENT,LD - Hunts Locality - Cost of Care,LD - Huntingdonshire - Care,Supported Living
Cambridgeshire County Council,04-Sep-20,51301431524,-961.58,2 CHEVERIL LANE (VOYAGE),CARE ESTABLISHMENT,LD - Hunts Locality - Cost of Care,LD - Huntingdonshire - Care,Supported Living
Cambridgeshire County Council,04-Sep-20,51301431524,-961.58,2 CHEVERIL LANE (VOYAGE),CARE ESTABLISHMENT,LD - Hunts Locality - Cost of Care,LD - Huntingdonshire - Care,Supported Living
Cambridgeshire County Council,04-Sep-20,51301432547,-960.90,VOYAGE,CARE ESTABLISHMENT,LD - South Locality - Cost of Care,LD - South Cambs - Care,Residential Care
Cambridgeshire County Council,04-Sep-20,51301432547,-960.90,VOYAGE,CARE ESTABLISHMENT,LD - South Locality - Cost of Care,LD - South Cambs - Care,Residential Care
Cambridgeshire County Council,04-Sep-20,51301432547,-960.90,VOYAGE,CARE ESTABLISHMENT,LD - South Locality - Cost of Care,LD - South Cambs - Care,Residential Care
Cambridgeshire County Council,04-Sep-20,51301432547,-960.90,VOYAGE,CARE ESTABLISHMENT,LD - South Locality - Cost of Care,LD - South Cambs - Care,Residential Care
Cambridgeshire County Council,04-Sep-20,51301432547,-960.90,VOYAGE,CARE ESTABLISHMENT,LD - South Locality - Cost of Care,LD - South Cambs - Care,Residential Care
Cambridgeshire County Council,04-Sep-20,51301432547,-960.90,VOYAGE,CARE ESTABLISHMENT,LD - South Locality - Cost of Care,LD - South Cambs - Care,Residential Care
Cambridgeshire County Council,04-Sep-20,51301432547,-960.90,VOYAGE,CARE ESTABLISHMENT,LD - South Locality - Cost of Care,LD - South Cambs - Care,Residential Care
Cambridgeshire County Council,04-Sep-20,51301432547,-960.90,VOYAGE,CARE ESTABLISHMENT,LD - South Locality - Cost of Care,LD - South Cambs - Care,Residential Care
Cambridgeshire County Council,04-Sep-20,51301432547,-960.90,VOYAGE,CARE ESTABLISHMENT,LD - South Locality - Cost of Care,LD - South Cambs - Care,Residential Care
Cambridgeshire County Council,04-Sep-20,51301432547,-960.90,VOYAGE,CARE ESTABLISHMENT,LD - South Locality - Cost of Care,LD - South Cambs - Care,Residential Care
Cambridgeshire County Council,04-Sep-20,51301432547,-960.90,VOYAGE,CARE ESTABLISHMENT,LD - South Locality - Cost of Care,LD - South Cambs - Care,Residential Care
Cambridgeshire County Council,04-Sep-20,51301432547,-960.90,VOYAGE,CARE ESTABLISHMENT,LD - South Locality - Cost of Care,LD - South Cambs - Care,Residential Care
Cambridgeshire County Council,04-Sep-20,51301430482,-958.19,Faith Care Line Services Ltd,CARE ESTABLISHMENT,LD - Hunts Locality - Cost of Care,LD - Huntingdonshire - Care,Domiciliary Care
Cambridgeshire County Council,04-Sep-20,51301431270,-950.00,CITY CARE SERVICE HOME CARE SERVICES,CARE ESTABLISHMENT,OP - City & South Locality - Cost of Care,Older People - City & South - Care,Homecare
Cambridgeshire County Council,04-Sep-20,51301431270,-950.00,CITY CARE SERVICE HOME CARE SERVICES,CARE ESTABLISHMENT,OP - City & South Locality - Cost of Care,Older People - City & South - Care,Homecare
Cambridgeshire County Council,04-Sep-20,51301431270,-950.00,CITY CARE SERVICE HOME CARE SERVICES,CARE ESTABLISHMENT,OP - City & South Locality - Cost of Care,Older People - City & South - Care,Homecare
Cambridgeshire County Council,04-Sep-20,51301431270,-950.00,CITY CARE SERVICE HOME CARE SERVICES,CARE ESTABLISHMENT,OP - City & South Locality - Cost of Care,Older People - City & South - Care,Homecare
Cambridgeshire County Council,04-Sep-20,51301431270,-950.00,CITY CARE SERVICE HOME CARE SERVICES,CARE ESTABLISHMENT,OP - City & South Locality - Cost of Care,Older People - City & South - Care,Homecare
Cambridgeshire County Council,04-Sep-20,51301431270,-950.00,CITY CARE SERVICE HOME CARE SERVICES,CARE ESTABLISHMENT,OP - City & South Locality - Cost of Care,Older People - City & South - Care,Homecare
Cambridgeshire County Council,04-Sep-20,51301431270,-950.00,CITY CARE SERVICE HOME CARE SERVICES,CARE ESTABLISHMENT,OP - City & South Locality - Cost of Care,Older People - City & South - Care,Homecare
Cambridgeshire County Council,04-Sep-20,51301431270,-950.00,CITY CARE SERVICE HOME CARE SERVICES,CARE ESTABLISHMENT,OP - City & South Locality - Cost of Care,Older People - City & South - Care,Homecare
Cambridgeshire County Council,04-Sep-20,51301431270,-950.00,CITY CARE SERVICE HOME CARE SERVICES,CARE ESTABLISHMENT,OP - City & South Locality - Cost of Care,Older People - City & South - Care,Homecare
Cambridgeshire County Council,04-Sep-20,51301431270,-950.00,CITY CARE SERVICE HOME CARE SERVICES,CARE ESTABLISHMENT,OP - City & South Locality - Cost of Care,Older People - City & South - Care,Homecare
Cambridgeshire County Council,04-Sep-20,51301431270,-950.00,CITY CARE SERVICE HOME CARE SERVICES,CARE ESTABLISHMENT,OP - City & South Locality - Cost of Care,Older People - City & South - Care,Homecare
Cambridgeshire County Council,04-Sep-20,51301431270,-950.00,CITY CARE SERVICE HOME CARE SERVICES,CARE ESTABLISHMENT,OP - City & South Locality - Cost of Care,Older People - City & South - Care,Homecare
Cambridgeshire County Council,04-Sep-20,51301431270,-950.00,CITY CARE SERVICE HOME CARE SERVICES,CARE ESTABLISHMENT,OP - City & South Locality - Cost of Care,Older People - City & South - Care,Homecare
Cambridgeshire County Council,04-Sep-20,51301431270,-950.00,CITY CARE SERVICE HOME CARE SERVICES,CARE ESTABLISHMENT,OP - City & South Locality - Cost of Care,Older People - City & South - Care,Homecare
Cambridgeshire County Council,04-Sep-20,51301433592,-926.02,THE MARBROOK CENTRE,CARE ESTABLISHMENT,OPMH - Hunts & Fens,Older People Mental Health Hunts,Nursing Care
Cambridgeshire County Council,04-Sep-20,51301431719,-915.06,PAULINE BURNETT HOUSE,CARE ESTABLISHMENT,LD - South Locality - Cost of Care,LD - South Cambs - Care,Residential Care
Cambridgeshire County Council,04-Sep-20,51301431719,-915.06,PAULINE BURNETT HOUSE,CARE ESTABLISHMENT,LD - South Locality - Cost of Care,LD - South Cambs - Care,Residential Care
Cambridgeshire County Council,04-Sep-20,51301431719,-915.06,PAULINE BURNETT HOUSE,CARE ESTABLISHMENT,LD - South Locality - Cost of Care,LD - South Cambs - Care,Residential Care
Cambridgeshire County Council,04-Sep-20,51301431719,-915.06,PAULINE BURNETT HOUSE,CARE ESTABLISHMENT,LD - South Locality - Cost of Care,LD - South Cambs - Care,Residential Care
Cambridgeshire County Council,04-Sep-20,51301431864,-899.74,MAKING SPACE,CARE ESTABLISHMENT,Physical Disablity - Cost of Care,Countywide PD Service - Care,Nursing Care
Cambridgeshire County Council,04-Sep-20,51301431210,-892.86,OAKLANDS CARE HOME,CARE ESTABLISHMENT,OP - East Cambs Locality - Cost of Care,East Cambs - O P Team - Care,Nursing Care
Cambridgeshire County Council,04-Sep-20,51301429955,-887.40,TRINITY CARESTAFF SOLUTIONS LIMITED,CARE ESTABLISHMENT,Physical Disablity - Cost of Care,Countywide PD Service - Care,Domiciliary Care
Cambridgeshire County Council,04-Sep-20,51301429955,-887.40,TRINITY CARESTAFF SOLUTIONS LIMITED,CARE ESTABLISHMENT,Physical Disablity - Cost of Care,Countywide PD Service - Care,Domiciliary Care
Cambridgeshire County Council,04-Sep-20,51301433445,-880.96,VOYAGE,CARE ESTABLISHMENT,LD - Hunts Locality - Cost of Care,LD - Huntingdonshire - Care,Supported Living
Cambridgeshire County Council,04-Sep-20,51301433445,-880.96,VOYAGE,CARE ESTABLISHMENT,LD - Hunts Locality - Cost of Care,LD - Huntingdonshire - Care,Supported Living
Cambridgeshire County Council,04-Sep-20,51301433445,-880.96,VOYAGE,CARE ESTABLISHMENT,LD - Hunts Locality - Cost of Care,LD - Huntingdonshire - Care,Supported Living
Cambridgeshire County Council,04-Sep-20,51301433445,-880.96,VOYAGE,CARE ESTABLISHMENT,LD - Hunts Locality - Cost of Care,LD - Huntingdonshire - Care,Supported Living
Cambridgeshire County Council,04-Sep-20,51301433445,-880.96,VOYAGE,CARE ESTABLISHMENT,LD - Hunts Locality - Cost of Care,LD - Huntingdonshire - Care,Supported Living
Cambridgeshire County Council,04-Sep-20,51301433445,-880.96,VOYAGE,CARE ESTABLISHMENT,LD - Hunts Locality - Cost of Care,LD - Huntingdonshire - Care,Supported Living
Cambridgeshire County Council,04-Sep-20,51301433445,-880.96,VOYAGE,CARE ESTABLISHMENT,LD - Hunts Locality - Cost of Care,LD - Huntingdonshire - Care,Supported Living
Cambridgeshire County Council,04-Sep-20,51301433445,-880.96,VOYAGE,CARE ESTABLISHMENT,LD - Hunts Locality - Cost of Care,LD - Huntingdonshire - Care,Supported Living
Cambridgeshire County Council,04-Sep-20,51301433445,-880.96,VOYAGE,CARE ESTABLISHMENT,LD - Hunts Locality - Cost of Care,LD - Huntingdonshire - Care,Supported Living
Cambridgeshire County Council,04-Sep-20,51301433445,-880.96,VOYAGE,CARE ESTABLISHMENT,LD - Hunts Locality - Cost of Care,LD - Huntingdonshire - Care,Supported Living
Cambridgeshire County Council,04-Sep-20,51301433445,-880.96,VOYAGE,CARE ESTABLISHMENT,LD - Hunts Locality - Cost of Care,LD - Huntingdonshire - Care,Supported Living
Cambridgeshire County Council,04-Sep-20,51301433445,-880.96,VOYAGE,CARE ESTABLISHMENT,LD - Hunts Locality - Cost of Care,LD - Huntingdonshire - Care,Supported Living
Cambridgeshire County Council,04-Sep-20,51301433445,-880.96,VOYAGE,CARE ESTABLISHMENT,LD - Hunts Locality - Cost of Care,LD - Huntingdonshire - Care,Supported Living
Cambridgeshire County Council,04-Sep-20,51301433445,-880.96,VOYAGE,CARE ESTABLISHMENT,LD - Hunts Locality - Cost of Care,LD - Huntingdonshire - Care,Supported Living
Cambridgeshire County Council,04-Sep-20,51301433445,-880.96,VOYAGE,CARE ESTABLISHMENT,LD - Hunts Locality - Cost of Care,LD - Huntingdonshire - Care,Supported Living
Cambridgeshire County Council,04-Sep-20,51301433445,-880.96,VOYAGE,CARE ESTABLISHMENT,LD - Hunts Locality - Cost of Care,LD - Huntingdonshire - Care,Supported Living
Cambridgeshire County Council,04-Sep-20,51301433445,-880.96,VOYAGE,CARE ESTABLISHMENT,LD - Hunts Locality - Cost of Care,LD - Huntingdonshire - Care,Supported Living
Cambridgeshire County Council,04-Sep-20,51301433445,-880.96,VOYAGE,CARE ESTABLISHMENT,LD - Hunts Locality - Cost of Care,LD - Huntingdonshire - Care,Supported Living
Cambridgeshire County Council,04-Sep-20,51301433445,-880.96,VOYAGE,CARE ESTABLISHMENT,LD - Hunts Locality - Cost of Care,LD - Huntingdonshire - Care,Supported Living
Cambridgeshire County Council,04-Sep-20,51301433445,-880.96,VOYAGE,CARE ESTABLISHMENT,LD - Hunts Locality - Cost of Care,LD - Huntingdonshire - Care,Supported Living
Cambridgeshire County Council,04-Sep-20,51301433445,-880.96,VOYAGE,CARE ESTABLISHMENT,LD - Hunts Locality - Cost of Care,LD - Huntingdonshire - Care,Supported Living
Cambridgeshire County Council,04-Sep-20,51301433445,-880.96,VOYAGE,CARE ESTABLISHMENT,LD - Hunts Locality - Cost of Care,LD - Huntingdonshire - Care,Supported Living
Cambridgeshire County Council,04-Sep-20,51301433445,-880.96,VOYAGE,CARE ESTABLISHMENT,LD - Hunts Locality - Cost of Care,LD - Huntingdonshire - Care,Supported Living
Cambridgeshire County Council,04-Sep-20,51301433445,-880.96,VOYAGE,CARE ESTABLISHMENT,LD - Hunts Locality - Cost of Care,LD - Huntingdonshire - Care,Supported Living
Cambridgeshire County Council,04-Sep-20,51301433445,-880.96,VOYAGE,CARE ESTABLISHMENT,LD - Hunts Locality - Cost of Care,LD - Huntingdonshire - Care,Supported Living
Cambridgeshire County Council,04-Sep-20,51301433445,-880.96,VOYAGE,CARE ESTABLISHMENT,LD - Hunts Locality - Cost of Care,LD - Huntingdonshire - Care,Supported Living
Cambridgeshire County Council,04-Sep-20,51301433445,-880.96,VOYAGE,CARE ESTABLISHMENT,LD - Hunts Locality - Cost of Care,LD - Huntingdonshire - Care,Supported Living
Cambridgeshire County Council,04-Sep-20,51301433445,-880.96,VOYAGE,CARE ESTABLISHMENT,LD - Hunts Locality - Cost of Care,LD - Huntingdonshire - Care,Supported Living
Cambridgeshire County Council,04-Sep-20,51301433445,-880.96,VOYAGE,CARE ESTABLISHMENT,LD - Hunts Locality - Cost of Care,LD - Huntingdonshire - Care,Supported Living
Cambridgeshire County Council,04-Sep-20,51301433445,-880.96,VOYAGE,CARE ESTABLISHMENT,LD - Hunts Locality - Cost of Care,LD - Huntingdonshire - Care,Supported Living
Cambridgeshire County Council,04-Sep-20,51301433445,-880.96,VOYAGE,CARE ESTABLISHMENT,LD - Hunts Locality - Cost of Care,LD - Huntingdonshire - Care,Supported Living
Cambridgeshire County Council,04-Sep-20,51301433445,-880.96,VOYAGE,CARE ESTABLISHMENT,LD - Hunts Locality - Cost of Care,LD - Huntingdonshire - Care,Supported Living
Cambridgeshire County Council,04-Sep-20,51301433445,-880.96,VOYAGE,CARE ESTABLISHMENT,LD - Hunts Locality - Cost of Care,LD - Huntingdonshire - Care,Supported Living
Cambridgeshire County Council,04-Sep-20,51301433445,-880.96,VOYAGE,CARE ESTABLISHMENT,LD - Hunts Locality - Cost of Care,LD - Huntingdonshire - Care,Supported Living
Cambridgeshire County Council,04-Sep-20,51301433445,-880.96,VOYAGE,CARE ESTABLISHMENT,LD - Hunts Locality - Cost of Care,LD - Huntingdonshire - Care,Supported Living
Cambridgeshire County Council,04-Sep-20,51301433445,-880.96,VOYAGE,CARE ESTABLISHMENT,LD - Hunts Locality - Cost of Care,LD - Huntingdonshire - Care,Supported Living
Cambridgeshire County Council,04-Sep-20,51301429623,-865.80,VOYAGE (LICHFIELD),CARE ESTABLISHMENT,LD - Fenland Locality - Cost of Care,LD - Fenland  - Care,Supported Living
Cambridgeshire County Council,04-Sep-20,51301429623,-865.80,VOYAGE (LICHFIELD),CARE ESTABLISHMENT,LD - Fenland Locality - Cost of Care,LD - Fenland  - Care,Supported Living
Cambridgeshire County Council,04-Sep-20,51301429623,-865.80,VOYAGE (LICHFIELD),CARE ESTABLISHMENT,LD - Fenland Locality - Cost of Care,LD - Fenland  - Care,Supported Living
Cambridgeshire County Council,04-Sep-20,51301429623,-865.80,VOYAGE (LICHFIELD),CARE ESTABLISHMENT,LD - Fenland Locality - Cost of Care,LD - Fenland  - Care,Supported Living
Cambridgeshire County Council,04-Sep-20,51301429623,-865.80,VOYAGE (LICHFIELD),CARE ESTABLISHMENT,LD - Fenland Locality - Cost of Care,LD - Fenland  - Care,Supported Living
Cambridgeshire County Council,04-Sep-20,51301429623,-865.80,VOYAGE (LICHFIELD),CARE ESTABLISHMENT,LD - Fenland Locality - Cost of Care,LD - Fenland  - Care,Supported Living
Cambridgeshire County Council,04-Sep-20,51301429623,-865.80,VOYAGE (LICHFIELD),CARE ESTABLISHMENT,LD - Fenland Locality - Cost of Care,LD - Fenland  - Care,Supported Living
Cambridgeshire County Council,04-Sep-20,51301429623,-865.80,VOYAGE (LICHFIELD),CARE ESTABLISHMENT,LD - Fenland Locality - Cost of Care,LD - Fenland  - Care,Supported Living
Cambridgeshire County Council,04-Sep-20,51301429623,-865.80,VOYAGE (LICHFIELD),CARE ESTABLISHMENT,LD - Fenland Locality - Cost of Care,LD - Fenland  - Care,Supported Living
Cambridgeshire County Council,04-Sep-20,51301429623,-865.80,VOYAGE (LICHFIELD),CARE ESTABLISHMENT,LD - Fenland Locality - Cost of Care,LD - Fenland  - Care,Supported Living
Cambridgeshire County Council,04-Sep-20,51301429623,-865.80,VOYAGE (LICHFIELD),CARE ESTABLISHMENT,LD - Fenland Locality - Cost of Care,LD - Fenland  - Care,Supported Living
Cambridgeshire County Council,04-Sep-20,51301429623,-865.80,VOYAGE (LICHFIELD),CARE ESTABLISHMENT,LD - Fenland Locality - Cost of Care,LD - Fenland  - Care,Supported Living
Cambridgeshire County Council,04-Sep-20,51301429623,-865.80,VOYAGE (LICHFIELD),CARE ESTABLISHMENT,LD - Fenland Locality - Cost of Care,LD - Fenland  - Care,Supported Living
Cambridgeshire County Council,04-Sep-20,51301429623,-865.80,VOYAGE (LICHFIELD),CARE ESTABLISHMENT,LD - Fenland Locality - Cost of Care,LD - Fenland  - Care,Supported Living
Cambridgeshire County Council,04-Sep-20,51301429623,-865.80,VOYAGE (LICHFIELD),CARE ESTABLISHMENT,LD - Fenland Locality - Cost of Care,LD - Fenland  - Care,Supported Living
Cambridgeshire County Council,04-Sep-20,51301429623,-865.80,VOYAGE (LICHFIELD),CARE ESTABLISHMENT,LD - Fenland Locality - Cost of Care,LD - Fenland  - Care,Supported Living
Cambridgeshire County Council,04-Sep-20,51301432546,-864.82,VOYAGE,CARE ESTABLISHMENT,LD - South Locality - Cost of Care,LD - South Cambs - Care,Residential Care
Cambridgeshire County Council,04-Sep-20,51301432546,-864.82,VOYAGE,CARE ESTABLISHMENT,LD - South Locality - Cost of Care,LD - South Cambs - Care,Residential Care
Cambridgeshire County Council,04-Sep-20,51301432546,-864.82,VOYAGE,CARE ESTABLISHMENT,LD - South Locality - Cost of Care,LD - South Cambs - Care,Residential Care
Cambridgeshire County Council,04-Sep-20,51301432546,-864.82,VOYAGE,CARE ESTABLISHMENT,LD - South Locality - Cost of Care,LD - South Cambs - Care,Residential Care
Cambridgeshire County Council,04-Sep-20,51301432546,-864.82,VOYAGE,CARE ESTABLISHMENT,LD - South Locality - Cost of Care,LD - South Cambs - Care,Residential Care
Cambridgeshire County Council,04-Sep-20,51301432546,-864.82,VOYAGE,CARE ESTABLISHMENT,LD - South Locality - Cost of Care,LD - South Cambs - Care,Residential Care
Cambridgeshire County Council,04-Sep-20,51301432546,-864.82,VOYAGE,CARE ESTABLISHMENT,LD - South Locality - Cost of Care,LD - South Cambs - Care,Residential Care
Cambridgeshire County Council,04-Sep-20,51301432546,-864.82,VOYAGE,CARE ESTABLISHMENT,LD - South Locality - Cost of Care,LD - South Cambs - Care,Residential Care
Cambridgeshire County Council,04-Sep-20,51301432546,-864.82,VOYAGE,CARE ESTABLISHMENT,LD - South Locality - Cost of Care,LD - South Cambs - Care,Residential Care
Cambridgeshire County Council,04-Sep-20,51301432546,-864.82,VOYAGE,CARE ESTABLISHMENT,LD - South Locality - Cost of Care,LD - South Cambs - Care,Residential Care
Cambridgeshire County Council,04-Sep-20,51301432546,-864.82,VOYAGE,CARE ESTABLISHMENT,LD - South Locality - Cost of Care,LD - South Cambs - Care,Residential Care
Cambridgeshire County Council,04-Sep-20,51301432546,-864.82,VOYAGE,CARE ESTABLISHMENT,LD - South Locality - Cost of Care,LD - South Cambs - Care,Residential Care
Cambridgeshire County Council,04-Sep-20,51301431622,-860.79,VOYAGE,CARE ESTABLISHMENT,LD - South Locality - Cost of Care,LD - South Cambs - Care,Residential Care
Cambridgeshire County Council,04-Sep-20,51301431622,-860.79,VOYAGE,CARE ESTABLISHMENT,LD - South Locality - Cost of Care,LD - South Cambs - Care,Residential Care
Cambridgeshire County Council,04-Sep-20,51301431622,-860.79,VOYAGE,CARE ESTABLISHMENT,LD - South Locality - Cost of Care,LD - South Cambs - Care,Residential Care
Cambridgeshire County Council,04-Sep-20,51301431622,-860.79,VOYAGE,CARE ESTABLISHMENT,LD - South Locality - Cost of Care,LD - South Cambs - Care,Residential Care
Cambridgeshire County Council,04-Sep-20,51301431622,-860.79,VOYAGE,CARE ESTABLISHMENT,LD - South Locality - Cost of Care,LD - South Cambs - Care,Residential Care
Cambridgeshire County Council,04-Sep-20,51301431622,-860.79,VOYAGE,CARE ESTABLISHMENT,LD - South Locality - Cost of Care,LD - South Cambs - Care,Residential Care
Cambridgeshire County Council,04-Sep-20,51301431622,-860.79,VOYAGE,CARE ESTABLISHMENT,LD - South Locality - Cost of Care,LD - South Cambs - Care,Residential Care
Cambridgeshire County Council,04-Sep-20,51301431622,-860.79,VOYAGE,CARE ESTABLISHMENT,LD - South Locality - Cost of Care,LD - South Cambs - Care,Residential Care
Cambridgeshire County Council,04-Sep-20,51301431622,-860.79,VOYAGE,CARE ESTABLISHMENT,LD - South Locality - Cost of Care,LD - South Cambs - Care,Residential Care
Cambridgeshire County Council,04-Sep-20,51301431622,-860.79,VOYAGE,CARE ESTABLISHMENT,LD - South Locality - Cost of Care,LD - South Cambs - Care,Residential Care
Cambridgeshire County Council,04-Sep-20,51301431622,-860.79,VOYAGE,CARE ESTABLISHMENT,LD - South Locality - Cost of Care,LD - South Cambs - Care,Residential Care
Cambridgeshire County Council,04-Sep-20,51301431622,-860.79,VOYAGE,CARE ESTABLISHMENT,LD - South Locality - Cost of Care,LD - South Cambs - Care,Residential Care
Cambridgeshire County Council,04-Sep-20,51301431622,-860.79,VOYAGE,CARE ESTABLISHMENT,LD - South Locality - Cost of Care,LD - South Cambs - Care,Residential Care
Cambridgeshire County Council,04-Sep-20,51301431622,-860.79,VOYAGE,CARE ESTABLISHMENT,LD - South Locality - Cost of Care,LD - South Cambs - Care,Residential Care
Cambridgeshire County Council,04-Sep-20,51301431622,-860.79,VOYAGE,CARE ESTABLISHMENT,LD - South Locality - Cost of Care,LD - South Cambs - Care,Residential Care
Cambridgeshire County Council,04-Sep-20,51301431622,-860.79,VOYAGE,CARE ESTABLISHMENT,LD - South Locality - Cost of Care,LD - South Cambs - Care,Residential Care
Cambridgeshire County Council,04-Sep-20,51301431622,-860.79,VOYAGE,CARE ESTABLISHMENT,LD - South Locality - Cost of Care,LD - South Cambs - Care,Residential Care
Cambridgeshire County Council,04-Sep-20,51301431622,-860.79,VOYAGE,CARE ESTABLISHMENT,LD - South Locality - Cost of Care,LD - South Cambs - Care,Residential Care
Cambridgeshire County Council,04-Sep-20,51301431622,-860.79,VOYAGE,CARE ESTABLISHMENT,LD - South Locality - Cost of Care,LD - South Cambs - Care,Residential Care
Cambridgeshire County Council,04-Sep-20,51301431622,-860.79,VOYAGE,CARE ESTABLISHMENT,LD - South Locality - Cost of Care,LD - South Cambs - Care,Residential Care
Cambridgeshire County Council,04-Sep-20,51301431622,-860.79,VOYAGE,CARE ESTABLISHMENT,LD - South Locality - Cost of Care,LD - South Cambs - Care,Residential Care
Cambridgeshire County Council,04-Sep-20,51301431622,-860.79,VOYAGE,CARE ESTABLISHMENT,LD - South Locality - Cost of Care,LD - South Cambs - Care,Residential Care
Cambridgeshire County Council,04-Sep-20,51301431622,-860.79,VOYAGE,CARE ESTABLISHMENT,LD - South Locality - Cost of Care,LD - South Cambs - Care,Residential Care
Cambridgeshire County Council,04-Sep-20,51301431622,-860.79,VOYAGE,CARE ESTABLISHMENT,LD - South Locality - Cost of Care,LD - South Cambs - Care,Residential Care
Cambridgeshire County Council,04-Sep-20,51301431622,-860.79,VOYAGE,CARE ESTABLISHMENT,LD - South Locality - Cost of Care,LD - South Cambs - Care,Residential Care
Cambridgeshire County Council,04-Sep-20,51301431622,-860.79,VOYAGE,CARE ESTABLISHMENT,LD - South Locality - Cost of Care,LD - South Cambs - Care,Residential Care
Cambridgeshire County Council,04-Sep-20,51301431622,-860.79,VOYAGE,CARE ESTABLISHMENT,LD - South Locality - Cost of Care,LD - South Cambs - Care,Residential Care
Cambridgeshire County Council,04-Sep-20,51301431622,-860.79,VOYAGE,CARE ESTABLISHMENT,LD - South Locality - Cost of Care,LD - South Cambs - Care,Residential Care
Cambridgeshire County Council,04-Sep-20,51301431622,-860.79,VOYAGE,CARE ESTABLISHMENT,LD - South Locality - Cost of Care,LD - South Cambs - Care,Residential Care
Cambridgeshire County Council,04-Sep-20,51301431622,-860.79,VOYAGE,CARE ESTABLISHMENT,LD - South Locality - Cost of Care,LD - South Cambs - Care,Residential Care
Cambridgeshire County Council,04-Sep-20,51301431622,-860.79,VOYAGE,CARE ESTABLISHMENT,LD - South Locality - Cost of Care,LD - South Cambs - Care,Residential Care
Cambridgeshire County Council,04-Sep-20,51301431622,-860.79,VOYAGE,CARE ESTABLISHMENT,LD - South Locality - Cost of Care,LD - South Cambs - Care,Residential Care
Cambridgeshire County Council,04-Sep-20,51301431622,-860.79,VOYAGE,CARE ESTABLISHMENT,LD - South Locality - Cost of Care,LD - South Cambs - Care,Residential Care
Cambridgeshire County Council,04-Sep-20,51301431622,-860.79,VOYAGE,CARE ESTABLISHMENT,LD - South Locality - Cost of Care,LD - South Cambs - Care,Residential Care
Cambridgeshire County Council,04-Sep-20,51301431622,-860.79,VOYAGE,CARE ESTABLISHMENT,LD - South Locality - Cost of Care,LD - South Cambs - Care,Residential Care
Cambridgeshire County Council,04-Sep-20,51301431622,-860.79,VOYAGE,CARE ESTABLISHMENT,LD - South Locality - Cost of Care,LD - South Cambs - Care,Residential Care
Cambridgeshire County Council,04-Sep-20,51301431622,-860.79,VOYAGE,CARE ESTABLISHMENT,LD - South Locality - Cost of Care,LD - South Cambs - Care,Residential Care
Cambridgeshire County Council,04-Sep-20,51301431622,-860.79,VOYAGE,CARE ESTABLISHMENT,LD - South Locality - Cost of Care,LD - South Cambs - Care,Residential Care
Cambridgeshire County Council,04-Sep-20,51301431622,-860.79,VOYAGE,CARE ESTABLISHMENT,LD - South Locality - Cost of Care,LD - South Cambs - Care,Residential Care
Cambridgeshire County Council,04-Sep-20,51301431622,-860.79,VOYAGE,CARE ESTABLISHMENT,LD - South Locality - Cost of Care,LD - South Cambs - Care,Residential Care
Cambridgeshire County Council,04-Sep-20,51301431622,-860.79,VOYAGE,CARE ESTABLISHMENT,LD - South Locality - Cost of Care,LD - South Cambs - Care,Residential Care
Cambridgeshire County Council,04-Sep-20,51301431622,-860.79,VOYAGE,CARE ESTABLISHMENT,LD - South Locality - Cost of Care,LD - South Cambs - Care,Residential Care
Cambridgeshire County Council,04-Sep-20,51301432852,-850.00,LITTLEPORT GRANGE,CARE ESTABLISHMENT,OP - City & South Locality - Cost of Care,Older People - City & South - Care,Short Term Other
Cambridgeshire County Council,04-Sep-20,51301432852,-850.00,LITTLEPORT GRANGE,CARE ESTABLISHMENT,OP - City & South Locality - Cost of Care,Older People - City & South - Care,Short Term Other
Cambridgeshire County Council,21-Sep-20,51301439243,-850.00,Redacted Personal Data ,SERVICE USER,Physical Disablity - Cost of Care,Countywide PD Service - Care,Direct Payments
Cambridgeshire County Council,21-Sep-20,51301439243,-850.00,Redacted Personal Data ,SERVICE USER,Physical Disablity - Cost of Care,Countywide PD Service - Care,Direct Payments
Cambridgeshire County Council,21-Sep-20,51301439243,-850.00,Redacted Personal Data ,SERVICE USER,Physical Disablity - Cost of Care,Countywide PD Service - Care,Direct Payments
Cambridgeshire County Council,04-Sep-20,51301432052,-844.44,BARCHESTER HEALTHCARE HOMES LTD,CARE ESTABLISHMENT,OP - East Cambs Locality - Cost of Care,East Cambs - O P Team - Care,Nursing Care
Cambridgeshire County Council,04-Sep-20,51301432052,-844.44,BARCHESTER HEALTHCARE HOMES LTD,CARE ESTABLISHMENT,OP - East Cambs Locality - Cost of Care,East Cambs - O P Team - Care,Nursing Care
Cambridgeshire County Council,04-Sep-20,51301432052,-844.44,BARCHESTER HEALTHCARE HOMES LTD,CARE ESTABLISHMENT,OP - East Cambs Locality - Cost of Care,East Cambs - O P Team - Care,Nursing Care
Cambridgeshire County Council,04-Sep-20,51301432052,-844.44,BARCHESTER HEALTHCARE HOMES LTD,CARE ESTABLISHMENT,OP - East Cambs Locality - Cost of Care,East Cambs - O P Team - Care,Nursing Care
Cambridgeshire County Council,04-Sep-20,51301432052,-844.44,BARCHESTER HEALTHCARE HOMES LTD,CARE ESTABLISHMENT,OP - East Cambs Locality - Cost of Care,East Cambs - O P Team - Care,Nursing Care
Cambridgeshire County Council,04-Sep-20,51301432052,-844.44,BARCHESTER HEALTHCARE HOMES LTD,CARE ESTABLISHMENT,OP - East Cambs Locality - Cost of Care,East Cambs - O P Team - Care,Nursing Care
Cambridgeshire County Council,04-Sep-20,51301432052,-844.44,BARCHESTER HEALTHCARE HOMES LTD,CARE ESTABLISHMENT,OP - East Cambs Locality - Cost of Care,East Cambs - O P Team - Care,Nursing Care
Cambridgeshire County Council,04-Sep-20,51301432052,-844.44,BARCHESTER HEALTHCARE HOMES LTD,CARE ESTABLISHMENT,OP - East Cambs Locality - Cost of Care,East Cambs - O P Team - Care,Nursing Care
Cambridgeshire County Council,04-Sep-20,51301432052,-844.44,BARCHESTER HEALTHCARE HOMES LTD,CARE ESTABLISHMENT,OP - East Cambs Locality - Cost of Care,East Cambs - O P Team - Care,Nursing Care
Cambridgeshire County Council,04-Sep-20,51301432052,-844.44,BARCHESTER HEALTHCARE HOMES LTD,CARE ESTABLISHMENT,OP - East Cambs Locality - Cost of Care,East Cambs - O P Team - Care,Nursing Care
Cambridgeshire County Council,04-Sep-20,51301432052,-844.44,BARCHESTER HEALTHCARE HOMES LTD,CARE ESTABLISHMENT,OP - East Cambs Locality - Cost of Care,East Cambs - O P Team - Care,Nursing Care
Cambridgeshire County Council,04-Sep-20,51301432052,-844.44,BARCHESTER HEALTHCARE HOMES LTD,CARE ESTABLISHMENT,OP - East Cambs Locality - Cost of Care,East Cambs - O P Team - Care,Nursing Care
Cambridgeshire County Council,04-Sep-20,51301432052,-844.44,BARCHESTER HEALTHCARE HOMES LTD,CARE ESTABLISHMENT,OP - East Cambs Locality - Cost of Care,East Cambs - O P Team - Care,Nursing Care
Cambridgeshire County Council,04-Sep-20,51301432052,-844.44,BARCHESTER HEALTHCARE HOMES LTD,CARE ESTABLISHMENT,OP - East Cambs Locality - Cost of Care,East Cambs - O P Team - Care,Nursing Care
Cambridgeshire County Council,04-Sep-20,51301432052,-844.44,BARCHESTER HEALTHCARE HOMES LTD,CARE ESTABLISHMENT,OP - East Cambs Locality - Cost of Care,East Cambs - O P Team - Care,Nursing Care
Cambridgeshire County Council,04-Sep-20,51301432052,-844.44,BARCHESTER HEALTHCARE HOMES LTD,CARE ESTABLISHMENT,OP - East Cambs Locality - Cost of Care,East Cambs - O P Team - Care,Nursing Care
Cambridgeshire County Council,04-Sep-20,51301432052,-844.44,BARCHESTER HEALTHCARE HOMES LTD,CARE ESTABLISHMENT,OP - East Cambs Locality - Cost of Care,East Cambs - O P Team - Care,Nursing Care
Cambridgeshire County Council,04-Sep-20,51301432753,-843.86,FLORIDA AVENUE (VOYAGE),CARE ESTABLISHMENT,LD - Hunts Locality - Cost of Care,LD - Huntingdonshire - Care,Supported Living
Cambridgeshire County Council,04-Sep-20,51301432753,-843.86,FLORIDA AVENUE (VOYAGE),CARE ESTABLISHMENT,LD - Hunts Locality - Cost of Care,LD - Huntingdonshire - Care,Supported Living
Cambridgeshire County Council,04-Sep-20,51301432753,-843.86,FLORIDA AVENUE (VOYAGE),CARE ESTABLISHMENT,LD - Hunts Locality - Cost of Care,LD - Huntingdonshire - Care,Supported Living
Cambridgeshire County Council,04-Sep-20,51301432753,-843.86,FLORIDA AVENUE (VOYAGE),CARE ESTABLISHMENT,LD - Hunts Locality - Cost of Care,LD - Huntingdonshire - Care,Supported Living
Cambridgeshire County Council,04-Sep-20,51301432753,-843.86,FLORIDA AVENUE (VOYAGE),CARE ESTABLISHMENT,LD - Hunts Locality - Cost of Care,LD - Huntingdonshire - Care,Supported Living
Cambridgeshire County Council,04-Sep-20,51301432753,-843.86,FLORIDA AVENUE (VOYAGE),CARE ESTABLISHMENT,LD - Hunts Locality - Cost of Care,LD - Huntingdonshire - Care,Supported Living
Cambridgeshire County Council,04-Sep-20,51301432753,-843.86,FLORIDA AVENUE (VOYAGE),CARE ESTABLISHMENT,LD - Hunts Locality - Cost of Care,LD - Huntingdonshire - Care,Supported Living
Cambridgeshire County Council,04-Sep-20,51301432753,-843.86,FLORIDA AVENUE (VOYAGE),CARE ESTABLISHMENT,LD - Hunts Locality - Cost of Care,LD - Huntingdonshire - Care,Supported Living
Cambridgeshire County Council,18-Sep-20,51301438917,-840.72,AUGUSTA CARE LTD,CARE ESTABLISHMENT,LD - Fenland Locality - Cost of Care,LD - Fenland  - Care,Supported Living
Cambridgeshire County Council,18-Sep-20,51301438917,-840.72,AUGUSTA CARE LTD,CARE ESTABLISHMENT,LD - Fenland Locality - Cost of Care,LD - Fenland  - Care,Supported Living
Cambridgeshire County Council,18-Sep-20,51301438917,-840.72,AUGUSTA CARE LTD,CARE ESTABLISHMENT,LD - Fenland Locality - Cost of Care,LD - Fenland  - Care,Supported Living
Cambridgeshire County Council,18-Sep-20,51301438917,-840.72,AUGUSTA CARE LTD,CARE ESTABLISHMENT,LD - Fenland Locality - Cost of Care,LD - Fenland  - Care,Supported Living
Cambridgeshire County Council,04-Sep-20,51301380042,-829.59,HOME FARM TRUST (SHEFFIELD),CARE ESTABLISHMENT,LD - Young Adults Team,LD - Young Adults - Care,Supported Living
Cambridgeshire County Council,04-Sep-20,51301380042,-829.59,HOME FARM TRUST (SHEFFIELD),CARE ESTABLISHMENT,LD - Young Adults Team,LD - Young Adults - Care,Supported Living
Cambridgeshire County Council,04-Sep-20,51301380042,-829.59,HOME FARM TRUST (SHEFFIELD),CARE ESTABLISHMENT,LD - Young Adults Team,LD - Young Adults - Care,Supported Living
Cambridgeshire County Council,03-Sep-20,51301403375,-826.95,Redacted Personal Data ,SERVICE USER,LD - Hunts Locality - Cost of Care,LD - Huntingdonshire - Care,Direct Payments
Cambridgeshire County Council,03-Sep-20,51301403375,-826.95,Redacted Personal Data ,SERVICE USER,LD - Hunts Locality - Cost of Care,LD - Huntingdonshire - Care,Direct Payments
Cambridgeshire County Council,03-Sep-20,51301403375,-826.95,Redacted Personal Data ,SERVICE USER,LD - Hunts Locality - Cost of Care,LD - Huntingdonshire - Care,Direct Payments
Cambridgeshire County Council,14-Sep-20,51301436641,-825.00,Redacted Personal Data ,SERVICE USER,Physical Disablity - Cost of Care,Countywide PD Service - Care,Direct Payments
Cambridgeshire County Council,14-Sep-20,51301436641,-825.00,Redacted Personal Data ,SERVICE USER,Physical Disablity - Cost of Care,Countywide PD Service - Care,Direct Payments
Cambridgeshire County Council,14-Sep-20,51301436641,-825.00,Redacted Personal Data ,SERVICE USER,Physical Disablity - Cost of Care,Countywide PD Service - Care,Direct Payments
Cambridgeshire County Council,14-Sep-20,51301436641,-825.00,Redacted Personal Data ,SERVICE USER,Physical Disablity - Cost of Care,Countywide PD Service - Care,Direct Payments
Cambridgeshire County Council,14-Sep-20,51301436641,-825.00,Redacted Personal Data ,SERVICE USER,Physical Disablity - Cost of Care,Countywide PD Service - Care,Direct Payments
Cambridgeshire County Council,14-Sep-20,51301436641,-825.00,Redacted Personal Data ,SERVICE USER,Physical Disablity - Cost of Care,Countywide PD Service - Care,Direct Payments
Cambridgeshire County Council,14-Sep-20,51301436641,-825.00,Redacted Personal Data ,SERVICE USER,Physical Disablity - Cost of Care,Countywide PD Service - Care,Direct Payments
Cambridgeshire County Council,14-Sep-20,51301436641,-825.00,Redacted Personal Data ,SERVICE USER,Physical Disablity - Cost of Care,Countywide PD Service - Care,Direct Payments
Cambridgeshire County Council,14-Sep-20,51301436641,-825.00,Redacted Personal Data ,SERVICE USER,Physical Disablity - Cost of Care,Countywide PD Service - Care,Direct Payments
Cambridgeshire County Council,18-Sep-20,51301438893,-822.44,THE ELMS NURSING HOME,CARE ESTABLISHMENT,OP - Hunts Locality - Cost of Care,Hunts OP Team - Care,Nursing Care
Cambridgeshire County Council,18-Sep-20,51301438893,-822.44,THE ELMS NURSING HOME,CARE ESTABLISHMENT,OP - Hunts Locality - Cost of Care,Hunts OP Team - Care,Nursing Care
Cambridgeshire County Council,18-Sep-20,51301438893,-822.44,THE ELMS NURSING HOME,CARE ESTABLISHMENT,OP - Hunts Locality - Cost of Care,Hunts OP Team - Care,Nursing Care
Cambridgeshire County Council,18-Sep-20,51301438893,-822.44,THE ELMS NURSING HOME,CARE ESTABLISHMENT,OP - Hunts Locality - Cost of Care,Hunts OP Team - Care,Nursing Care
Cambridgeshire County Council,18-Sep-20,51301438893,-822.44,THE ELMS NURSING HOME,CARE ESTABLISHMENT,OP - Hunts Locality - Cost of Care,Hunts OP Team - Care,Nursing Care
Cambridgeshire County Council,18-Sep-20,51301438893,-822.44,THE ELMS NURSING HOME,CARE ESTABLISHMENT,OP - Hunts Locality - Cost of Care,Hunts OP Team - Care,Nursing Care
Cambridgeshire County Council,18-Sep-20,51301438893,-822.44,THE ELMS NURSING HOME,CARE ESTABLISHMENT,OP - Hunts Locality - Cost of Care,Hunts OP Team - Care,Nursing Care
Cambridgeshire County Council,18-Sep-20,51301438893,-822.44,THE ELMS NURSING HOME,CARE ESTABLISHMENT,OP - Hunts Locality - Cost of Care,Hunts OP Team - Care,Nursing Care
Cambridgeshire County Council,18-Sep-20,51301438893,-822.44,THE ELMS NURSING HOME,CARE ESTABLISHMENT,OP - Hunts Locality - Cost of Care,Hunts OP Team - Care,Nursing Care
Cambridgeshire County Council,29-Sep-20,51301442643,-819.00,Affinity Fostering Services Ltd,CARE ESTABLISHMENT,LAC Placements,Placements - independent fostering,Agency Placements - Out of  County
Cambridgeshire County Council,04-Sep-20,51301431388,-803.25,RENTON COURT (VOYAGE),CARE ESTABLISHMENT,LD - Hunts Locality - Cost of Care,LD - Huntingdonshire - Care,Supported Living
Cambridgeshire County Council,04-Sep-20,51301431017,-800.00,ORCHARD HOUSE NURSING HOME,CARE ESTABLISHMENT,OP - Fenland Locality - Cost of Care,Older People - Fenland - Care,Residential Care
Cambridgeshire County Council,04-Sep-20,51301431017,-800.00,ORCHARD HOUSE NURSING HOME,CARE ESTABLISHMENT,OP - Fenland Locality - Cost of Care,Older People - Fenland - Care,Residential Care
Cambridgeshire County Council,04-Sep-20,51301431017,-800.00,ORCHARD HOUSE NURSING HOME,CARE ESTABLISHMENT,OP - Fenland Locality - Cost of Care,Older People - Fenland - Care,Residential Care
Cambridgeshire County Council,04-Sep-20,51301431017,-800.00,ORCHARD HOUSE NURSING HOME,CARE ESTABLISHMENT,OP - Fenland Locality - Cost of Care,Older People - Fenland - Care,Residential Care
Cambridgeshire County Council,04-Sep-20,51301431017,-800.00,ORCHARD HOUSE NURSING HOME,CARE ESTABLISHMENT,OP - Fenland Locality - Cost of Care,Older People - Fenland - Care,Residential Care
Cambridgeshire County Council,04-Sep-20,51301431017,-800.00,ORCHARD HOUSE NURSING HOME,CARE ESTABLISHMENT,OP - Fenland Locality - Cost of Care,Older People - Fenland - Care,Residential Care
Cambridgeshire County Council,04-Sep-20,51301431017,-800.00,ORCHARD HOUSE NURSING HOME,CARE ESTABLISHMENT,OP - Fenland Locality - Cost of Care,Older People - Fenland - Care,Residential Care
Cambridgeshire County Council,04-Sep-20,51301431017,-800.00,ORCHARD HOUSE NURSING HOME,CARE ESTABLISHMENT,OP - Fenland Locality - Cost of Care,Older People - Fenland - Care,Residential Care
Cambridgeshire County Council,04-Sep-20,51301431017,-800.00,ORCHARD HOUSE NURSING HOME,CARE ESTABLISHMENT,OP - Fenland Locality - Cost of Care,Older People - Fenland - Care,Residential Care
Cambridgeshire County Council,04-Sep-20,51301431017,-800.00,ORCHARD HOUSE NURSING HOME,CARE ESTABLISHMENT,OP - Fenland Locality - Cost of Care,Older People - Fenland - Care,Residential Care
Cambridgeshire County Council,04-Sep-20,51301431017,-800.00,ORCHARD HOUSE NURSING HOME,CARE ESTABLISHMENT,OP - Fenland Locality - Cost of Care,Older People - Fenland - Care,Residential Care
Cambridgeshire County Council,04-Sep-20,51301431017,-800.00,ORCHARD HOUSE NURSING HOME,CARE ESTABLISHMENT,OP - Fenland Locality - Cost of Care,Older People - Fenland - Care,Residential Care
Cambridgeshire County Council,04-Sep-20,51301431017,-800.00,ORCHARD HOUSE NURSING HOME,CARE ESTABLISHMENT,OP - Fenland Locality - Cost of Care,Older People - Fenland - Care,Residential Care
Cambridgeshire County Council,04-Sep-20,51301431017,-800.00,ORCHARD HOUSE NURSING HOME,CARE ESTABLISHMENT,OP - Fenland Locality - Cost of Care,Older People - Fenland - Care,Residential Care
Cambridgeshire County Council,04-Sep-20,51301431017,-800.00,ORCHARD HOUSE NURSING HOME,CARE ESTABLISHMENT,OP - Fenland Locality - Cost of Care,Older People - Fenland - Care,Residential Care
Cambridgeshire County Council,04-Sep-20,51301431017,-800.00,ORCHARD HOUSE NURSING HOME,CARE ESTABLISHMENT,OP - Fenland Locality - Cost of Care,Older People - Fenland - Care,Residential Care
Cambridgeshire County Council,04-Sep-20,51301431017,-800.00,ORCHARD HOUSE NURSING HOME,CARE ESTABLISHMENT,OP - Fenland Locality - Cost of Care,Older People - Fenland - Care,Residential Care
Cambridgeshire County Council,04-Sep-20,51301431017,-800.00,ORCHARD HOUSE NURSING HOME,CARE ESTABLISHMENT,OP - Fenland Locality - Cost of Care,Older People - Fenland - Care,Residential Care
Cambridgeshire County Council,04-Sep-20,51301431017,-800.00,ORCHARD HOUSE NURSING HOME,CARE ESTABLISHMENT,OP - Fenland Locality - Cost of Care,Older People - Fenland - Care,Residential Care
Cambridgeshire County Council,04-Sep-20,51301431017,-800.00,ORCHARD HOUSE NURSING HOME,CARE ESTABLISHMENT,OP - Fenland Locality - Cost of Care,Older People - Fenland - Care,Residential Care
Cambridgeshire County Council,04-Sep-20,51301431017,-800.00,ORCHARD HOUSE NURSING HOME,CARE ESTABLISHMENT,OP - Fenland Locality - Cost of Care,Older People - Fenland - Care,Residential Care
Cambridgeshire County Council,04-Sep-20,51301431017,-800.00,ORCHARD HOUSE NURSING HOME,CARE ESTABLISHMENT,OP - Fenland Locality - Cost of Care,Older People - Fenland - Care,Residential Care
Cambridgeshire County Council,04-Sep-20,51301431017,-800.00,ORCHARD HOUSE NURSING HOME,CARE ESTABLISHMENT,OP - Fenland Locality - Cost of Care,Older People - Fenland - Care,Residential Care
Cambridgeshire County Council,04-Sep-20,51301431017,-800.00,ORCHARD HOUSE NURSING HOME,CARE ESTABLISHMENT,OP - Fenland Locality - Cost of Care,Older People - Fenland - Care,Residential Care
Cambridgeshire County Council,04-Sep-20,51301431017,-800.00,ORCHARD HOUSE NURSING HOME,CARE ESTABLISHMENT,OP - Fenland Locality - Cost of Care,Older People - Fenland - Care,Residential Care
Cambridgeshire County Council,04-Sep-20,51301431017,-800.00,ORCHARD HOUSE NURSING HOME,CARE ESTABLISHMENT,OP - Fenland Locality - Cost of Care,Older People - Fenland - Care,Residential Care
Cambridgeshire County Council,04-Sep-20,51301431017,-800.00,ORCHARD HOUSE NURSING HOME,CARE ESTABLISHMENT,OP - Fenland Locality - Cost of Care,Older People - Fenland - Care,Residential Care
Cambridgeshire County Council,04-Sep-20,51301431017,-800.00,ORCHARD HOUSE NURSING HOME,CARE ESTABLISHMENT,OP - Fenland Locality - Cost of Care,Older People - Fenland - Care,Residential Care
Cambridgeshire County Council,04-Sep-20,51301431017,-800.00,ORCHARD HOUSE NURSING HOME,CARE ESTABLISHMENT,OP - Fenland Locality - Cost of Care,Older People - Fenland - Care,Residential Care
Cambridgeshire County Council,04-Sep-20,51301431017,-800.00,ORCHARD HOUSE NURSING HOME,CARE ESTABLISHMENT,OP - Fenland Locality - Cost of Care,Older People - Fenland - Care,Residential Care
Cambridgeshire County Council,04-Sep-20,51301431017,-800.00,ORCHARD HOUSE NURSING HOME,CARE ESTABLISHMENT,OP - Fenland Locality - Cost of Care,Older People - Fenland - Care,Residential Care
Cambridgeshire County Council,04-Sep-20,51301431017,-800.00,ORCHARD HOUSE NURSING HOME,CARE ESTABLISHMENT,OP - Fenland Locality - Cost of Care,Older People - Fenland - Care,Residential Care
Cambridgeshire County Council,04-Sep-20,51301431017,-800.00,ORCHARD HOUSE NURSING HOME,CARE ESTABLISHMENT,OP - Fenland Locality - Cost of Care,Older People - Fenland - Care,Residential Care
Cambridgeshire County Council,04-Sep-20,51301431017,-800.00,ORCHARD HOUSE NURSING HOME,CARE ESTABLISHMENT,OP - Fenland Locality - Cost of Care,Older People - Fenland - Care,Residential Care
Cambridgeshire County Council,04-Sep-20,51301431017,-800.00,ORCHARD HOUSE NURSING HOME,CARE ESTABLISHMENT,OP - Fenland Locality - Cost of Care,Older People - Fenland - Care,Residential Care
Cambridgeshire County Council,04-Sep-20,51301431017,-800.00,ORCHARD HOUSE NURSING HOME,CARE ESTABLISHMENT,OP - Fenland Locality - Cost of Care,Older People - Fenland - Care,Residential Care
Cambridgeshire County Council,04-Sep-20,51301431017,-800.00,ORCHARD HOUSE NURSING HOME,CARE ESTABLISHMENT,OP - Fenland Locality - Cost of Care,Older People - Fenland - Care,Residential Care
Cambridgeshire County Council,04-Sep-20,51301431017,-800.00,ORCHARD HOUSE NURSING HOME,CARE ESTABLISHMENT,OP - Fenland Locality - Cost of Care,Older People - Fenland - Care,Residential Care
Cambridgeshire County Council,04-Sep-20,51301431017,-800.00,ORCHARD HOUSE NURSING HOME,CARE ESTABLISHMENT,OP - Fenland Locality - Cost of Care,Older People - Fenland - Care,Residential Care
Cambridgeshire County Council,04-Sep-20,51301431017,-800.00,ORCHARD HOUSE NURSING HOME,CARE ESTABLISHMENT,OP - Fenland Locality - Cost of Care,Older People - Fenland - Care,Residential Care
Cambridgeshire County Council,04-Sep-20,51301431017,-800.00,ORCHARD HOUSE NURSING HOME,CARE ESTABLISHMENT,OP - Fenland Locality - Cost of Care,Older People - Fenland - Care,Residential Care
Cambridgeshire County Council,18-Sep-20,51301438959,-791.89,HOLLY COTTAGE LLP,CARE ESTABLISHMENT,OP - East Cambs Locality - Cost of Care,East Cambs - O P Team - Care,Residential Care
Cambridgeshire County Council,18-Sep-20,51301438959,-791.89,HOLLY COTTAGE LLP,CARE ESTABLISHMENT,OP - East Cambs Locality - Cost of Care,East Cambs - O P Team - Care,Residential Care
Cambridgeshire County Council,18-Sep-20,51301438959,-791.89,HOLLY COTTAGE LLP,CARE ESTABLISHMENT,OP - East Cambs Locality - Cost of Care,East Cambs - O P Team - Care,Residential Care
Cambridgeshire County Council,18-Sep-20,51301438959,-791.89,HOLLY COTTAGE LLP,CARE ESTABLISHMENT,OP - East Cambs Locality - Cost of Care,East Cambs - O P Team - Care,Residential Care
Cambridgeshire County Council,18-Sep-20,51301438959,-791.89,HOLLY COTTAGE LLP,CARE ESTABLISHMENT,OP - East Cambs Locality - Cost of Care,East Cambs - O P Team - Care,Residential Care
Cambridgeshire County Council,18-Sep-20,51301438959,-791.89,HOLLY COTTAGE LLP,CARE ESTABLISHMENT,OP - East Cambs Locality - Cost of Care,East Cambs - O P Team - Care,Residential Care
Cambridgeshire County Council,18-Sep-20,51301438959,-791.89,HOLLY COTTAGE LLP,CARE ESTABLISHMENT,OP - East Cambs Locality - Cost of Care,East Cambs - O P Team - Care,Residential Care
Cambridgeshire County Council,18-Sep-20,51301438959,-791.89,HOLLY COTTAGE LLP,CARE ESTABLISHMENT,OP - East Cambs Locality - Cost of Care,East Cambs - O P Team - Care,Residential Care
Cambridgeshire County Council,18-Sep-20,51301438959,-791.89,HOLLY COTTAGE LLP,CARE ESTABLISHMENT,OP - East Cambs Locality - Cost of Care,East Cambs - O P Team - Care,Residential Care
Cambridgeshire County Council,18-Sep-20,51301438959,-791.89,HOLLY COTTAGE LLP,CARE ESTABLISHMENT,OP - East Cambs Locality - Cost of Care,East Cambs - O P Team - Care,Residential Care
Cambridgeshire County Council,18-Sep-20,51301438959,-791.89,HOLLY COTTAGE LLP,CARE ESTABLISHMENT,OP - East Cambs Locality - Cost of Care,East Cambs - O P Team - Care,Residential Care
Cambridgeshire County Council,18-Sep-20,51301438959,-791.89,HOLLY COTTAGE LLP,CARE ESTABLISHMENT,OP - East Cambs Locality - Cost of Care,East Cambs - O P Team - Care,Residential Care
Cambridgeshire County Council,18-Sep-20,51301438959,-791.89,HOLLY COTTAGE LLP,CARE ESTABLISHMENT,OP - East Cambs Locality - Cost of Care,East Cambs - O P Team - Care,Residential Care
Cambridgeshire County Council,18-Sep-20,51301438959,-791.89,HOLLY COTTAGE LLP,CARE ESTABLISHMENT,OP - East Cambs Locality - Cost of Care,East Cambs - O P Team - Care,Residential Care
Cambridgeshire County Council,18-Sep-20,51301438959,-791.89,HOLLY COTTAGE LLP,CARE ESTABLISHMENT,OP - East Cambs Locality - Cost of Care,East Cambs - O P Team - Care,Residential Care
Cambridgeshire County Council,18-Sep-20,51301438959,-791.89,HOLLY COTTAGE LLP,CARE ESTABLISHMENT,OP - East Cambs Locality - Cost of Care,East Cambs - O P Team - Care,Residential Care
Cambridgeshire County Council,18-Sep-20,51301438959,-791.89,HOLLY COTTAGE LLP,CARE ESTABLISHMENT,OP - East Cambs Locality - Cost of Care,East Cambs - O P Team - Care,Residential Care
Cambridgeshire County Council,18-Sep-20,51301438959,-791.89,HOLLY COTTAGE LLP,CARE ESTABLISHMENT,OP - East Cambs Locality - Cost of Care,East Cambs - O P Team - Care,Residential Care
Cambridgeshire County Council,18-Sep-20,51301438959,-791.89,HOLLY COTTAGE LLP,CARE ESTABLISHMENT,OP - East Cambs Locality - Cost of Care,East Cambs - O P Team - Care,Residential Care
Cambridgeshire County Council,18-Sep-20,51301438959,-791.89,HOLLY COTTAGE LLP,CARE ESTABLISHMENT,OP - East Cambs Locality - Cost of Care,East Cambs - O P Team - Care,Residential Care
Cambridgeshire County Council,18-Sep-20,51301438959,-791.89,HOLLY COTTAGE LLP,CARE ESTABLISHMENT,OP - East Cambs Locality - Cost of Care,East Cambs - O P Team - Care,Residential Care
Cambridgeshire County Council,18-Sep-20,51301438959,-791.89,HOLLY COTTAGE LLP,CARE ESTABLISHMENT,OP - East Cambs Locality - Cost of Care,East Cambs - O P Team - Care,Residential Care
Cambridgeshire County Council,18-Sep-20,51301438959,-791.89,HOLLY COTTAGE LLP,CARE ESTABLISHMENT,OP - East Cambs Locality - Cost of Care,East Cambs - O P Team - Care,Residential Care
Cambridgeshire County Council,18-Sep-20,51301438959,-791.89,HOLLY COTTAGE LLP,CARE ESTABLISHMENT,OP - East Cambs Locality - Cost of Care,East Cambs - O P Team - Care,Residential Care
Cambridgeshire County Council,18-Sep-20,51301438959,-791.89,HOLLY COTTAGE LLP,CARE ESTABLISHMENT,OP - East Cambs Locality - Cost of Care,East Cambs - O P Team - Care,Residential Care
Cambridgeshire County Council,18-Sep-20,51301438959,-791.89,HOLLY COTTAGE LLP,CARE ESTABLISHMENT,OP - East Cambs Locality - Cost of Care,East Cambs - O P Team - Care,Residential Care
Cambridgeshire County Council,18-Sep-20,51301438959,-791.89,HOLLY COTTAGE LLP,CARE ESTABLISHMENT,OP - East Cambs Locality - Cost of Care,East Cambs - O P Team - Care,Residential Care
Cambridgeshire County Council,18-Sep-20,51301438959,-791.89,HOLLY COTTAGE LLP,CARE ESTABLISHMENT,OP - East Cambs Locality - Cost of Care,East Cambs - O P Team - Care,Residential Care
Cambridgeshire County Council,18-Sep-20,51301438959,-791.89,HOLLY COTTAGE LLP,CARE ESTABLISHMENT,OP - East Cambs Locality - Cost of Care,East Cambs - O P Team - Care,Residential Care
Cambridgeshire County Council,18-Sep-20,51301438959,-791.89,HOLLY COTTAGE LLP,CARE ESTABLISHMENT,OP - East Cambs Locality - Cost of Care,East Cambs - O P Team - Care,Residential Care
Cambridgeshire County Council,18-Sep-20,51301438959,-791.89,HOLLY COTTAGE LLP,CARE ESTABLISHMENT,OP - East Cambs Locality - Cost of Care,East Cambs - O P Team - Care,Residential Care
